Service Delivery Area(T),Service Delivery Team(T),ExpenditureGroup(T),Account(T),Supplier Name(T),Trans Date, Amount 
"Business, Development & Employment","AD - Development, Business & Housing",Capital Expenditure,Other Capital Expenditure,NUPLACE LTD,11/12/2017," 1,090,641.72 "
"Business, Development & Employment","AD - Development, Business & Housing",Capital Expenditure,External Professional Fees,BJB (Lettings Ltd),19/12/2017," 1,750.00 "
"Business, Development & Employment","AD - Development, Business & Housing",Capital Expenditure,Payments to Contractor,GROUND INVESTIGATION & PILING LTD,06/12/2017," 4,212.80 "
"Business, Development & Employment","AD - Development, Business & Housing",Capital Expenditure,Payments to Contractor,MARLOW CONSULTING LTD,06/12/2017, 695.00 
"Business, Development & Employment","AD - Development, Business & Housing",Capital Expenditure,Other Capital Expenditure,NUPLACE LTD,21/12/2017," 400,000.00 "
"Business, Development & Employment","AD - Development, Business & Housing",Supplies & Services,Registration / Licence Fees,EQUIFAX PLC,18/12/2017, 134.03 
"Business, Development & Employment","AD - Development, Business & Housing",Supplies & Services,Legal Expenses,Womble Bond Dickinson LLP,18/12/2017," 1,458.90 "
"Business, Development & Employment",Development Management & Planning Policy,Employees,Course Fees,BIRMINGHAM CITY UNIVERSITY,13/12/2017," 3,000.00 "
"Business, Development & Employment",Development Management & Planning Policy,Employees,Course Fees,BIRMINGHAM CITY UNIVERSITY,13/12/2017," 6,750.00 "
"Business, Development & Employment",Development Management & Planning Policy,Employees,Course Fees,BIRMINGHAM CITY UNIVERSITY,13/12/2017," 2,750.00 "
"Business, Development & Employment",Development Management & Planning Policy,Employees,Course Fees,BIRMINGHAM CITY UNIVERSITY,13/12/2017," 2,950.00 "
"Business, Development & Employment",Development Management & Planning Policy,Supplies & Services,Legal Expenses,Reacted Personal Information ,14/12/2017, 500.00 
"Business, Development & Employment",Development Management & Planning Policy,Supplies & Services,Consultants Fees,The Planning Inspectorate,05/12/2017," 17,754.84 "
"Business, Development & Employment",Development Management & Planning Policy,Transport-Related Expenditure,Payments to Contractor,AJB CONTRACTING LTD,15/12/2017," 1,800.00 "
"Business, Development & Employment",Development Management & Planning Policy,Transport-Related Expenditure,Payments to Contractor,AJB CONTRACTING LTD,15/12/2017," 1,200.00 "
"Business, Development & Employment",Development Management & Planning Policy,Supplies & Services,Computer Software (Maint),OBJECTIVE KEYSTONE LTD,01/12/2017," 8,694.29 "
"Business, Development & Employment",Development Management & Planning Policy,Supplies & Services,Legal Expenses,MEETING POINT TRUST LTD,19/12/2017, 168.40 
"Business, Development & Employment",Development Management & Planning Policy,Supplies & Services,Advertising,THE MIDLAND NEWS ASSOCIATION LTD,13/12/2017, 221.76 
"Business, Development & Employment",Development Management & Planning Policy,Supplies & Services,Advertising,THE MIDLAND NEWS ASSOCIATION LTD,05/12/2017, 221.76 
"Business, Development & Employment",Development Management & Planning Policy,Supplies & Services,Advertising,THE MIDLAND NEWS ASSOCIATION LTD,19/12/2017, 166.32 
"Business, Development & Employment",Development Management & Planning Policy,Supplies & Services,Advertising,THE MIDLAND NEWS ASSOCIATION LTD,22/12/2017, 249.48 
"Business, Development & Employment",Development Management & Planning Policy,Supplies & Services,Advertising,THE MIDLAND NEWS ASSOCIATION LTD,22/12/2017, 277.20 
"Business, Development & Employment",Development Management & Planning Policy,Supplies & Services,Advertising,THE MIDLAND NEWS ASSOCIATION LTD,22/12/2017, 221.76 
"Business, Development & Employment",Development Management & Planning Policy,Supplies & Services,Advertising,THE MIDLAND NEWS ASSOCIATION LTD,19/12/2017, 394.74 
"Business, Development & Employment",Development Management & Planning Policy,Supplies & Services,Legal Expenses,Sacks Consulting,05/12/2017," 5,592.50 "
"Business, Development & Employment",Development Management & Planning Policy,Supplies & Services,Marketing & Publicity,Be Bold Media Limited,07/12/2017," 1,000.00 "
"Business, Development & Employment",Development Management & Planning Policy,Employees,Agency Supply Costs,NIYAA PEOPLE LTD,14/12/2017," 5,456.85 "
"Business, Development & Employment",Development Management & Planning Policy,Employees,Agency Supply Costs,Ultimate Finance Ltd,13/12/2017," 1,450.00 "
"Business, Development & Employment",Development Management & Planning Policy,Employees,Agency Supply Costs,Ultimate Finance Ltd,07/12/2017, 540.00 
"Business, Development & Employment",Development Management & Planning Policy,Employees,Agency Supply Costs,Ultimate Finance Ltd,07/12/2017," 1,480.00 "
"Business, Development & Employment",Development Management & Planning Policy,Employees,Agency Supply Costs,Ultimate Finance Ltd,07/12/2017," 1,320.00 "
"Business, Development & Employment",Development Management & Planning Policy,Employees,Agency Supply Costs,Ultimate Finance Ltd,22/12/2017," 1,460.00 "
"Business, Development & Employment",Development Management & Planning Policy,Employees,Agency Supply Costs,Ultimate Finance Ltd,22/12/2017," 1,150.00 "
"Business, Development & Employment",Estates & Investment,Capital Expenditure,Purchase of Buildings,WEIGHTMANS LLP CLIENT ACCOUNT,19/12/2017," 84,500.00 "
"Business, Development & Employment",Estates & Investment,Capital Expenditure,Purchase of Buildings,FREETHS LLP (00678613),19/12/2017," 635,000.00 "
"Business, Development & Employment",Estates & Investment,Capital Expenditure,Purchase of Buildings,FREETHS LLP (00678613),19/12/2017," 5,998,690.00 "
"Business, Development & Employment",Estates & Investment,Capital Expenditure,Payments to Contractor,POWER ON CONNECTIONS LTD,12/12/2017," 84,412.50 "
"Business, Development & Employment",Estates & Investment,Capital Expenditure,Payments to Contractor,Skylens Photography & Video Ltd,18/12/2017, 295.00 
"Business, Development & Employment",Estates & Investment,Capital Expenditure,Payments to Contractor,POWER ON CONNECTIONS LTD,18/12/2017," 40,005.50 "
"Business, Development & Employment",Estates & Investment,Capital Expenditure,Payments to Contractor,MCPHILLIPS (WELLINGTON) LTD,13/12/2017," 299,186.37 "
"Business, Development & Employment",Estates & Investment,Capital Expenditure,External Professional Fees,FREETHS LLP (00678613),19/12/2017," 1,246.78 "
"Business, Development & Employment",Estates & Investment,Capital Expenditure,External Professional Fees,WREKIN DRAIN SERVICES LTD,19/12/2017," 1,789.90 "
"Business, Development & Employment",Estates & Investment,Capital Expenditure,Payments to Contractor,360 SKYLENS LIMITED,20/12/2017, 295.00 
"Business, Development & Employment",Estates & Investment,Capital Expenditure,Payments to Contractor,MCPHILLIPS (WELLINGTON) LTD,20/12/2017," 85,295.74 "
"Business, Development & Employment",Estates & Investment,Capital Expenditure,Payments to Contractor,MCPHILLIPS (WELLINGTON) LTD,20/12/2017," 405,628.82 "
"Business, Development & Employment",Estates & Investment,Capital Expenditure,Payments to Contractor,POWER ON CONNECTIONS LTD,20/12/2017," 409,951.60 "
"Business, Development & Employment",Estates & Investment,Capital Expenditure,Legal Fees,Reacted Personal Information ,21/12/2017," 53,762.50 "
"Business, Development & Employment",Estates & Investment,Capital Expenditure,Payments to Contractor,RPS DESIGN LTD,22/12/2017," 2,000.00 "
"Business, Development & Employment",Estates & Investment,Capital Expenditure,Payments to Contractor,Design Development Partnership,22/12/2017," 3,500.00 "
"Business, Development & Employment",Estates & Investment,Capital Expenditure,Payments to Contractor,Hinton Properties,22/12/2017," 13,055.55 "
"Business, Development & Employment",Estates & Investment,Capital Expenditure,External Professional Fees,AECOM INFRASTRUCTURE & ENVIRONMENT UK LTD,14/12/2017," 2,683.54 "
"Business, Development & Employment",Estates & Investment,Capital Expenditure,Payments to Contractor,JACOBS ONE LIMITED,18/12/2017," 3,975.00 "
"Business, Development & Employment",Estates & Investment,Capital Expenditure,Payments to Contractor,JACOBS ONE LIMITED,18/12/2017," 2,300.00 "
"Business, Development & Employment",Estates & Investment,Capital Expenditure,Payments to Contractor,JACOBS ONE LIMITED,18/12/2017," 3,975.00 "
"Business, Development & Employment",Estates & Investment,Capital Expenditure,Payments to Contractor,RPS DESIGN LTD,18/12/2017, 726.87 
"Business, Development & Employment",Estates & Investment,Capital Expenditure,Payments to Contractor,PP ELECTRICAL SERVICES (Shropshire) Ltd,18/12/2017, 246.96 
"Business, Development & Employment",Estates & Investment,Capital Expenditure,Other Capital Expenditure,BRITISH GAS BUSINESS ELEC (52464055),18/12/2017, 485.85 
"Business, Development & Employment",Estates & Investment,Capital Expenditure,Other Capital Expenditure,WATER PLUS FORMERLY SEVERN TRENT WATER LTD,18/12/2017," 4,574.55 "
"Business, Development & Employment",Estates & Investment,Capital Expenditure,Marketing / Advertising,VPS (UK) LTD,18/12/2017," 1,128.00 "
"Business, Development & Employment",Estates & Investment,Capital Expenditure,Payments to Contractor,VPS (UK) LTD,18/12/2017, 937.92 
"Business, Development & Employment",Estates & Investment,Capital Expenditure,Payments to Contractor,FITZGERALD CONTRACTORS LTD,04/12/2017," 1,880.03 "
"Business, Development & Employment",Estates & Investment,Capital Expenditure,Payments to Contractor,GRANVILLE CONSTRUCTION & MAINTENANCE LTD,04/12/2017, 769.04 
"Business, Development & Employment",Estates & Investment,Capital Expenditure,Payments to Contractor,GROUND INVESTIGATION & PILING LTD,04/12/2017," 13,716.91 "
"Business, Development & Employment",Estates & Investment,Capital Expenditure,External Professional Fees,Rapleys LLP,04/12/2017, 350.00 
"Business, Development & Employment",Estates & Investment,Capital Expenditure,External Professional Fees,SHROPSHIRE WILDLIFE SURVEYS,05/12/2017, 400.00 
"Business, Development & Employment",Estates & Investment,Capital Expenditure,External Professional Fees,SHROPSHIRE WILDLIFE SURVEYS,05/12/2017, 400.00 
"Business, Development & Employment",Estates & Investment,Capital Expenditure,External Professional Fees,SHROPSHIRE WILDLIFE SURVEYS,05/12/2017, 800.00 
"Business, Development & Employment",Estates & Investment,Capital Expenditure,External Professional Fees,SHROPSHIRE WILDLIFE SURVEYS,05/12/2017, 400.00 
"Business, Development & Employment",Estates & Investment,Capital Expenditure,External Professional Fees,Reacted Personal Information ,19/12/2017," 13,276.20 "
"Business, Development & Employment",Estates & Investment,Capital Expenditure,Marketing / Advertising,West Midlands Growth Company,06/12/2017," 30,000.00 "
"Business, Development & Employment",Estates & Investment,Capital Expenditure,Marketing / Advertising,360 SKYLENS LIMITED,21/12/2017, 335.00 
"Business, Development & Employment",Estates & Investment,Capital Expenditure,External Professional Fees,MARLOW CONSULTING LTD,21/12/2017, 695.00 
"Business, Development & Employment",Estates & Investment,Premises-Related Expenditure,Electricity,BRITISH GAS BUSINESS ELEC (52464055),22/12/2017, 327.38 
"Business, Development & Employment",Estates & Investment,Premises-Related Expenditure,Electricity,BRITISH GAS BUSINESS ELEC (52464055),18/12/2017, 315.12 
"Business, Development & Employment",Estates & Investment,Premises-Related Expenditure,Gas,BRITISH GAS BUSINESS ELEC (52464055),22/12/2017, 171.96 
"Business, Development & Employment",Estates & Investment,Premises-Related Expenditure,Gas,BRITISH GAS BUSINESS (52464055),12/12/2017, 160.69 
"Business, Development & Employment",Estates & Investment,Premises-Related Expenditure,Electricity,BRITISH GAS BUSINESS (52464055),28/12/2017, 370.08 
"Business, Development & Employment",Estates & Investment,Premises-Related Expenditure,Gas,BRITISH GAS BUSINESS (52464055),22/12/2017, 126.05 
"Business, Development & Employment",Estates & Investment,Premises-Related Expenditure,Electricity,EDF ENERGY CUSTOMERS PLC,13/12/2017," 15,111.01 "
"Business, Development & Employment",Estates & Investment,Supplies & Services,Payment Of Income Collected,HSBC EQUIPMENT FINANCE (UK) LIMITED,21/12/2017," 34,227.33 "
"Business, Development & Employment",Estates & Investment,Supplies & Services,Payment Of Income Collected,HSBC EQUIPMENT FINANCE (UK) LIMITED,21/12/2017," 5,668.87 "
"Business, Development & Employment",Estates & Investment,Supplies & Services,Payment Of Income Collected,HSBC EQUIPMENT FINANCE (UK) LIMITED,21/12/2017," 1,500.00 "
"Business, Development & Employment",Estates & Investment,Premises-Related Expenditure,Electricity,NPOWER (97104000) ELECTRICITY,21/12/2017, 114.46 
"Business, Development & Employment",Estates & Investment,Premises-Related Expenditure,Contract Cleaning,ANGEL SPRINGS LTD / PHS GROUP,21/12/2017, 347.00 
"Business, Development & Employment",Estates & Investment,Premises-Related Expenditure,Water Rates,WATER PLUS FORMERLY SEVERN TRENT WATER LTD,18/12/2017," 1,167.46 "
"Business, Development & Employment",Estates & Investment,Premises-Related Expenditure,Water Rates,WATER PLUS FORMERLY SEVERN TRENT WATER LTD,06/12/2017, 683.53 
"Business, Development & Employment",Estates & Investment,Premises-Related Expenditure,Water Rates,WATER PLUS FORMERLY SEVERN TRENT WATER LTD,06/12/2017, 254.29 
"Business, Development & Employment",Estates & Investment,Premises-Related Expenditure,Water Rates,WATER PLUS FORMERLY SEVERN TRENT WATER LTD,06/12/2017, 143.50 
"Business, Development & Employment",Estates & Investment,Premises-Related Expenditure,Water Rates,WATER PLUS FORMERLY SEVERN TRENT WATER LTD,04/12/2017," 2,236.25 "
"Business, Development & Employment",Estates & Investment,Premises-Related Expenditure,Water Rates,WATER PLUS FORMERLY SEVERN TRENT WATER LTD,20/12/2017, 207.77 
"Business, Development & Employment",Estates & Investment,Income,Rents - General,UNIVERSITY OF WOLVERHAMPTON (80970905),05/12/2017," 8,774.25 "
"Business, Development & Employment",Estates & Investment,Supplies & Services,Other Services,CreditCall Limited,18/12/2017, 423.00 
"Business, Development & Employment",Estates & Investment,Supplies & Services,Other Services,CreditCall Limited,06/12/2017, 355.14 
"Business, Development & Employment",Estates & Investment,Premises-Related Expenditure,Grounds Maintenance - L&CS,GRANVILLE CONSTRUCTION & MAINTENANCE LTD,13/12/2017, 428.00 
"Business, Development & Employment",Estates & Investment,Premises-Related Expenditure,Planned Repairs,GRANVILLE CONSTRUCTION & MAINTENANCE LTD,12/12/2017, 150.00 
"Business, Development & Employment",Estates & Investment,Premises-Related Expenditure,R&M -Building Other,GRANVILLE CONSTRUCTION & MAINTENANCE LTD,18/12/2017, 125.00 
"Business, Development & Employment",Estates & Investment,Premises-Related Expenditure,Grounds Maintenance - L&CS,GRANVILLE CONSTRUCTION & MAINTENANCE LTD,06/12/2017, 103.63 
"Business, Development & Employment",Estates & Investment,Premises-Related Expenditure,R&M -Building Other,WINDOW & DOOR CONTRACT SERVICES,18/12/2017, 158.17 
"Business, Development & Employment",Estates & Investment,Premises-Related Expenditure,R&M -Building Other,WINDOW & DOOR CONTRACT SERVICES,04/12/2017, 179.84 
"Business, Development & Employment",Estates & Investment,Premises-Related Expenditure,R&M -Building Other,WINDOW & DOOR CONTRACT SERVICES,06/12/2017," 2,958.39 "
"Business, Development & Employment",Estates & Investment,Premises-Related Expenditure,R&M -Building Other,WINDOW & DOOR CONTRACT SERVICES,12/12/2017, 461.24 
"Business, Development & Employment",Estates & Investment,Premises-Related Expenditure,R&M -Building Other,WINDOW & DOOR CONTRACT SERVICES,18/12/2017, 233.84 
"Business, Development & Employment",Estates & Investment,Premises-Related Expenditure,R&M -Building Other,PRYCE (BUILDERS) LTD,04/12/2017, 159.00 
"Business, Development & Employment",Estates & Investment,Premises-Related Expenditure,Grounds Maintenance - L&CS,RMF LANDSCAPING LTD,20/12/2017, 392.62 
"Business, Development & Employment",Estates & Investment,Premises-Related Expenditure,Grounds Maintenance - L&CS,RMF LANDSCAPING LTD,20/12/2017, 258.60 
"Business, Development & Employment",Estates & Investment,Premises-Related Expenditure,R&M -Building Other,NOBRIDGE LTD,06/12/2017, 280.00 
"Business, Development & Employment",Estates & Investment,Premises-Related Expenditure,R&M -Building Other,NOBRIDGE LTD,06/12/2017, 120.00 
"Business, Development & Employment",Estates & Investment,Premises-Related Expenditure,Grounds Maintenance - L&CS,NOBRIDGE LTD,07/12/2017, 210.00 
"Business, Development & Employment",Estates & Investment,Premises-Related Expenditure,R&M -Building Other,TAYLORS MECHANICAL H & P SERVICES LTD,12/12/2017, 384.00 
"Business, Development & Employment",Estates & Investment,Premises-Related Expenditure,R&M -Building Other,PP ELECTRICAL SERVICES (Shropshire) Ltd,12/12/2017, 725.00 
"Business, Development & Employment",Estates & Investment,Premises-Related Expenditure,R&M -Building Other,PP ELECTRICAL SERVICES (Shropshire) Ltd,08/12/2017, 725.00 
"Business, Development & Employment",Estates & Investment,Premises-Related Expenditure,Grounds Maintenance - L&CS,H & G ASH ROADMARKINGS LTD,12/12/2017, 588.00 
"Business, Development & Employment",Estates & Investment,Premises-Related Expenditure,Electricity,(CIS) BRITISH GAS SERVICES LTD (34051491),13/12/2017,-351.67 
"Business, Development & Employment",Estates & Investment,Premises-Related Expenditure,Electricity,(CIS) BRITISH GAS SERVICES LTD (34051491),13/12/2017, 363.51 
"Business, Development & Employment",Estates & Investment,Premises-Related Expenditure,R&M -Building Other,JCE & SONS LTD,18/12/2017, 263.08 
"Business, Development & Employment",Estates & Investment,Premises-Related Expenditure,R&M -Building Other,JCE & SONS LTD,04/12/2017, 147.20 
"Business, Development & Employment",Estates & Investment,Premises-Related Expenditure,R&M -Building Other,JCE & SONS LTD,06/12/2017, 125.36 
"Business, Development & Employment",Estates & Investment,Premises-Related Expenditure,R&M -Building Other,JCE & SONS LTD,06/12/2017, 779.13 
"Business, Development & Employment",Estates & Investment,Premises-Related Expenditure,R&M -Building Other,JCE & SONS LTD,06/12/2017, 777.28 
"Business, Development & Employment",Estates & Investment,Premises-Related Expenditure,R&M -Building Other,JCE & SONS LTD,06/12/2017, 730.18 
"Business, Development & Employment",Estates & Investment,Premises-Related Expenditure,R&M -Building Other,JCE & SONS LTD,06/12/2017, 915.36 
"Business, Development & Employment",Estates & Investment,Premises-Related Expenditure,R&M -Building Other,JCE & SONS LTD,21/12/2017, 153.52 
"Business, Development & Employment",Estates & Investment,Premises-Related Expenditure,R&M -Building Other,JCE & SONS LTD,06/12/2017," 1,895.11 "
"Business, Development & Employment",Estates & Investment,Premises-Related Expenditure,R&M -Building Other,WREKIN DRAIN SERVICES LTD,04/12/2017, 270.00 
"Business, Development & Employment",Estates & Investment,Premises-Related Expenditure,R&M -Building Other,WREKIN DRAIN SERVICES LTD,13/12/2017," 3,214.00 "
"Business, Development & Employment",Estates & Investment,Premises-Related Expenditure,R&M -Building Other,WREKIN DRAIN SERVICES LTD,19/12/2017," 1,039.96 "
"Business, Development & Employment",Estates & Investment,Premises-Related Expenditure,R&M -Building Other,Reacted Personal Information ,18/12/2017, 127.73 
"Business, Development & Employment",Estates & Investment,Premises-Related Expenditure,R&M -Building Other,Reacted Personal Information ,13/12/2017," 1,225.00 "
"Business, Development & Employment",Estates & Investment,Premises-Related Expenditure,Contract Cleaning,Reacted Personal Information ,12/12/2017, 188.18 
"Business, Development & Employment",Estates & Investment,Supplies & Services,Bulk Refuse Contracts Hire,FCC Recycling (UK) Ltd (39521486),18/12/2017," 1,197.30 "
"Business, Development & Employment",Estates & Investment,Premises-Related Expenditure,R&M -Building Other,FCC Recycling (UK) Ltd (39521486),12/12/2017, 319.80 
"Business, Development & Employment",Estates & Investment,Premises-Related Expenditure,Contract Cleaning,FCC Recycling (UK) Ltd (39521486),12/12/2017, 403.26 
"Business, Development & Employment",Estates & Investment,Premises-Related Expenditure,Contract Cleaning,BUSY BEE CLEANING,06/12/2017, 166.00 
"Business, Development & Employment",Estates & Investment,Premises-Related Expenditure,Grounds Maintenance - L&CS,BUSY BEE CLEANING,07/12/2017, 150.00 
"Business, Development & Employment",Estates & Investment,Premises-Related Expenditure,Window Cleaning,BUSY BEE CLEANING,07/12/2017, 240.00 
"Business, Development & Employment",Estates & Investment,Supplies & Services,Security Services,BUSINESS WATCH GUARDING LIMITED,13/12/2017, 362.19 
"Business, Development & Employment",Estates & Investment,Premises-Related Expenditure,Contract Cleaning,CLEANIT CLEANING SERVICES,12/12/2017, 498.33 
"Business, Development & Employment",Estates & Investment,Premises-Related Expenditure,Gas,E.ON (36166103),04/12/2017, 356.37 
"Business, Development & Employment",Estates & Investment,Premises-Related Expenditure,Window Cleaning,E.ON (36166103),18/12/2017," 3,708.88 "
"Business, Development & Employment",Estates & Investment,Supplies & Services,Security Services,LOCSAFE SECURITY SYSTEMS,21/12/2017, 159.00 
"Business, Development & Employment",Estates & Investment,Premises-Related Expenditure,Electricity,OPUS ENERGY LTD (electricity),20/12/2017, 180.54 
"Business, Development & Employment",Estates & Investment,Premises-Related Expenditure,Grounds Maintenance - L&CS,SPACECARE,12/12/2017, 111.00 
"Business, Development & Employment",Estates & Investment,Premises-Related Expenditure,R&M -Building Other,GO PLANT SWEEPERS T/A SHROPSHIRE ROADSWEEPERS,20/12/2017, 250.00 
"Business, Development & Employment",Estates & Investment,Premises-Related Expenditure,Grounds Maintenance - L&CS,GO PLANT SWEEPERS T/A SHROPSHIRE ROADSWEEPERS,21/12/2017, 259.25 
"Business, Development & Employment",Estates & Investment,Premises-Related Expenditure,Gas,TOTAL GAS & POWER LIMITED,13/12/2017," 1,010.58 "
"Business, Development & Employment",Estates & Investment,Premises-Related Expenditure,Gas,TOTAL GAS & POWER LIMITED,20/12/2017," 1,212.70 "
"Business, Development & Employment",Estates & Investment,Premises-Related Expenditure,Gas,TOTAL GAS & POWER LIMITED,21/12/2017,"-1,010.58 "
"Business, Development & Employment",Estates & Investment,Premises-Related Expenditure,Contract Cleaning,VEOLIA ES (UK) LTD,18/12/2017, 204.06 
"Business, Development & Employment",Estates & Investment,Premises-Related Expenditure,Contract Cleaning,VEOLIA ES (UK) LTD,18/12/2017, 273.33 
"Business, Development & Employment",Estates & Investment,Premises-Related Expenditure,Clean Mats & Toilet Requisites,VEOLIA ES (UK) LTD,19/12/2017, 106.86 
"Business, Development & Employment",Estates & Investment,Income,Fees & Charges General,BARBERS,18/12/2017, 744.15 
"Business, Development & Employment",Estates & Investment,Income,Service Charges,BARBERS,28/12/2017, 568.82 
"Business, Development & Employment",Estates & Investment,Premises-Related Expenditure,Service Contracts,APT SKIDATA LTD,18/12/2017, 455.00 
"Business, Development & Employment",Estates & Investment,Premises-Related Expenditure,Electricity,West Mercia Energy (WME),19/12/2017, 612.30 
"Business, Development & Employment",Estates & Investment,Premises-Related Expenditure,Gas,West Mercia Energy (WME),19/12/2017, 163.75 
"Business, Development & Employment",Estates & Investment,Premises-Related Expenditure,Electricity,West Mercia Energy (WME),19/12/2017, 401.85 
"Business, Development & Employment",Estates & Investment,Premises-Related Expenditure,Electricity,West Mercia Energy (WME),19/12/2017, 451.81 
"Business, Development & Employment",Estates & Investment,Premises-Related Expenditure,Gas,West Mercia Energy (WME),19/12/2017, 802.69 
"Business, Development & Employment",Estates & Investment,Premises-Related Expenditure,Electricity,West Mercia Energy (WME),19/12/2017, 905.30 
"Business, Development & Employment",Estates & Investment,Premises-Related Expenditure,Electricity,West Mercia Energy (WME),19/12/2017, 175.62 
"Business, Development & Employment",Estates & Investment,Premises-Related Expenditure,Electricity,West Mercia Energy (WME),19/12/2017, 150.30 
"Business, Development & Employment",Estates & Investment,Premises-Related Expenditure,Electricity,West Mercia Energy (WME),19/12/2017, 182.41 
"Business, Development & Employment",Estates & Investment,Premises-Related Expenditure,Electricity,West Mercia Energy (WME),20/12/2017, 669.96 
"Business, Development & Employment",Estates & Investment,Premises-Related Expenditure,Electricity,West Mercia Energy (WME),19/12/2017," 3,730.67 "
"Business, Development & Employment",Estates & Investment,Premises-Related Expenditure,Electricity,West Mercia Energy (WME),19/12/2017, 308.64 
"Business, Development & Employment",Estates & Investment,Premises-Related Expenditure,Gas,West Mercia Energy (WME),19/12/2017, 322.50 
"Business, Development & Employment",Estates & Investment,Premises-Related Expenditure,Planned Repairs,West Mercia Energy (WME),19/12/2017, 164.86 
"Business, Development & Employment",Estates & Investment,Premises-Related Expenditure,Electricity,West Mercia Energy (WME),19/12/2017, 203.68 
"Business, Development & Employment",Estates & Investment,Premises-Related Expenditure,Electricity,West Mercia Energy (WME),12/12/2017, 260.89 
"Business, Development & Employment",Estates & Investment,Premises-Related Expenditure,Electricity,West Mercia Energy (WME),18/12/2017, 649.88 
"Business, Development & Employment",Estates & Investment,Premises-Related Expenditure,Service Contracts,Bulleys,21/12/2017," 2,775.05 "
"Business, Development & Employment",Estates & Investment,Income,Service Charges,CHP Management Limited,12/12/2017," 1,975.04 "
"Business, Development & Employment",Estates & Investment,Income,Service Charges,St Modwen Developments Ltd (01028529),18/12/2017, 311.84 
"Business, Development & Employment",Estates & Investment,Income,Service Charges,St Modwen Developments Ltd (01028529),18/12/2017, 276.40 
"Business, Development & Employment",Estates & Investment,Income,Service Charges,St Modwen Developments Ltd (01028529),18/12/2017, 474.39 
"Business, Development & Employment",Estates & Investment,Income,Service Charges,St Modwen Developments Ltd (01028529),18/12/2017, 474.39 
"Business, Development & Employment",Estates & Investment,Third Party Payments,Voluntary Bodies,SEVERN GORGE COUNTRYSIDE TRUST,22/12/2017," 52,409.34 "
"Business, Development & Employment",Inward Investment & Business Support,Capital Expenditure,Payments to Contractor,BT PLC (10200158),13/12/2017," 717,553.77 "
"Business, Development & Employment",Inward Investment & Business Support,Employees,Training Expenses,UNIVERSITY OF WOLVERHAMPTON (80970905),12/12/2017," 4,260.00 "
"Business, Development & Employment",Inward Investment & Business Support,Supplies & Services,Equipment - Purchase,PROMOFIX LTD,22/12/2017," 2,285.00 "
"Business, Development & Employment",Inward Investment & Business Support,Supplies & Services,Other Grants (Expenses),Wave-length CIC,22/12/2017," 2,800.00 "
"Business, Development & Employment",Inward Investment & Business Support,Supplies & Services,Other Grants (Expenses),Start Up Enterprise Partnership Ltd,07/12/2017," 1,600.00 "
"Business, Development & Employment",Inward Investment & Business Support,Supplies & Services,Other Grants (Expenses),Start Up Enterprise Partnership Ltd,07/12/2017," 1,599.61 "
"Business, Development & Employment",Inward Investment & Business Support,Supplies & Services,Other Grants (Expenses),Good2Great Ltd,19/12/2017," 9,292.25 "
"Business, Development & Employment",Inward Investment & Business Support,Supplies & Services,Computer Software (Maint),Image Technique Limited,06/12/2017, 595.00 
"Business, Development & Employment",Inward Investment & Business Support,Supplies & Services,Other Grants (Expenses),Great Dawley Town Council,12/12/2017," 3,440.21 "
"Business, Development & Employment",Inward Investment & Business Support,Supplies & Services,Other Grants (Expenses),National Enterprise Challenge CIC,12/12/2017," 10,000.00 "
"Business, Development & Employment",Inward Investment & Business Support,Supplies & Services,Other Grants (Expenses),National Enterprise Challenge CIC,22/12/2017," 10,000.00 "
"Business, Development & Employment",Inward Investment & Business Support,Supplies & Services,Equipment - Purchase,National Enterprise Challenge CIC,22/12/2017, 245.00 
"Business, Development & Employment",Inward Investment & Business Support,Supplies & Services,Other Grants (Expenses),Cosgrove & Cosgrove Limited,01/12/2017," 2,673.75 "
"Business, Development & Employment",Inward Investment & Business Support,Supplies & Services,Marketing & Publicity,Story Comms Limited,12/12/2017," 1,666.67 "
"Business, Development & Employment",Skills,Premises-Related Expenditure,Hire Of Rooms,OAKENGATES TOWN COUNCIL,13/12/2017, 315.00 
"Business, Development & Employment",Skills,Supplies & Services,Equipment - Purchase,Ghekko LTD,28/12/2017, 140.00 
"Business, Development & Employment",Skills,Supplies & Services,Other Grants (Expenses),CHARLTON MEDICAL CENTRE,04/12/2017, 375.00 
"Business, Development & Employment",Skills,Supplies & Services,Fees,THE COPYRIGHT LICENSING AGENCY LTD,13/12/2017, 341.00 
"Business, Development & Employment",Skills,Supplies & Services,Other Grants (Expenses),CARRADICE CARE LTD,18/12/2017, 375.00 
"Business, Development & Employment",Skills,Premises-Related Expenditure,Hire Of Rooms,DONNINGTON PARTNERSHIP,13/12/2017, 808.50 
"Business, Development & Employment",Skills,Supplies & Services,Other Grants (Expenses),THE PHEASANT INN,20/12/2017, 250.00 
"Business, Development & Employment",Skills,Supplies & Services,Printing - Print Room,SILK GROUP LTD,13/12/2017," 1,450.00 "
"Business, Development & Employment",Skills,Third Party Payments,DSG - High Needs Block,Ruskin Mill Trust,28/12/2017," 44,441.33 "
"Business, Development & Employment",Skills,Premises-Related Expenditure,Hire Of Rooms,Dawley Town Hall,13/12/2017, 125.00 
"Business, Development & Employment",Skills,Supplies & Services,Other Grants (Expenses),The Red House,20/12/2017, 250.00 
"Business, Development & Employment",Skills,Supplies & Services,Other Grants (Expenses),Car Cliq,11/12/2017, 250.00 
"Business, Development & Employment",Skills,Premises-Related Expenditure,Hire Of Rooms,Sutton Hill Community Trust,13/12/2017, 142.50 
"Business, Development & Employment",Skills,Premises-Related Expenditure,Hire Of Rooms,Sutton Hill Community Trust,13/12/2017, 237.50 
Children's Safeguarding,Child Protection & Family Support,Supplies & Services,Other Services,ELMHURST PSYCHOLOGY LTD,28/12/2017, 484.00 
Children's Safeguarding,Child Protection & Family Support,Supplies & Services,Other Services,Gateway Psychology,01/12/2017, 540.00 
Children's Safeguarding,Child Protection & Family Support,Supplies & Services,Other Services,Gateway Psychology,12/12/2017, 450.75 
Children's Safeguarding,Child Protection & Family Support,Supplies & Services,Other Services,ALPHA BIOLABORATORIES LIMITED,12/12/2017, 370.00 
Children's Safeguarding,Child Protection & Family Support,Supplies & Services,Other Services,ALPHA BIOLABORATORIES LIMITED,12/12/2017, 420.00 
Children's Safeguarding,Child Protection & Family Support,Supplies & Services,Other Services,ALPHA BIOLABORATORIES LIMITED,12/12/2017, 148.75 
Children's Safeguarding,Child Protection & Family Support,Supplies & Services,Other Services,ALPHA BIOLABORATORIES LIMITED,12/12/2017, 204.17 
Children's Safeguarding,Child Protection & Family Support,Third Party Payments,Childminders,NOAH'S ARK NURS & AFTER SCH CLUB,12/12/2017, 228.64 
Children's Safeguarding,Child Protection & Family Support,Supplies & Services,CL - External Accommodation,Firs Riverside B & B,28/12/2017, 960.00 
Children's Safeguarding,Child Protection & Family Support,Supplies & Services,Other Services,DMR Services Ltd,28/12/2017," 4,504.50 "
Children's Safeguarding,Child Protection & Family Support,Supplies & Services,Translation Services,Premium Linguistic Services,04/12/2017, 110.00 
Children's Safeguarding,Child Protection & Family Support,Third Party Payments,Childminders,Reacted Personal Information ,12/12/2017, 135.00 
Children's Safeguarding,Child Protection & Family Support,Third Party Payments,Childminders,Reacted Personal Information ,12/12/2017, 269.50 
Children's Safeguarding,Child Protection & Family Support,Third Party Payments,Childminders,Reacted Personal Information ,28/12/2017, 225.00 
Children's Safeguarding,Child Protection & Family Support,Premises-Related Expenditure,Bed & Breakfast Charges,D & AM Tincknell T/A Willow House,12/12/2017," 1,050.00 "
Children's Safeguarding,Child Protection & Family Support,Premises-Related Expenditure,Bed & Breakfast Charges,D & AM Tincknell T/A Willow House,12/12/2017, 350.00 
Children's Safeguarding,Child Protection & Family Support,Premises-Related Expenditure,Bed & Breakfast Charges,D & AM Tincknell T/A Willow House,28/12/2017, 350.00 
Children's Safeguarding,Child Protection & Family Support,Premises-Related Expenditure,Bed & Breakfast Charges,D & AM Tincknell T/A Willow House,28/12/2017, 350.00 
Children's Safeguarding,Child Protection & Family Support,Supplies & Services,Legal,Bhatia Best Solicitors,08/12/2017," 25,467.32 "
Children's Safeguarding,Family Connect,Employees,Staff Training,SHROPSHIRE COUNCIL (55636551),11/12/2017, 110.00 
Children's Safeguarding,"Family Placements, Children in Care, Leaving Care & Emergency Duty Team",Supplies & Services,Consultants Fees,Reacted Personal Information ,06/12/2017, 113.27 
Children's Safeguarding,"Family Placements, Children in Care, Leaving Care & Emergency Duty Team",Supplies & Services,Supportive Lodgings,BROMFORD HOUSING ASSOCIATION LIMITED,20/12/2017," 1,267.38 "
Children's Safeguarding,"Family Placements, Children in Care, Leaving Care & Emergency Duty Team",Supplies & Services,Supportive Lodgings,BROMFORD HOUSING ASSOCIATION LIMITED,20/12/2017, 752.64 
Children's Safeguarding,"Family Placements, Children in Care, Leaving Care & Emergency Duty Team",Supplies & Services,Doctors Fees,DONNINGTON MEDICAL PRACTICE,18/12/2017, 150.00 
Children's Safeguarding,"Family Placements, Children in Care, Leaving Care & Emergency Duty Team",Employees,Training Expenses,SHROPSHIRE COUNCIL (55636551),27/12/2017, 150.00 
Children's Safeguarding,"Family Placements, Children in Care, Leaving Care & Emergency Duty Team",Employees,Staff Training,STAFFORDSHIRE COUNTY COUNCIL,01/12/2017, 600.00 
Children's Safeguarding,"Family Placements, Children in Care, Leaving Care & Emergency Duty Team",Employees,Course Fees,UNIVERSITY OF WOLVERHAMPTON (80970905),19/12/2017, 290.59 
Children's Safeguarding,"Family Placements, Children in Care, Leaving Care & Emergency Duty Team",Employees,Course Fees,UNIVERSITY OF WOLVERHAMPTON (80970905),19/12/2017, 581.18 
Children's Safeguarding,"Family Placements, Children in Care, Leaving Care & Emergency Duty Team",Employees,Course Fees,UNIVERSITY OF WOLVERHAMPTON (80970905),19/12/2017, 581.18 
Children's Safeguarding,"Family Placements, Children in Care, Leaving Care & Emergency Duty Team",Employees,Course Fees,UNIVERSITY OF WOLVERHAMPTON (80970905),19/12/2017, 581.18 
Children's Safeguarding,"Family Placements, Children in Care, Leaving Care & Emergency Duty Team",Employees,Course Fees,UNIVERSITY OF WOLVERHAMPTON (80970905),19/12/2017, 290.59 
Children's Safeguarding,"Family Placements, Children in Care, Leaving Care & Emergency Duty Team",Employees,Course Fees,UNIVERSITY OF WOLVERHAMPTON (80970905),19/12/2017, 581.18 
Children's Safeguarding,"Family Placements, Children in Care, Leaving Care & Emergency Duty Team",Employees,Course Fees,UNIVERSITY OF WOLVERHAMPTON (80970905),19/12/2017, 581.18 
Children's Safeguarding,"Family Placements, Children in Care, Leaving Care & Emergency Duty Team",Third Party Payments,External Foster Care Payments,Childcare Bureau,14/12/2017," 4,047.98 "
Children's Safeguarding,"Family Placements, Children in Care, Leaving Care & Emergency Duty Team",Third Party Payments,External Foster Care Payments,Childcare Bureau,06/12/2017," 3,917.40 "
Children's Safeguarding,"Family Placements, Children in Care, Leaving Care & Emergency Duty Team",Third Party Payments,Residential Expenditure,Oracle Care Limited,14/12/2017," 19,928.57 "
Children's Safeguarding,"Family Placements, Children in Care, Leaving Care & Emergency Duty Team",Supplies & Services,CL - Clothing Allowance,Northumberland County Council,15/12/2017, 150.00 
Children's Safeguarding,"Family Placements, Children in Care, Leaving Care & Emergency Duty Team",Supplies & Services,CL - Clothing Allowance,Northumberland County Council,15/12/2017, 150.00 
Children's Safeguarding,"Family Placements, Children in Care, Leaving Care & Emergency Duty Team",Third Party Payments,Residential Expenditure,Northumberland County Council,14/12/2017," 25,050.00 "
Children's Safeguarding,"Family Placements, Children in Care, Leaving Care & Emergency Duty Team",Third Party Payments,Agency Services,NESTOR PRIMECARE SERVICES LTD T/A ALLIED HEALTHCARE,12/12/2017, 114.68 
Children's Safeguarding,"Family Placements, Children in Care, Leaving Care & Emergency Duty Team",Third Party Payments,Agency Services,NESTOR PRIMECARE SERVICES LTD T/A ALLIED HEALTHCARE,12/12/2017, 420.66 
Children's Safeguarding,"Family Placements, Children in Care, Leaving Care & Emergency Duty Team",Third Party Payments,Agency Services,NESTOR PRIMECARE SERVICES LTD T/A ALLIED HEALTHCARE,28/12/2017, 358.00 
Children's Safeguarding,"Family Placements, Children in Care, Leaving Care & Emergency Duty Team",Third Party Payments,Agency Services,NESTOR PRIMECARE SERVICES LTD T/A ALLIED HEALTHCARE,28/12/2017, 153.00 
Children's Safeguarding,"Family Placements, Children in Care, Leaving Care & Emergency Duty Team",Third Party Payments,External Foster Care Payments,ABC FOSTERING SERVICES LTD,06/12/2017," 3,342.86 "
Children's Safeguarding,"Family Placements, Children in Care, Leaving Care & Emergency Duty Team",Third Party Payments,External Foster Care Payments,ABC FOSTERING SERVICES LTD,08/12/2017," 1,737.85 "
Children's Safeguarding,"Family Placements, Children in Care, Leaving Care & Emergency Duty Team",Third Party Payments,External Foster Care Payments,ABC FOSTERING SERVICES LTD,08/12/2017," 3,328.10 "
Children's Safeguarding,"Family Placements, Children in Care, Leaving Care & Emergency Duty Team",Third Party Payments,Agency Services,DISCLOSURE & BARRING SERVICE,28/12/2017, 222.60 
Children's Safeguarding,"Family Placements, Children in Care, Leaving Care & Emergency Duty Team",Third Party Payments,External Foster Care Payments,CLIFFORD HOUSE FOSTERING LTD,08/12/2017," 6,407.10 "
Children's Safeguarding,"Family Placements, Children in Care, Leaving Care & Emergency Duty Team",Third Party Payments,External Foster Care Payments,CLIFFORD HOUSE FOSTERING LTD,08/12/2017," 1,257.08 "
Children's Safeguarding,"Family Placements, Children in Care, Leaving Care & Emergency Duty Team",Third Party Payments,Residential Expenditure,HORIZON CARE & EDUCATION GROUP LTD,14/12/2017," 13,644.34 "
Children's Safeguarding,"Family Placements, Children in Care, Leaving Care & Emergency Duty Team",Third Party Payments,External Foster Care Payments,FOSTER CARE ASSOCIATES LTD,14/12/2017," 3,264.30 "
Children's Safeguarding,"Family Placements, Children in Care, Leaving Care & Emergency Duty Team",Third Party Payments,External Foster Care Payments,FOSTER CARE ASSOCIATES LTD,14/12/2017," 3,136.42 "
Children's Safeguarding,"Family Placements, Children in Care, Leaving Care & Emergency Duty Team",Third Party Payments,External Foster Care Payments,FOSTER CARE ASSOCIATES LTD,14/12/2017," 3,180.60 "
Children's Safeguarding,"Family Placements, Children in Care, Leaving Care & Emergency Duty Team",Third Party Payments,External Foster Care Payments,FOSTER CARE ASSOCIATES LTD,15/12/2017," 3,264.30 "
Children's Safeguarding,"Family Placements, Children in Care, Leaving Care & Emergency Duty Team",Third Party Payments,External Foster Care Payments,FOSTER CARE ASSOCIATES LTD,19/12/2017," 3,449.68 "
Children's Safeguarding,"Family Placements, Children in Care, Leaving Care & Emergency Duty Team",Third Party Payments,External Foster Care Payments,FOSTER CARE ASSOCIATES LTD,19/12/2017," 3,198.27 "
Children's Safeguarding,"Family Placements, Children in Care, Leaving Care & Emergency Duty Team",Third Party Payments,External Foster Care Payments,FOSTER CARE ASSOCIATES LTD,20/12/2017," 3,000.74 "
Children's Safeguarding,"Family Placements, Children in Care, Leaving Care & Emergency Duty Team",Third Party Payments,External Foster Care Payments,FOSTER CARE ASSOCIATES LTD,20/12/2017," 3,264.30 "
Children's Safeguarding,"Family Placements, Children in Care, Leaving Care & Emergency Duty Team",Third Party Payments,External Foster Care Payments,FOSTER CARE ASSOCIATES LTD,19/12/2017," 4,113.97 "
Children's Safeguarding,"Family Placements, Children in Care, Leaving Care & Emergency Duty Team",Third Party Payments,External Foster Care Payments,FOSTER CARE ASSOCIATES LTD,19/12/2017," 3,234.10 "
Children's Safeguarding,"Family Placements, Children in Care, Leaving Care & Emergency Duty Team",Third Party Payments,External Foster Care Payments,FOSTER CARE ASSOCIATES LTD,19/12/2017," 3,317.00 "
Children's Safeguarding,"Family Placements, Children in Care, Leaving Care & Emergency Duty Team",Third Party Payments,External Foster Care Payments,FOSTER CARE ASSOCIATES LTD,19/12/2017," 3,000.74 "
Children's Safeguarding,"Family Placements, Children in Care, Leaving Care & Emergency Duty Team",Third Party Payments,External Foster Care Payments,FOSTER CARE ASSOCIATES LTD,19/12/2017," 4,915.79 "
Children's Safeguarding,"Family Placements, Children in Care, Leaving Care & Emergency Duty Team",Third Party Payments,External Foster Care Payments,FOSTER CARE ASSOCIATES LTD,20/12/2017, 625.95 
Children's Safeguarding,"Family Placements, Children in Care, Leaving Care & Emergency Duty Team",Third Party Payments,External Foster Care Payments,FAMILIES@FAMILYCARE (83808750),20/12/2017," 2,793.10 "
Children's Safeguarding,"Family Placements, Children in Care, Leaving Care & Emergency Duty Team",Third Party Payments,External Foster Care Payments,FAMILIES@FAMILYCARE (83808750),20/12/2017," 2,793.14 "
Children's Safeguarding,"Family Placements, Children in Care, Leaving Care & Emergency Duty Team",Third Party Payments,External Foster Care Payments,FAMILIES@FAMILYCARE (83808750),21/12/2017," 2,962.32 "
Children's Safeguarding,"Family Placements, Children in Care, Leaving Care & Emergency Duty Team",Third Party Payments,External Foster Care Payments,FAMILIES@FAMILYCARE (83808750),21/12/2017," 3,216.23 "
Children's Safeguarding,"Family Placements, Children in Care, Leaving Care & Emergency Duty Team",Third Party Payments,External Foster Care Payments,FAMILIES@FAMILYCARE (83808750),21/12/2017," 2,962.32 "
Children's Safeguarding,"Family Placements, Children in Care, Leaving Care & Emergency Duty Team",Third Party Payments,External Foster Care Payments,FOSTERING SOLUTIONS LTD,14/12/2017," 3,493.70 "
Children's Safeguarding,"Family Placements, Children in Care, Leaving Care & Emergency Duty Team",Third Party Payments,External Foster Care Payments,FOSTERING SOLUTIONS LTD,14/12/2017," 3,493.70 "
Children's Safeguarding,"Family Placements, Children in Care, Leaving Care & Emergency Duty Team",Third Party Payments,External Foster Care Payments,FOSTERING SOLUTIONS LTD,14/12/2017," 3,363.37 "
Children's Safeguarding,"Family Placements, Children in Care, Leaving Care & Emergency Duty Team",Third Party Payments,External Foster Care Payments,FOSTERING SOLUTIONS LTD,13/12/2017," 3,376.74 "
Children's Safeguarding,"Family Placements, Children in Care, Leaving Care & Emergency Duty Team",Third Party Payments,External Foster Care Payments,FAMILY FOSTER CARE LTD,05/12/2017, 346.08 
Children's Safeguarding,"Family Placements, Children in Care, Leaving Care & Emergency Duty Team",Third Party Payments,External Foster Care Payments,ORANGE GROVE FOSTERCARE LTD,15/12/2017," 3,498.66 "
Children's Safeguarding,"Family Placements, Children in Care, Leaving Care & Emergency Duty Team",Third Party Payments,External Foster Care Payments,ORANGE GROVE FOSTERCARE LTD,15/12/2017," 3,498.66 "
Children's Safeguarding,"Family Placements, Children in Care, Leaving Care & Emergency Duty Team",Third Party Payments,External Foster Care Payments,ORANGE GROVE FOSTERCARE LTD,15/12/2017," 2,767.99 "
Children's Safeguarding,"Family Placements, Children in Care, Leaving Care & Emergency Duty Team",Third Party Payments,External Foster Care Payments,ORANGE GROVE FOSTERCARE LTD,15/12/2017," 5,247.99 "
Children's Safeguarding,"Family Placements, Children in Care, Leaving Care & Emergency Duty Team",Third Party Payments,External Foster Care Payments,ORANGE GROVE FOSTERCARE LTD,18/12/2017," 5,513.66 "
Children's Safeguarding,"Family Placements, Children in Care, Leaving Care & Emergency Duty Team",Third Party Payments,External Foster Care Payments,ORANGE GROVE FOSTERCARE LTD,18/12/2017," 3,498.66 "
Children's Safeguarding,"Family Placements, Children in Care, Leaving Care & Emergency Duty Team",Third Party Payments,External Foster Care Payments,ORANGE GROVE FOSTERCARE LTD,20/12/2017," 3,449.99 "
Children's Safeguarding,"Family Placements, Children in Care, Leaving Care & Emergency Duty Team",Third Party Payments,Residential Expenditure,KEYS CHILDCARE LTD,14/12/2017," 15,721.34 "
Children's Safeguarding,"Family Placements, Children in Care, Leaving Care & Emergency Duty Team",Premises-Related Expenditure,Other,MEETING POINT TRUST LTD,14/12/2017, 104.00 
Children's Safeguarding,"Family Placements, Children in Care, Leaving Care & Emergency Duty Team",Third Party Payments,Residential Expenditure,NEW HORIZONS CHILD CARE LTD,14/12/2017," 15,057.01 "
Children's Safeguarding,"Family Placements, Children in Care, Leaving Care & Emergency Duty Team",Third Party Payments,External Foster Care Payments,NATIONAL FOSTERING AGENCY,06/12/2017," 3,338.70 "
Children's Safeguarding,"Family Placements, Children in Care, Leaving Care & Emergency Duty Team",Third Party Payments,External Foster Care Payments,NATIONAL FOSTERING AGENCY,06/12/2017," 3,065.10 "
Children's Safeguarding,"Family Placements, Children in Care, Leaving Care & Emergency Duty Team",Third Party Payments,External Foster Care Payments,NATIONAL FOSTERING AGENCY,06/12/2017," 3,065.10 "
Children's Safeguarding,"Family Placements, Children in Care, Leaving Care & Emergency Duty Team",Third Party Payments,Agency Services,PROGRESS CHILDREN'S SERVICES LTD,28/12/2017, 590.00 
Children's Safeguarding,"Family Placements, Children in Care, Leaving Care & Emergency Duty Team",Third Party Payments,External Foster Care Payments,PHOENIX FOSTERING,13/12/2017," 6,532.01 "
Children's Safeguarding,"Family Placements, Children in Care, Leaving Care & Emergency Duty Team",Third Party Payments,Residential Expenditure,PRESTIGE ADOLESCENT CARE & EDUCATION,14/12/2017," 11,957.32 "
Children's Safeguarding,"Family Placements, Children in Care, Leaving Care & Emergency Duty Team",Third Party Payments,Residential Expenditure,PRESTIGE ADOLESCENT CARE & EDUCATION,28/12/2017," 11,957.32 "
Children's Safeguarding,"Family Placements, Children in Care, Leaving Care & Emergency Duty Team",Supplies & Services,Stationery,RUNTIME (UK) LTD,06/12/2017, 182.00 
Children's Safeguarding,"Family Placements, Children in Care, Leaving Care & Emergency Duty Team",Supplies & Services,Equipment - Purchase,G & S SMIRTHWAITE LTD,12/12/2017,-557.00 
Children's Safeguarding,"Family Placements, Children in Care, Leaving Care & Emergency Duty Team",Supplies & Services,Equipment - Purchase,G & S SMIRTHWAITE LTD,05/12/2017, 485.00 
Children's Safeguarding,"Family Placements, Children in Care, Leaving Care & Emergency Duty Team",Supplies & Services,Supportive Lodgings,STAY TELFORD XC SUPPORTED HOUSE,08/12/2017, 121.84 
Children's Safeguarding,"Family Placements, Children in Care, Leaving Care & Emergency Duty Team",Third Party Payments,External Foster Care Payments,SWIIS FOSTER CARE LTD,14/12/2017," 3,240.00 "
Children's Safeguarding,"Family Placements, Children in Care, Leaving Care & Emergency Duty Team",Third Party Payments,External Foster Care Payments,SWIIS FOSTER CARE LTD,14/12/2017," 2,854.20 "
Children's Safeguarding,"Family Placements, Children in Care, Leaving Care & Emergency Duty Team",Third Party Payments,Residential Expenditure,Options College Shifnal (BESD (1)),06/12/2017," 14,847.94 "
Children's Safeguarding,"Family Placements, Children in Care, Leaving Care & Emergency Duty Team",Supplies & Services,Legal Expenses,CLARKES SOLICITORS,14/12/2017, 300.00 
Children's Safeguarding,"Family Placements, Children in Care, Leaving Care & Emergency Duty Team",Third Party Payments,External Foster Care Payments,By The Bridge,14/12/2017," 4,424.14 "
Children's Safeguarding,"Family Placements, Children in Care, Leaving Care & Emergency Duty Team",Supplies & Services,Advertising,News UK & Ireland Ltd,04/12/2017," 1,600.00 "
Children's Safeguarding,"Family Placements, Children in Care, Leaving Care & Emergency Duty Team",Third Party Payments,External Foster Care Payments,RED KITE FOSTERING,15/12/2017," 5,380.67 "
Children's Safeguarding,"Family Placements, Children in Care, Leaving Care & Emergency Duty Team",Third Party Payments,External Foster Care Payments,RED KITE FOSTERING,15/12/2017," 5,247.86 "
Children's Safeguarding,"Family Placements, Children in Care, Leaving Care & Emergency Duty Team",Third Party Payments,External Foster Care Payments,RED KITE FOSTERING,18/12/2017," 4,362.14 "
Children's Safeguarding,"Family Placements, Children in Care, Leaving Care & Emergency Duty Team",Third Party Payments,External Foster Care Payments,RED KITE FOSTERING,18/12/2017," 2,922.64 "
Children's Safeguarding,"Family Placements, Children in Care, Leaving Care & Emergency Duty Team",Third Party Payments,External Foster Care Payments,RED KITE FOSTERING,18/12/2017," 5,247.86 "
Children's Safeguarding,"Family Placements, Children in Care, Leaving Care & Emergency Duty Team",Third Party Payments,External Foster Care Payments,RED KITE FOSTERING,20/12/2017," 1,915.00 "
Children's Safeguarding,"Family Placements, Children in Care, Leaving Care & Emergency Duty Team",Third Party Payments,External Foster Care Payments,RED KITE FOSTERING,20/12/2017," 1,532.00 "
Children's Safeguarding,"Family Placements, Children in Care, Leaving Care & Emergency Duty Team",Third Party Payments,External Foster Care Payments,NEXUS FOSTERING,15/12/2017," 3,602.20 "
Children's Safeguarding,"Family Placements, Children in Care, Leaving Care & Emergency Duty Team",Third Party Payments,External Foster Care Payments,NEXUS FOSTERING,15/12/2017," 3,162.00 "
Children's Safeguarding,"Family Placements, Children in Care, Leaving Care & Emergency Duty Team",Third Party Payments,External Foster Care Payments,PARK FOSTER CARE,05/12/2017," 3,257.14 "
Children's Safeguarding,"Family Placements, Children in Care, Leaving Care & Emergency Duty Team",Third Party Payments,External Foster Care Payments,PARK FOSTER CARE,05/12/2017," 3,240.00 "
Children's Safeguarding,"Family Placements, Children in Care, Leaving Care & Emergency Duty Team",Third Party Payments,External Foster Care Payments,PARK FOSTER CARE,06/12/2017," 3,458.70 "
Children's Safeguarding,"Family Placements, Children in Care, Leaving Care & Emergency Duty Team",Third Party Payments,External Foster Care Payments,PARK FOSTER CARE,06/12/2017," 3,309.60 "
Children's Safeguarding,"Family Placements, Children in Care, Leaving Care & Emergency Duty Team",Third Party Payments,External Foster Care Payments,PARK FOSTER CARE,06/12/2017," 2,916.00 "
Children's Safeguarding,"Family Placements, Children in Care, Leaving Care & Emergency Duty Team",Third Party Payments,External Foster Care Payments,PARK FOSTER CARE,20/12/2017," 3,365.71 "
Children's Safeguarding,"Family Placements, Children in Care, Leaving Care & Emergency Duty Team",Third Party Payments,External Foster Care Payments,PARK FOSTER CARE,20/12/2017," 3,348.00 "
Children's Safeguarding,"Family Placements, Children in Care, Leaving Care & Emergency Duty Team",Third Party Payments,External Foster Care Payments,PARK FOSTER CARE,20/12/2017," 3,013.20 "
Children's Safeguarding,"Family Placements, Children in Care, Leaving Care & Emergency Duty Team",Third Party Payments,External Foster Care Payments,PARK FOSTER CARE,21/12/2017," 3,573.99 "
Children's Safeguarding,"Family Placements, Children in Care, Leaving Care & Emergency Duty Team",Third Party Payments,External Foster Care Payments,PARK FOSTER CARE,21/12/2017," 3,419.92 "
Children's Safeguarding,"Family Placements, Children in Care, Leaving Care & Emergency Duty Team",Third Party Payments,Residential Expenditure,MGM CARE SERVICES LTD,01/12/2017," 16,971.24 "
Children's Safeguarding,"Family Placements, Children in Care, Leaving Care & Emergency Duty Team",Third Party Payments,Residential Expenditure,MGM CARE SERVICES LTD,21/12/2017," 6,942.78 "
Children's Safeguarding,"Family Placements, Children in Care, Leaving Care & Emergency Duty Team",Third Party Payments,Residential Expenditure,MGM CARE SERVICES LTD,21/12/2017," 11,957.01 "
Children's Safeguarding,"Family Placements, Children in Care, Leaving Care & Emergency Duty Team",Third Party Payments,Residential Expenditure,REGIONAL FOSTER PLACEMENTS,15/12/2017," 3,107.10 "
Children's Safeguarding,"Family Placements, Children in Care, Leaving Care & Emergency Duty Team",Third Party Payments,Residential Expenditure,REGIONAL FOSTER PLACEMENTS,20/12/2017," 3,107.10 "
Children's Safeguarding,"Family Placements, Children in Care, Leaving Care & Emergency Duty Team",Supplies & Services,Complaints,Coram Children's Legal Centre,27/12/2017, 200.00 
Children's Safeguarding,"Family Placements, Children in Care, Leaving Care & Emergency Duty Team",Third Party Payments,Residential Expenditure,CARE TODAY CHILDRENS SERVICES,12/12/2017," 12,192.90 "
Children's Safeguarding,"Family Placements, Children in Care, Leaving Care & Emergency Duty Team",Third Party Payments,Residential Expenditure,CARE TODAY CHILDRENS SERVICES,12/12/2017," 2,948.70 "
Children's Safeguarding,"Family Placements, Children in Care, Leaving Care & Emergency Duty Team",Third Party Payments,External Foster Care Payments,COMPASS FOSTERING CENTRAL LTD,13/12/2017," 3,309.56 "
Children's Safeguarding,"Family Placements, Children in Care, Leaving Care & Emergency Duty Team",Third Party Payments,External Foster Care Payments,Prospects for Young People Ltd,01/12/2017, 170.00 
Children's Safeguarding,"Family Placements, Children in Care, Leaving Care & Emergency Duty Team",Supplies & Services,Supportive Lodgings,Keys 16 Plus ILS Ltd,08/12/2017," 1,984.20 "
Children's Safeguarding,"Family Placements, Children in Care, Leaving Care & Emergency Duty Team",Supplies & Services,CL - Basic Allowance,Keys 16 Plus ILS Ltd,05/12/2017, 248.10 
Children's Safeguarding,"Family Placements, Children in Care, Leaving Care & Emergency Duty Team",Third Party Payments,Residential Expenditure,Unity Residential Care Services Ltd,13/12/2017," 12,772.00 "
Children's Safeguarding,"Family Placements, Children in Care, Leaving Care & Emergency Duty Team",Third Party Payments,Residential Expenditure,Unity Residential Care Services Ltd,06/12/2017," 11,647.01 "
Children's Safeguarding,"Family Placements, Children in Care, Leaving Care & Emergency Duty Team",Premises-Related Expenditure,Hire Of Rooms,RAMADA TELFORD IRONBRIDGE,27/12/2017," 3,026.25 "
Children's Safeguarding,"Family Placements, Children in Care, Leaving Care & Emergency Duty Team",Third Party Payments,Residential Expenditure,Coram Voice,08/12/2017, 845.70 
Children's Safeguarding,"Family Placements, Children in Care, Leaving Care & Emergency Duty Team",Third Party Payments,Residential Expenditure,Coram Voice,08/12/2017, 452.05 
Children's Safeguarding,"Family Placements, Children in Care, Leaving Care & Emergency Duty Team",Third Party Payments,External Foster Care Payments,Children Always First,06/12/2017," 3,514.29 "
Children's Safeguarding,"Family Placements, Children in Care, Leaving Care & Emergency Duty Team",Third Party Payments,External Foster Care Payments,Children Always First,06/12/2017," 3,364.29 "
Children's Safeguarding,"Family Placements, Children in Care, Leaving Care & Emergency Duty Team",Third Party Payments,External Foster Care Payments,Children Always First,06/12/2017," 3,150.00 "
Children's Safeguarding,"Family Placements, Children in Care, Leaving Care & Emergency Duty Team",Third Party Payments,External Foster Care Payments,Children Always First,07/12/2017," 3,263.36 "
Children's Safeguarding,"Family Placements, Children in Care, Leaving Care & Emergency Duty Team",Third Party Payments,External Foster Care Payments,Abacus Fostering Limited,14/12/2017," 4,384.29 "
Children's Safeguarding,"Family Placements, Children in Care, Leaving Care & Emergency Duty Team",Third Party Payments,Residential Expenditure,Future in Mind Ltd,14/12/2017," 15,500.00 "
Children's Safeguarding,"Family Placements, Children in Care, Leaving Care & Emergency Duty Team",Third Party Payments,External Foster Care Payments,St Christopher's Fellowship,20/12/2017," 3,406.90 "
Children's Safeguarding,"Family Placements, Children in Care, Leaving Care & Emergency Duty Team",Third Party Payments,External Foster Care Payments,St Christopher's Fellowship,27/12/2017," 3,406.90 "
Children's Safeguarding,"Family Placements, Children in Care, Leaving Care & Emergency Duty Team",Third Party Payments,Agency Services,Caretech LTD T/A Inspire (Acorn House),14/12/2017, 744.52 
Children's Safeguarding,"Family Placements, Children in Care, Leaving Care & Emergency Duty Team",Third Party Payments,Agency Services,Caretech LTD T/A Inspire (Acorn House),11/12/2017," 4,735.08 "
Children's Safeguarding,"Family Placements, Children in Care, Leaving Care & Emergency Duty Team",Third Party Payments,Agency Services,Caretech LTD T/A Inspire (Acorn House),11/12/2017," 4,735.08 "
Children's Safeguarding,"Family Placements, Children in Care, Leaving Care & Emergency Duty Team",Third Party Payments,Agency Services,Caretech LTD T/A Inspire (Acorn House),12/12/2017, 789.18 
Children's Safeguarding,"Family Placements, Children in Care, Leaving Care & Emergency Duty Team",Third Party Payments,Agency Services,Caretech LTD T/A Inspire (Acorn House),28/12/2017," 1,183.77 "
Children's Safeguarding,"Family Placements, Children in Care, Leaving Care & Emergency Duty Team",Third Party Payments,Agency Services,Caretech LTD T/A Inspire (Acorn House),28/12/2017, 691.39 
Children's Safeguarding,"Family Placements, Children in Care, Leaving Care & Emergency Duty Team",Third Party Payments,Agency Services,Caretech LTD T/A Inspire (Acorn House),28/12/2017," 1,038.80 "
Children's Safeguarding,"Family Placements, Children in Care, Leaving Care & Emergency Duty Team",Third Party Payments,Agency Services,Caretech LTD T/A Inspire (Acorn House),28/12/2017, 394.59 
Children's Safeguarding,"Family Placements, Children in Care, Leaving Care & Emergency Duty Team",Third Party Payments,Agency Services,Caretech LTD T/A Inspire (Acorn House),28/12/2017," 11,837.70 "
Children's Safeguarding,"Family Placements, Children in Care, Leaving Care & Emergency Duty Team",Third Party Payments,External Foster Care Payments,Match Foster Care Ltd,15/12/2017," 4,366.66 "
Children's Safeguarding,"Family Placements, Children in Care, Leaving Care & Emergency Duty Team",Supplies & Services,Doctors Fees,TELDOC Partnership,14/12/2017, 170.00 
Children's Safeguarding,"Family Placements, Children in Care, Leaving Care & Emergency Duty Team",Supplies & Services,Doctors Fees,TELDOC Partnership,14/12/2017, 170.00 
Children's Safeguarding,"Family Placements, Children in Care, Leaving Care & Emergency Duty Team",Supplies & Services,Supportive Lodgings,Monarch Intervention Services Ltd,14/12/2017," 4,000.00 "
Children's Safeguarding,"Family Placements, Children in Care, Leaving Care & Emergency Duty Team",Supplies & Services,CL - Basic Allowance,Monarch Intervention Services Ltd,14/12/2017, 231.60 
Children's Safeguarding,"Family Placements, Children in Care, Leaving Care & Emergency Duty Team",Third Party Payments,Residential Expenditure,Positive Outcomes Childcare Ltd,14/12/2017," 9,742.99 "
Children's Safeguarding,"Family Placements, Children in Care, Leaving Care & Emergency Duty Team",Supplies & Services,Supportive Lodgings,Teen Support Services Ltd,07/12/2017," 2,978.40 "
Children's Safeguarding,"Family Placements, Children in Care, Leaving Care & Emergency Duty Team",Third Party Payments,Childminders,Bojangles Nursery (West Midlands)Ltd,21/12/2017, 531.00 
Children's Safeguarding,"Family Placements, Children in Care, Leaving Care & Emergency Duty Team",Transfer Payments,Leaving Care Grant,Regional Homes Ltd,18/12/2017, 600.00 
Children's Safeguarding,"Family Placements, Children in Care, Leaving Care & Emergency Duty Team",Third Party Payments,Residential Expenditure,Reacted Personal Information ,21/12/2017," 4,925.16 "
Children's Safeguarding,"Family Placements, Children in Care, Leaving Care & Emergency Duty Team",Third Party Payments,External Foster Care Payments,The Children's Family Trust,20/12/2017," 2,678.50 "
Children's Safeguarding,Safeguarding Advisory,Employees,Training Expenses,MEETING POINT TRUST LTD,15/12/2017, 128.88 
Children's Safeguarding,Safeguarding Advisory,Supplies & Services,CL - Basic Allowance,Care Solutions Ltd,20/12/2017, 289.50 
Children's Safeguarding,Safeguarding Advisory,Supplies & Services,Supportive Lodgings,Care Solutions Ltd,20/12/2017, 642.90 
Children's Safeguarding,Safeguarding Advisory,Supplies & Services,Supportive Lodgings,Care Solutions Ltd,20/12/2017," 1,350.00 "
Children's Safeguarding,Safeguarding Advisory,Supplies & Services,CL - Basic Allowance,Care Solutions Ltd,08/12/2017, 231.60 
Children's Safeguarding,Safeguarding Advisory,Supplies & Services,Supportive Lodgings,Care Solutions Ltd,08/12/2017," 1,395.00 "
Commercial Services,Catering,Premises-Related Expenditure,Clean Mats & Toilet Requisites,Border Janitorial Supplies Limited,01/12/2017, 109.12 
Commercial Services,Catering,Premises-Related Expenditure,Clean Mats & Toilet Requisites,Border Janitorial Supplies Limited,01/12/2017, 106.51 
Commercial Services,Catering,Premises-Related Expenditure,Clean Mats & Toilet Requisites,Border Janitorial Supplies Limited,01/12/2017, 196.83 
Commercial Services,Catering,Premises-Related Expenditure,Clean Mats & Toilet Requisites,Border Janitorial Supplies Limited,01/12/2017, 139.82 
Commercial Services,Catering,Premises-Related Expenditure,Clean Mats & Toilet Requisites,Border Janitorial Supplies Limited,01/12/2017, 260.00 
Commercial Services,Catering,Premises-Related Expenditure,Clean Mats & Toilet Requisites,Border Janitorial Supplies Limited,01/12/2017, 113.19 
Commercial Services,Catering,Premises-Related Expenditure,Clean Mats & Toilet Requisites,Border Janitorial Supplies Limited,21/12/2017, 114.86 
Commercial Services,Catering,Premises-Related Expenditure,Clean Mats & Toilet Requisites,Border Janitorial Supplies Limited,21/12/2017, 131.04 
Commercial Services,Catering,Premises-Related Expenditure,Clean Mats & Toilet Requisites,Border Janitorial Supplies Limited,21/12/2017, 102.56 
Commercial Services,Catering,Premises-Related Expenditure,Clean Mats & Toilet Requisites,Border Janitorial Supplies Limited,21/12/2017, 137.56 
Commercial Services,Catering,Premises-Related Expenditure,Clean Mats & Toilet Requisites,Border Janitorial Supplies Limited,21/12/2017, 223.48 
Commercial Services,Catering,Premises-Related Expenditure,Clean Mats & Toilet Requisites,Border Janitorial Supplies Limited,21/12/2017, 111.14 
Commercial Services,Catering,Premises-Related Expenditure,Clean Mats & Toilet Requisites,Border Janitorial Supplies Limited,21/12/2017, 220.77 
Commercial Services,Catering,Premises-Related Expenditure,Clean Mats & Toilet Requisites,Border Janitorial Supplies Limited,21/12/2017, 159.16 
Commercial Services,Catering,Premises-Related Expenditure,Clean Mats & Toilet Requisites,Border Janitorial Supplies Limited,21/12/2017, 175.14 
Commercial Services,Catering,Premises-Related Expenditure,Clean Mats & Toilet Requisites,Border Janitorial Supplies Limited,21/12/2017, 233.56 
Commercial Services,Catering,Premises-Related Expenditure,Clean Mats & Toilet Requisites,Border Janitorial Supplies Limited,01/12/2017, 126.62 
Commercial Services,Catering,Premises-Related Expenditure,Clean Mats & Toilet Requisites,Border Janitorial Supplies Limited,01/12/2017, 200.95 
Commercial Services,Catering,Premises-Related Expenditure,Clean Mats & Toilet Requisites,Border Janitorial Supplies Limited,01/12/2017, 155.10 
Commercial Services,Catering,Premises-Related Expenditure,Clean Mats & Toilet Requisites,Border Janitorial Supplies Limited,01/12/2017, 150.44 
Commercial Services,Catering,Premises-Related Expenditure,Clean Mats & Toilet Requisites,Border Janitorial Supplies Limited,01/12/2017, 170.68 
Commercial Services,Catering,Premises-Related Expenditure,Clean Mats & Toilet Requisites,Border Janitorial Supplies Limited,28/12/2017, 194.26 
Commercial Services,Catering,Premises-Related Expenditure,Contract Cleaning,Telford and Shropshire Carpet Cleaning,01/12/2017, 500.00 
Commercial Services,Catering,Premises-Related Expenditure,Contract Cleaning,Telford and Shropshire Carpet Cleaning,01/12/2017, 232.00 
Commercial Services,Housing & NuPlace,Capital Expenditure,Acquisition of land & existing buildings,I Am Sold Ltd,08/12/2017," 13,200.00 "
Commercial Services,Housing & NuPlace,Capital Expenditure,Expenditure on loans & other financial assistance,DMW ENVIRONMENTAL SAFETY LTD,14/12/2017, 150.00 
Commercial Services,Housing & NuPlace,Capital Expenditure,Expenditure on loans & other financial assistance,STANNAH LIFT SERVICES LTD,14/12/2017," 4,353.00 "
Commercial Services,Housing & NuPlace,Capital Expenditure,Expenditure on loans & other financial assistance,DMW ENVIRONMENTAL SAFETY LTD,14/12/2017, 102.00 
Commercial Services,Housing & NuPlace,Capital Expenditure,Expenditure on loans & other financial assistance,Broad Oak Properties Limited,14/12/2017," 6,634.19 "
Commercial Services,Housing & NuPlace,Capital Expenditure,Expenditure on loans & other financial assistance,Sladen Associates,14/12/2017," 1,940.00 "
Commercial Services,Housing & NuPlace,Capital Expenditure,Expenditure on loans & other financial assistance,STANNAH LIFT SERVICES LTD,14/12/2017," 4,955.00 "
Commercial Services,Housing & NuPlace,Capital Expenditure,Expenditure on loans & other financial assistance,STANNAH LIFT SERVICES LTD,14/12/2017," 4,867.00 "
Commercial Services,Housing & NuPlace,Capital Expenditure,Expenditure on loans & other financial assistance,DMW ENVIRONMENTAL SAFETY LTD,14/12/2017, 125.00 
Commercial Services,Housing & NuPlace,Capital Expenditure,Expenditure on loans & other financial assistance,WREKIN HOUSING TRUST (SUBSIDIARY) LTD,14/12/2017," 4,720.35 "
Commercial Services,Housing & NuPlace,Capital Expenditure,Expenditure on loans & other financial assistance,DMW ENVIRONMENTAL SAFETY LTD,14/12/2017, 125.00 
Commercial Services,Housing & NuPlace,Capital Expenditure,Expenditure on loans & other financial assistance,STANNAH LIFT SERVICES LTD,14/12/2017," 2,068.00 "
Commercial Services,Housing & NuPlace,Capital Expenditure,Expenditure on loans & other financial assistance,STANNAH LIFT SERVICES LTD,14/12/2017," 4,215.40 "
Commercial Services,Housing & NuPlace,Capital Expenditure,Expenditure on loans & other financial assistance,WREKIN HOUSING TRUST (SUBSIDIARY) LTD,01/12/2017," 4,139.69 "
Commercial Services,Housing & NuPlace,Capital Expenditure,Expenditure on loans & other financial assistance,Reacted Personal Information ,01/12/2017, 320.00 
Commercial Services,Housing & NuPlace,Capital Expenditure,Expenditure on loans & other financial assistance,DMW ENVIRONMENTAL SAFETY LTD,04/12/2017, 125.00 
Commercial Services,Housing & NuPlace,Capital Expenditure,Expenditure on loans & other financial assistance,Reacted Personal Information ,12/12/2017," 1,941.00 "
Commercial Services,Housing & NuPlace,Capital Expenditure,Expenditure on loans & other financial assistance,THREE PINES BUILDING CO LTD,12/12/2017," 1,856.50 "
Commercial Services,Housing & NuPlace,Capital Expenditure,Expenditure on loans & other financial assistance,THREE PINES BUILDING CO LTD,04/12/2017," 8,251.15 "
Commercial Services,Housing & NuPlace,Capital Expenditure,Expenditure on loans & other financial assistance,STANNAH LIFT SERVICES LTD,04/12/2017," 3,793.00 "
Commercial Services,Housing & NuPlace,Capital Expenditure,Expenditure on loans & other financial assistance,STANNAH LIFT SERVICES LTD,04/12/2017," 3,090.00 "
Commercial Services,Housing & NuPlace,Capital Expenditure,Expenditure on loans & other financial assistance,STANNAH LIFT SERVICES LTD,04/12/2017," 4,278.00 "
Commercial Services,Housing & NuPlace,Capital Expenditure,Expenditure on loans & other financial assistance,Vortex Cleaning,04/12/2017," 1,695.00 "
Commercial Services,Housing & NuPlace,Capital Expenditure,Expenditure on loans & other financial assistance,Broad Oak Properties Limited,04/12/2017," 3,632.95 "
Commercial Services,Housing & NuPlace,Capital Expenditure,Expenditure on loans & other financial assistance,DMW ENVIRONMENTAL SAFETY LTD,18/12/2017, 150.00 
Commercial Services,Housing & NuPlace,Capital Expenditure,Expenditure on loans & other financial assistance,DMW ENVIRONMENTAL SAFETY LTD,18/12/2017, 150.00 
Commercial Services,Housing & NuPlace,Capital Expenditure,Expenditure on loans & other financial assistance,THE WREKIN HOUSING TRUST (INVOICES ONLY),18/12/2017," 1,394.22 "
Commercial Services,Housing & NuPlace,Capital Expenditure,Expenditure on loans & other financial assistance,THE WREKIN HOUSING TRUST (INVOICES ONLY),18/12/2017," 2,391.77 "
Commercial Services,Housing & NuPlace,Capital Expenditure,Expenditure on loans & other financial assistance,THE WREKIN HOUSING TRUST (INVOICES ONLY),18/12/2017," 3,187.29 "
Commercial Services,Housing & NuPlace,Capital Expenditure,Expenditure on loans & other financial assistance,THE WREKIN HOUSING TRUST (INVOICES ONLY),18/12/2017," 4,373.80 "
Commercial Services,Housing & NuPlace,Capital Expenditure,Expenditure on loans & other financial assistance,THE WREKIN HOUSING TRUST (INVOICES ONLY),18/12/2017, 580.73 
Commercial Services,Housing & NuPlace,Capital Expenditure,Expenditure on loans & other financial assistance,THE WREKIN HOUSING TRUST (INVOICES ONLY),20/12/2017," 1,690.13 "
Commercial Services,Housing & NuPlace,Capital Expenditure,Expenditure on loans & other financial assistance,THE WREKIN HOUSING TRUST (INVOICES ONLY),20/12/2017," 3,477.53 "
Commercial Services,Housing & NuPlace,Capital Expenditure,Expenditure on loans & other financial assistance,THE WREKIN HOUSING TRUST (INVOICES ONLY),20/12/2017, 938.03 
Commercial Services,Housing & NuPlace,Capital Expenditure,Expenditure on loans & other financial assistance,THE WREKIN HOUSING TRUST (INVOICES ONLY),20/12/2017," 2,292.17 "
Commercial Services,Housing & NuPlace,Capital Expenditure,Expenditure on loans & other financial assistance,THE WREKIN HOUSING TRUST (INVOICES ONLY),20/12/2017," 1,963.55 "
Commercial Services,Housing & NuPlace,Capital Expenditure,Expenditure on loans & other financial assistance,STANNAH LIFT SERVICES LTD,20/12/2017," 2,242.00 "
Commercial Services,Housing & NuPlace,Capital Expenditure,Expenditure on loans & other financial assistance,GROUND INVESTIGATION & PILING LTD,20/12/2017," 1,239.74 "
Commercial Services,Housing & NuPlace,Capital Expenditure,Expenditure on loans & other financial assistance,Reacted Personal Information ,20/12/2017, 312.00 
Commercial Services,Housing & NuPlace,Capital Expenditure,Expenditure on loans & other financial assistance,THE WREKIN HOUSING TRUST (INVOICES ONLY),22/12/2017," 2,757.99 "
Commercial Services,Housing & NuPlace,Capital Expenditure,Expenditure on loans & other financial assistance,THE WREKIN HOUSING TRUST (INVOICES ONLY),22/12/2017," 2,315.98 "
Commercial Services,Housing & NuPlace,Capital Expenditure,Expenditure on loans & other financial assistance,THE WREKIN HOUSING TRUST (INVOICES ONLY),22/12/2017," 2,680.12 "
Commercial Services,Housing & NuPlace,Capital Expenditure,Expenditure on loans & other financial assistance,Reacted Personal Information ,22/12/2017," 2,694.58 "
Commercial Services,Housing & NuPlace,Capital Expenditure,Expenditure on loans & other financial assistance,THE WREKIN HOUSING TRUST (INVOICES ONLY),22/12/2017," 2,346.41 "
Commercial Services,Housing & NuPlace,Capital Expenditure,Expenditure on loans & other financial assistance,DMW ENVIRONMENTAL SAFETY LTD,08/12/2017, 150.00 
Commercial Services,Housing & NuPlace,Capital Expenditure,Expenditure on loans & other financial assistance,Reacted Personal Information ,08/12/2017," 9,022.00 "
Commercial Services,Housing & NuPlace,Capital Expenditure,Expenditure on loans & other financial assistance,Broad Oak Properties Limited,08/12/2017," 3,786.00 "
Commercial Services,Housing & NuPlace,Capital Expenditure,Expenditure on loans & other financial assistance,Reacted Personal Information ,01/12/2017," 22,230.00 "
Commercial Services,Housing & NuPlace,Capital Expenditure,Expenditure on loans & other financial assistance,Reacted Personal Information ,01/12/2017, 680.00 
Commercial Services,Housing & NuPlace,Capital Expenditure,Expenditure on loans & other financial assistance,Reacted Personal Information ,01/12/2017," 20,056.00 "
Commercial Services,Housing & NuPlace,Capital Expenditure,Expenditure on loans & other financial assistance,STANNAH LIFT SERVICES LTD,01/12/2017," 3,981.00 "
Commercial Services,Housing & NuPlace,Supplies & Services,Equipment - Purchase,DAWLEY BARGAIN CENTRE,01/12/2017, 115.00 
Commercial Services,Housing & NuPlace,Supplies & Services,Equipment - Purchase,DAWLEY BARGAIN CENTRE,01/12/2017, 110.00 
Commercial Services,Housing & NuPlace,Supplies & Services,Homelessness Prevention,Reacted Personal Information ,14/12/2017, 475.00 
Commercial Services,ICT,Capital Expenditure,Payments to Contractor,NORTHGATEARINSO UK LTD,15/12/2017," 1,500.00 "
Commercial Services,ICT,Capital Expenditure,Payments to Contractor,NORTHGATEARINSO UK LTD,15/12/2017, 550.00 
Commercial Services,ICT,Capital Expenditure,Computer Hardware,CAPITA IT SERVICES LIMITED,15/12/2017," 2,964.00 "
Commercial Services,ICT,Capital Expenditure,Computer Hardware,EUROPEAN ELECTRONIQUE LTD,04/12/2017," 1,039.90 "
Commercial Services,ICT,Capital Expenditure,Computer Hardware,IDN SUPPLIES LTD,05/12/2017," 1,320.00 "
Commercial Services,ICT,Capital Expenditure,Computer Hardware,EUROPEAN ELECTRONIQUE LTD,13/12/2017," 1,444.87 "
Commercial Services,ICT,Capital Expenditure,Computer Hardware,SecureData Europe Limited,29/12/2017," 6,562.50 "
Commercial Services,ICT,Supplies & Services,Comp Software (Purch / Hire),NORTHGATE PUBLIC SERVICES (UK) LTD,21/12/2017, 850.00 
Commercial Services,ICT,Supplies & Services,Comp Software (Purch / Hire),NORTHGATEARINSO UK LTD,14/12/2017," 100,604.00 "
Commercial Services,ICT,Supplies & Services,Equipment - Hire,RICOH UK LIMITED,19/12/2017," 7,069.78 "
Commercial Services,ICT,Supplies & Services,Equipment - Hire,RICOH UK LIMITED,20/12/2017," 5,258.86 "
Commercial Services,ICT,Supplies & Services,Telephones,Ghekko LTD,07/12/2017, 160.00 
Commercial Services,ICT,Employees,Staff Training,Tablet Academy,15/12/2017, 180.00 
Commercial Services,ICT,Supplies & Services,Other Expenses,PROCESS FLOWS UK LTD,15/12/2017, 308.46 
Commercial Services,ICT,Supplies & Services,Comp Hardware (Purch / Hire),EUROPEAN ELECTRONIQUE LTD,13/12/2017, 197.06 
Commercial Services,ICT,Supplies & Services,Comp Hardware (Purch / Hire),EUROPEAN ELECTRONIQUE LTD,14/12/2017, 147.80 
Commercial Services,ICT,Supplies & Services,Mobile Phones,EE LTD AIRTIME (97171263),06/12/2017," 15,282.59 "
Commercial Services,ICT,Supplies & Services,Mobile Phones,EE LTD AIRTIME (97171263),06/12/2017," 5,481.90 "
Commercial Services,ICT,Supplies & Services,Comp Software (Purch / Hire),ORDNANCE SURVEY,13/12/2017, 428.40 
Commercial Services,ICT,Supplies & Services,Comp Software (Purch / Hire),PHOENIX SOFTWARE LTD,14/12/2017, 472.80 
Commercial Services,ICT,Supplies & Services,Comp Software (Purch / Hire),PHOENIX SOFTWARE LTD,29/12/2017," 1,206.63 "
Commercial Services,ICT,Supplies & Services,Comp Software (Purch / Hire),PHOENIX SOFTWARE LTD,15/12/2017," 1,042.44 "
Commercial Services,ICT,Supplies & Services,Comp Software (Purch / Hire),PHOENIX SOFTWARE LTD,13/12/2017, 689.69 
Commercial Services,ICT,Supplies & Services,Comp Software (Purch / Hire),PHOENIX SOFTWARE LTD,29/12/2017," 9,423.75 "
Commercial Services,ICT,Supplies & Services,Stationery,PREMIER PAPER GROUP LTD,05/12/2017, 103.50 
Commercial Services,ICT,Supplies & Services,Stationery,PREMIER PAPER GROUP LTD,20/12/2017, 310.50 
Commercial Services,ICT,Supplies & Services,Telephones,VIRGIN MEDIA BUSINESS LTD (20119162),06/12/2017," 11,267.14 "
Commercial Services,ICT,Supplies & Services,Telecomms,VIRGIN MEDIA BUSINESS (80352128),01/12/2017," 12,536.46 "
Commercial Services,ICT,Supplies & Services,Telecomms,VIRGIN MEDIA BUSINESS (80352128),06/12/2017," 16,160.07 "
Commercial Services,ICT,Supplies & Services,Telecomms,VIRGIN MEDIA BUSINESS (80352128),06/12/2017,"-4,651.34 "
Commercial Services,ICT,Supplies & Services,Equipment - Purchase,WREKIN SERVICES LTD,21/12/2017, 150.00 
Commercial Services,ICT,Supplies & Services,Equipment - Purchase,WREKIN SERVICES LTD,21/12/2017, 390.00 
Commercial Services,ICT,Supplies & Services,Equipment - Purchase,WREKIN SERVICES LTD,21/12/2017, 150.00 
Commercial Services,ICT,Supplies & Services,Protective Clothing,Reacted Personal Information ,13/12/2017, 148.10 
Commercial Services,ICT,Supplies & Services,Telecomms,Airband Community Internet,06/12/2017, 295.00 
Commercial Services,ICT,Supplies & Services,Telecomms,Airband Community Internet,20/12/2017, 250.00 
Commercial Services,ICT,Supplies & Services,Telecomms,Airband Community Internet,20/12/2017, 250.00 
Commercial Services,ICT,Supplies & Services,Telecomms,JANDU TECHNOLOGIES LTD t/a LEEGOMERY COMPUTERS,28/12/2017," 1,100.00 "
Commercial Services,ICT,Supplies & Services,Comp Software (Purch / Hire),Certero Limited,01/12/2017," 3,880.00 "
Commercial Services,ICT,Supplies & Services,Comp Software (Purch / Hire),Certero Limited,01/12/2017," 1,050.00 "
Commercial Services,ICT,Supplies & Services,Comp Software (Purch / Hire),ScholarPack,05/12/2017," 4,202.00 "
Commercial Services,ICT,Supplies & Services,Comp Software (Purch / Hire),ScholarPack,21/12/2017," 4,240.00 "
Commercial Services,Policy & Strategy,Supplies & Services,Fees,3S PRINT & DISPLAY LIMITED,18/12/2017, 260.00 
Commercial Services,Policy & Strategy,Supplies & Services,Fees,3S PRINT & DISPLAY LIMITED,18/12/2017, 453.00 
Commercial Services,Policy & Strategy,Supplies & Services,Fees,3S PRINT & DISPLAY LIMITED,18/12/2017, 460.00 
Commercial Services,Policy & Strategy,Supplies & Services,Fees,3S PRINT & DISPLAY LIMITED,18/12/2017," 2,035.00 "
Commercial Services,Policy & Strategy,Supplies & Services,Other Services,Stanley Security Solutions Ltd,29/12/2017, 286.00 
Commercial Services,Policy & Strategy,Supplies & Services,Advertising,THE MIDLAND NEWS ASSOCIATION LTD,14/12/2017, 360.00 
Commercial Services,Policy & Strategy,Premises-Related Expenditure,Electricity,West Mercia Energy (WME),19/12/2017, 123.89 
Commercial Services,Property & Design (BiT),Capital Expenditure,Payments to Contractor,JCE & SONS LTD,05/12/2017," 1,490.00 "
Commercial Services,Property & Design (BiT),Capital Expenditure,Payments to Contractor,HARROW GREEN LIMITED,05/12/2017, 266.00 
Commercial Services,Property & Design (BiT),Capital Expenditure,Payments to Contractor,DMW ENVIRONMENTAL SAFETY LTD,06/12/2017, 175.00 
Commercial Services,Property & Design (BiT),Capital Expenditure,Payments to Contractor,Willow Developments (Midlands) Ltd,22/12/2017," 5,890.00 "
Commercial Services,Property & Design (BiT),Capital Expenditure,Payments to Contractor,PP ELECTRICAL SERVICES (Shropshire) Ltd,14/12/2017," 1,100.00 "
Commercial Services,Property & Design (BiT),Capital Expenditure,Payments to Contractor,PP ELECTRICAL SERVICES (Shropshire) Ltd,14/12/2017, 683.15 
Commercial Services,Property & Design (BiT),Capital Expenditure,Payments to Contractor,VPS (UK) LTD,18/12/2017, 169.08 
Commercial Services,Property & Design (BiT),Capital Expenditure,Payments to Contractor,PP ELECTRICAL SERVICES (Shropshire) Ltd,18/12/2017," 7,380.55 "
Commercial Services,Property & Design (BiT),Capital Expenditure,Payments to Contractor,TAYLORS MECHANICAL H & P SERVICES LTD,18/12/2017," 16,050.00 "
Commercial Services,Property & Design (BiT),Premises-Related Expenditure,Leasehold Rents,Reacted Personal Information ,20/12/2017, 475.00 
Commercial Services,Property & Design (BiT),Premises-Related Expenditure,Electricity,BRITISH GAS BUSINESS ELEC (52464055),15/12/2017, 161.69 
Commercial Services,Property & Design (BiT),Premises-Related Expenditure,Electricity,BRITISH GAS BUSINESS (52464055),15/12/2017, 351.67 
Commercial Services,Property & Design (BiT),Premises-Related Expenditure,Gas,BRITISH GAS BUSINESS (52464055),15/12/2017, 434.00 
Commercial Services,Property & Design (BiT),Premises-Related Expenditure,Leasehold Rents,Reacted Personal Information ,18/12/2017, 150.00 
Commercial Services,Property & Design (BiT),Premises-Related Expenditure,Leasehold Rents,Reacted Personal Information ,20/12/2017, 495.00 
Commercial Services,Property & Design (BiT),Premises-Related Expenditure,Service Contracts,HYDRO-TECH ENVIRONMENTAL LLP,15/12/2017, 350.00 
Commercial Services,Property & Design (BiT),Premises-Related Expenditure,Service Contracts,HYDRO-TECH ENVIRONMENTAL LLP,15/12/2017, 125.00 
Commercial Services,Property & Design (BiT),Premises-Related Expenditure,Leasehold Rents,Reacted Personal Information ,20/12/2017, 416.39 
Commercial Services,Property & Design (BiT),Premises-Related Expenditure,R&M -Buildings DLO Charge,ANGEL SPRINGS LTD / PHS GROUP,15/12/2017, 462.11 
Commercial Services,Property & Design (BiT),Premises-Related Expenditure,Clean Mats & Toilet Requisites,ANGEL SPRINGS LTD / PHS GROUP,18/12/2017, 149.96 
Commercial Services,Property & Design (BiT),Premises-Related Expenditure,Swimming Pool Chemicals,ANGEL SPRINGS LTD / PHS GROUP,21/12/2017, 157.42 
Commercial Services,Property & Design (BiT),Capital Financing Costs,Unitary Charge,PYRAMID SCHOOLS (HADLEY) LTD,04/12/2017," 845,337.98 "
Commercial Services,Property & Design (BiT),Capital Financing Costs,Unitary Charge,PYRAMID SCHOOLS (HADLEY) LTD,22/12/2017," 845,291.07 "
Commercial Services,Property & Design (BiT),Premises-Related Expenditure,Water Rates,WATER PLUS FORMERLY SEVERN TRENT WATER LTD,15/12/2017, 512.48 
Commercial Services,Property & Design (BiT),Premises-Related Expenditure,Water Rates,WATER PLUS FORMERLY SEVERN TRENT WATER LTD,18/12/2017, 203.46 
Commercial Services,Property & Design (BiT),Premises-Related Expenditure,Water Rates,WATER PLUS FORMERLY SEVERN TRENT WATER LTD,06/12/2017, 185.10 
Commercial Services,Property & Design (BiT),Premises-Related Expenditure,Water Rates,WATER PLUS FORMERLY SEVERN TRENT WATER LTD,28/12/2017," 1,146.58 "
Commercial Services,Property & Design (BiT),Premises-Related Expenditure,Water Rates,WATER PLUS FORMERLY SEVERN TRENT WATER LTD,15/12/2017," 1,143.65 "
Commercial Services,Property & Design (BiT),Premises-Related Expenditure,Water Rates,WATER PLUS FORMERLY SEVERN TRENT WATER LTD,15/12/2017, 126.23 
Commercial Services,Property & Design (BiT),Premises-Related Expenditure,Water Rates,WATER PLUS FORMERLY SEVERN TRENT WATER LTD,15/12/2017," 1,886.33 "
Commercial Services,Property & Design (BiT),Premises-Related Expenditure,Water Rates,WATER PLUS FORMERLY SEVERN TRENT WATER LTD,15/12/2017, 574.44 
Commercial Services,Property & Design (BiT),Premises-Related Expenditure,Water Rates,WATER PLUS FORMERLY SEVERN TRENT WATER LTD,15/12/2017, 112.76 
Commercial Services,Property & Design (BiT),Premises-Related Expenditure,Water Rates,WATER PLUS FORMERLY SEVERN TRENT WATER LTD,15/12/2017, 976.36 
Commercial Services,Property & Design (BiT),Premises-Related Expenditure,Water Rates,WATER PLUS FORMERLY SEVERN TRENT WATER LTD,15/12/2017, 969.28 
Commercial Services,Property & Design (BiT),Premises-Related Expenditure,Water Rates,WATER PLUS FORMERLY SEVERN TRENT WATER LTD,18/12/2017, 339.39 
Commercial Services,Property & Design (BiT),Premises-Related Expenditure,Water Rates,WATER PLUS FORMERLY SEVERN TRENT WATER LTD,15/12/2017, 215.97 
Commercial Services,Property & Design (BiT),Employees,Course Fees,UNIVERSITY OF WOLVERHAMPTON (80970905),13/12/2017," 2,835.00 "
Commercial Services,Property & Design (BiT),Income,Service Charges,UNIVERSITY OF WOLVERHAMPTON (80970905),05/12/2017," 2,924.33 "
Commercial Services,Property & Design (BiT),Premises-Related Expenditure,Leasehold Rents,Reacted Personal Information ,20/12/2017, 500.00 
Commercial Services,Property & Design (BiT),Premises-Related Expenditure,Service Contracts,Automated building & energy controls,15/12/2017, 960.00 
Commercial Services,Property & Design (BiT),Premises-Related Expenditure,R&M -Buildings DLO Charge,GRANVILLE CONSTRUCTION & MAINTENANCE LTD,28/12/2017, 234.84 
Commercial Services,Property & Design (BiT),Premises-Related Expenditure,R&M -Buildings DLO Charge,GRANVILLE CONSTRUCTION & MAINTENANCE LTD,28/12/2017, 376.91 
Commercial Services,Property & Design (BiT),Premises-Related Expenditure,Service Contracts,GRANVILLE CONSTRUCTION & MAINTENANCE LTD,13/12/2017, 200.00 
Commercial Services,Property & Design (BiT),Premises-Related Expenditure,R&M -Buildings DLO Charge,GRANVILLE CONSTRUCTION & MAINTENANCE LTD,05/12/2017, 122.45 
Commercial Services,Property & Design (BiT),Premises-Related Expenditure,R&M -Buildings DLO Charge,GRANVILLE CONSTRUCTION & MAINTENANCE LTD,05/12/2017, 116.21 
Commercial Services,Property & Design (BiT),Premises-Related Expenditure,R&M -Buildings DLO Charge,GRANVILLE CONSTRUCTION & MAINTENANCE LTD,05/12/2017, 715.00 
Commercial Services,Property & Design (BiT),Premises-Related Expenditure,R&M -Buildings DLO Charge,GRANVILLE CONSTRUCTION & MAINTENANCE LTD,05/12/2017, 710.00 
Commercial Services,Property & Design (BiT),Premises-Related Expenditure,R&M -Buildings DLO Charge,GRANVILLE CONSTRUCTION & MAINTENANCE LTD,28/12/2017, 269.00 
Commercial Services,Property & Design (BiT),Premises-Related Expenditure,R&M -Buildings DLO Charge,GRANVILLE CONSTRUCTION & MAINTENANCE LTD,28/12/2017, 142.72 
Commercial Services,Property & Design (BiT),Premises-Related Expenditure,R&M -Buildings DLO Charge,GRANVILLE CONSTRUCTION & MAINTENANCE LTD,13/12/2017, 163.00 
Commercial Services,Property & Design (BiT),Premises-Related Expenditure,R&M -Buildings DLO Charge,GRANVILLE CONSTRUCTION & MAINTENANCE LTD,13/12/2017, 603.22 
Commercial Services,Property & Design (BiT),Premises-Related Expenditure,R&M -Buildings DLO Charge,GRANVILLE CONSTRUCTION & MAINTENANCE LTD,13/12/2017, 136.88 
Commercial Services,Property & Design (BiT),Premises-Related Expenditure,R&M -Buildings DLO Charge,GRANVILLE CONSTRUCTION & MAINTENANCE LTD,13/12/2017, 189.37 
Commercial Services,Property & Design (BiT),Premises-Related Expenditure,R&M -Buildings DLO Charge,GRANVILLE CONSTRUCTION & MAINTENANCE LTD,13/12/2017, 242.82 
Commercial Services,Property & Design (BiT),Premises-Related Expenditure,R&M -Buildings DLO Charge,GRANVILLE CONSTRUCTION & MAINTENANCE LTD,05/12/2017, 318.46 
Commercial Services,Property & Design (BiT),Premises-Related Expenditure,R&M -Buildings DLO Charge,GRANVILLE CONSTRUCTION & MAINTENANCE LTD,05/12/2017, 332.00 
Commercial Services,Property & Design (BiT),Premises-Related Expenditure,R&M -Buildings DLO Charge,GRANVILLE CONSTRUCTION & MAINTENANCE LTD,04/12/2017, 470.00 
Commercial Services,Property & Design (BiT),Premises-Related Expenditure,R&M -Buildings DLO Charge,GRANVILLE CONSTRUCTION & MAINTENANCE LTD,04/12/2017, 166.00 
Commercial Services,Property & Design (BiT),Premises-Related Expenditure,R&M -Buildings DLO Charge,GRANVILLE CONSTRUCTION & MAINTENANCE LTD,04/12/2017, 150.00 
Commercial Services,Property & Design (BiT),Premises-Related Expenditure,R&M -Buildings DLO Charge,GRANVILLE CONSTRUCTION & MAINTENANCE LTD,04/12/2017, 192.95 
Commercial Services,Property & Design (BiT),Premises-Related Expenditure,R&M -Buildings DLO Charge,GRANVILLE CONSTRUCTION & MAINTENANCE LTD,04/12/2017, 157.58 
Commercial Services,Property & Design (BiT),Premises-Related Expenditure,R&M -Buildings DLO Charge,GRANVILLE CONSTRUCTION & MAINTENANCE LTD,13/12/2017, 575.96 
Commercial Services,Property & Design (BiT),Premises-Related Expenditure,R&M -Buildings DLO Charge,GRANVILLE CONSTRUCTION & MAINTENANCE LTD,11/12/2017, 261.27 
Commercial Services,Property & Design (BiT),Premises-Related Expenditure,R&M -Buildings DLO Charge,GRANVILLE CONSTRUCTION & MAINTENANCE LTD,04/12/2017, 113.63 
Commercial Services,Property & Design (BiT),Premises-Related Expenditure,R&M -Buildings DLO Charge,GRANVILLE CONSTRUCTION & MAINTENANCE LTD,04/12/2017, 143.52 
Commercial Services,Property & Design (BiT),Premises-Related Expenditure,R&M -Buildings DLO Charge,GRANVILLE CONSTRUCTION & MAINTENANCE LTD,04/12/2017, 115.56 
Commercial Services,Property & Design (BiT),Premises-Related Expenditure,R&M -Buildings DLO Charge,GRANVILLE CONSTRUCTION & MAINTENANCE LTD,04/12/2017, 115.00 
Commercial Services,Property & Design (BiT),Premises-Related Expenditure,R&M -Buildings DLO Charge,GRANVILLE CONSTRUCTION & MAINTENANCE LTD,14/12/2017," 1,780.00 "
Commercial Services,Property & Design (BiT),Premises-Related Expenditure,R&M -Buildings DLO Charge,GRANVILLE CONSTRUCTION & MAINTENANCE LTD,14/12/2017," 2,669.39 "
Commercial Services,Property & Design (BiT),Premises-Related Expenditure,Tenant Damage,GRANVILLE CONSTRUCTION & MAINTENANCE LTD,04/12/2017, 175.00 
Commercial Services,Property & Design (BiT),Premises-Related Expenditure,R&M -Building Other,GRANVILLE CONSTRUCTION & MAINTENANCE LTD,05/12/2017," 2,170.27 "
Commercial Services,Property & Design (BiT),Premises-Related Expenditure,R&M -Building Other,GRANVILLE CONSTRUCTION & MAINTENANCE LTD,05/12/2017, 189.47 
Commercial Services,Property & Design (BiT),Premises-Related Expenditure,Vandal Damage,GRANVILLE CONSTRUCTION & MAINTENANCE LTD,05/12/2017, 812.89 
Commercial Services,Property & Design (BiT),Premises-Related Expenditure,R&M -Buildings DLO Charge,GRANVILLE CONSTRUCTION & MAINTENANCE LTD,28/12/2017, 158.00 
Commercial Services,Property & Design (BiT),Premises-Related Expenditure,R&M -Buildings DLO Charge,GRANVILLE CONSTRUCTION & MAINTENANCE LTD,28/12/2017, 345.94 
Commercial Services,Property & Design (BiT),Premises-Related Expenditure,Tenant Damage,GRANVILLE CONSTRUCTION & MAINTENANCE LTD,14/12/2017," 1,020.00 "
Commercial Services,Property & Design (BiT),Premises-Related Expenditure,Tenant Damage,GRANVILLE CONSTRUCTION & MAINTENANCE LTD,14/12/2017," 1,070.00 "
Commercial Services,Property & Design (BiT),Premises-Related Expenditure,R&M -Buildings DLO Charge,GRANVILLE CONSTRUCTION & MAINTENANCE LTD,14/12/2017," 1,800.00 "
Commercial Services,Property & Design (BiT),Premises-Related Expenditure,R&M -Buildings DLO Charge,GRANVILLE CONSTRUCTION & MAINTENANCE LTD,14/12/2017," 3,514.66 "
Commercial Services,Property & Design (BiT),Premises-Related Expenditure,R&M -Buildings DLO Charge,GRANVILLE CONSTRUCTION & MAINTENANCE LTD,05/12/2017, 146.33 
Commercial Services,Property & Design (BiT),Premises-Related Expenditure,R&M -Buildings DLO Charge,GRANVILLE CONSTRUCTION & MAINTENANCE LTD,05/12/2017, 285.00 
Commercial Services,Property & Design (BiT),Premises-Related Expenditure,R&M -Buildings DLO Charge,GRANVILLE CONSTRUCTION & MAINTENANCE LTD,05/12/2017, 237.50 
Commercial Services,Property & Design (BiT),Premises-Related Expenditure,R&M -Buildings DLO Charge,GRANVILLE CONSTRUCTION & MAINTENANCE LTD,05/12/2017, 208.83 
Commercial Services,Property & Design (BiT),Premises-Related Expenditure,R&M -Buildings DLO Charge,GRANVILLE CONSTRUCTION & MAINTENANCE LTD,05/12/2017, 525.40 
Commercial Services,Property & Design (BiT),Premises-Related Expenditure,R&M -Buildings DLO Charge,GRANVILLE CONSTRUCTION & MAINTENANCE LTD,28/12/2017, 164.00 
Commercial Services,Property & Design (BiT),Premises-Related Expenditure,R&M -Buildings DLO Charge,GRANVILLE CONSTRUCTION & MAINTENANCE LTD,05/12/2017, 511.47 
Commercial Services,Property & Design (BiT),Premises-Related Expenditure,R&M -Buildings DLO Charge,GRANVILLE CONSTRUCTION & MAINTENANCE LTD,05/12/2017, 117.00 
Commercial Services,Property & Design (BiT),Premises-Related Expenditure,R&M -Buildings DLO Charge,GRANVILLE CONSTRUCTION & MAINTENANCE LTD,05/12/2017, 115.00 
Commercial Services,Property & Design (BiT),Premises-Related Expenditure,R&M -Buildings DLO Charge,GRANVILLE CONSTRUCTION & MAINTENANCE LTD,05/12/2017, 103.00 
Commercial Services,Property & Design (BiT),Premises-Related Expenditure,R&M -Buildings DLO Charge,GRANVILLE CONSTRUCTION & MAINTENANCE LTD,05/12/2017, 156.95 
Commercial Services,Property & Design (BiT),Premises-Related Expenditure,R&M -Buildings DLO Charge,GRANVILLE CONSTRUCTION & MAINTENANCE LTD,05/12/2017, 447.71 
Commercial Services,Property & Design (BiT),Premises-Related Expenditure,R&M -Buildings DLO Charge,GRANVILLE CONSTRUCTION & MAINTENANCE LTD,13/12/2017, 170.00 
Commercial Services,Property & Design (BiT),Premises-Related Expenditure,R&M -Buildings DLO Charge,GRANVILLE CONSTRUCTION & MAINTENANCE LTD,13/12/2017, 103.69 
Commercial Services,Property & Design (BiT),Premises-Related Expenditure,R&M -Buildings DLO Charge,GRANVILLE CONSTRUCTION & MAINTENANCE LTD,13/12/2017, 443.00 
Commercial Services,Property & Design (BiT),Premises-Related Expenditure,R&M -Buildings DLO Charge,GRANVILLE CONSTRUCTION & MAINTENANCE LTD,13/12/2017, 140.75 
Commercial Services,Property & Design (BiT),Premises-Related Expenditure,R&M -Buildings DLO Charge,GRANVILLE CONSTRUCTION & MAINTENANCE LTD,13/12/2017, 156.02 
Commercial Services,Property & Design (BiT),Premises-Related Expenditure,R&M -Buildings DLO Charge,GRANVILLE CONSTRUCTION & MAINTENANCE LTD,13/12/2017, 210.00 
Commercial Services,Property & Design (BiT),Premises-Related Expenditure,R&M -Buildings DLO Charge,GRANVILLE CONSTRUCTION & MAINTENANCE LTD,04/12/2017, 192.95 
Commercial Services,Property & Design (BiT),Premises-Related Expenditure,R&M -Buildings DLO Charge,GRANVILLE CONSTRUCTION & MAINTENANCE LTD,04/12/2017, 106.00 
Commercial Services,Property & Design (BiT),Premises-Related Expenditure,R&M -Buildings DLO Charge,GRANVILLE CONSTRUCTION & MAINTENANCE LTD,04/12/2017, 109.98 
Commercial Services,Property & Design (BiT),Premises-Related Expenditure,R&M -Buildings DLO Charge,GRANVILLE CONSTRUCTION & MAINTENANCE LTD,04/12/2017, 200.95 
Commercial Services,Property & Design (BiT),Premises-Related Expenditure,R&M -Buildings DLO Charge,GRANVILLE CONSTRUCTION & MAINTENANCE LTD,04/12/2017, 144.62 
Commercial Services,Property & Design (BiT),Premises-Related Expenditure,R&M -Buildings DLO Charge,GRANVILLE CONSTRUCTION & MAINTENANCE LTD,13/12/2017, 118.65 
Commercial Services,Property & Design (BiT),Premises-Related Expenditure,R&M -Buildings DLO Charge,GRANVILLE CONSTRUCTION & MAINTENANCE LTD,15/12/2017, 285.68 
Commercial Services,Property & Design (BiT),Premises-Related Expenditure,R&M -Buildings DLO Charge,GRA-BERN,05/12/2017, 180.47 
Commercial Services,Property & Design (BiT),Premises-Related Expenditure,R&M -Buildings DLO Charge,WINDOW & DOOR CONTRACT SERVICES,15/12/2017, 339.80 
Commercial Services,Property & Design (BiT),Premises-Related Expenditure,R&M -Buildings DLO Charge,WINDOW & DOOR CONTRACT SERVICES,05/12/2017, 147.72 
Commercial Services,Property & Design (BiT),Premises-Related Expenditure,R&M -Buildings DLO Charge,WINDOW & DOOR CONTRACT SERVICES,05/12/2017, 158.08 
Commercial Services,Property & Design (BiT),Premises-Related Expenditure,R&M -Buildings DLO Charge,WINDOW & DOOR CONTRACT SERVICES,15/12/2017, 167.52 
Commercial Services,Property & Design (BiT),Premises-Related Expenditure,R&M -Buildings DLO Charge,WINDOW & DOOR CONTRACT SERVICES,15/12/2017, 490.77 
Commercial Services,Property & Design (BiT),Premises-Related Expenditure,R&M -Buildings DLO Charge,WINDOW & DOOR CONTRACT SERVICES,15/12/2017, 225.86 
Commercial Services,Property & Design (BiT),Premises-Related Expenditure,R&M -Buildings DLO Charge,WINDOW & DOOR CONTRACT SERVICES,15/12/2017, 330.04 
Commercial Services,Property & Design (BiT),Premises-Related Expenditure,R&M -Buildings DLO Charge,WINDOW & DOOR CONTRACT SERVICES,15/12/2017, 346.84 
Commercial Services,Property & Design (BiT),Premises-Related Expenditure,R&M -Buildings DLO Charge,FITZGERALD CONTRACTORS LTD,15/12/2017, 132.75 
Commercial Services,Property & Design (BiT),Premises-Related Expenditure,R&M -Buildings DLO Charge,COOPER & WILLIAMS LTD,15/12/2017, 904.68 
Commercial Services,Property & Design (BiT),Premises-Related Expenditure,R&M -Buildings DLO Charge,Reacted Personal Information ,05/12/2017," 1,320.00 "
Commercial Services,Property & Design (BiT),Premises-Related Expenditure,R&M -Buildings DLO Charge,Reacted Personal Information ,05/12/2017, 527.60 
Commercial Services,Property & Design (BiT),Premises-Related Expenditure,R&M -Buildings DLO Charge,PRYCE (BUILDERS) LTD,05/12/2017," 2,725.00 "
Commercial Services,Property & Design (BiT),Premises-Related Expenditure,R&M -Buildings DLO Charge,RMF LANDSCAPING LTD,15/12/2017, 681.00 
Commercial Services,Property & Design (BiT),Premises-Related Expenditure,R&M -Buildings DLO Charge,RMF LANDSCAPING LTD,15/12/2017," 2,614.00 "
Commercial Services,Property & Design (BiT),Premises-Related Expenditure,R&M -Buildings DLO Charge,NOBRIDGE LTD,04/12/2017, 195.00 
Commercial Services,Property & Design (BiT),Premises-Related Expenditure,Service Contracts,TAYLORS MECHANICAL H & P SERVICES LTD,04/12/2017, 171.80 
Commercial Services,Property & Design (BiT),Premises-Related Expenditure,Service Contracts,TAYLORS MECHANICAL H & P SERVICES LTD,04/12/2017, 435.37 
Commercial Services,Property & Design (BiT),Premises-Related Expenditure,Service Contracts,TAYLORS MECHANICAL H & P SERVICES LTD,04/12/2017, 792.00 
Commercial Services,Property & Design (BiT),Premises-Related Expenditure,Service Contracts,TAYLORS MECHANICAL H & P SERVICES LTD,04/12/2017, 216.00 
Commercial Services,Property & Design (BiT),Premises-Related Expenditure,R&M -Buildings DLO Charge,TAYLORS MECHANICAL H & P SERVICES LTD,28/12/2017, 240.00 
Commercial Services,Property & Design (BiT),Premises-Related Expenditure,R&M -Buildings DLO Charge,TAYLORS MECHANICAL H & P SERVICES LTD,04/12/2017, 143.71 
Commercial Services,Property & Design (BiT),Premises-Related Expenditure,R&M -Buildings DLO Charge,TAYLORS MECHANICAL H & P SERVICES LTD,28/12/2017, 192.98 
Commercial Services,Property & Design (BiT),Premises-Related Expenditure,R&M -Buildings DLO Charge,TAYLORS MECHANICAL H & P SERVICES LTD,04/12/2017," 1,666.50 "
Commercial Services,Property & Design (BiT),Premises-Related Expenditure,R&M -Buildings DLO Charge,TAYLORS MECHANICAL H & P SERVICES LTD,28/12/2017, 479.00 
Commercial Services,Property & Design (BiT),Premises-Related Expenditure,R&M -Buildings DLO Charge,TAYLORS MECHANICAL H & P SERVICES LTD,28/12/2017, 101.64 
Commercial Services,Property & Design (BiT),Premises-Related Expenditure,R&M -Buildings DLO Charge,TAYLORS MECHANICAL H & P SERVICES LTD,04/12/2017, 528.00 
Commercial Services,Property & Design (BiT),Premises-Related Expenditure,R&M -Buildings DLO Charge,TAYLORS MECHANICAL H & P SERVICES LTD,04/12/2017, 360.00 
Commercial Services,Property & Design (BiT),Premises-Related Expenditure,R&M -Buildings DLO Charge,TAYLORS MECHANICAL H & P SERVICES LTD,04/12/2017, 168.00 
Commercial Services,Property & Design (BiT),Premises-Related Expenditure,R&M -Buildings DLO Charge,TAYLORS MECHANICAL H & P SERVICES LTD,04/12/2017, 144.00 
Commercial Services,Property & Design (BiT),Premises-Related Expenditure,R&M -Buildings DLO Charge,TAYLORS MECHANICAL H & P SERVICES LTD,05/12/2017, 334.65 
Commercial Services,Property & Design (BiT),Premises-Related Expenditure,R&M -Buildings DLO Charge,TAYLORS MECHANICAL H & P SERVICES LTD,28/12/2017, 192.00 
Commercial Services,Property & Design (BiT),Premises-Related Expenditure,R&M -Buildings DLO Charge,TAYLORS MECHANICAL H & P SERVICES LTD,04/12/2017, 120.00 
Commercial Services,Property & Design (BiT),Premises-Related Expenditure,R&M -Buildings DLO Charge,PP ELECTRICAL SERVICES (Shropshire) Ltd,13/12/2017, 172.00 
Commercial Services,Property & Design (BiT),Premises-Related Expenditure,R&M -Buildings DLO Charge,PP ELECTRICAL SERVICES (Shropshire) Ltd,05/12/2017, 448.50 
Commercial Services,Property & Design (BiT),Premises-Related Expenditure,R&M -Buildings DLO Charge,PP ELECTRICAL SERVICES (Shropshire) Ltd,04/12/2017, 588.75 
Commercial Services,Property & Design (BiT),Premises-Related Expenditure,R&M -Buildings DLO Charge,PP ELECTRICAL SERVICES (Shropshire) Ltd,04/12/2017, 350.00 
Commercial Services,Property & Design (BiT),Premises-Related Expenditure,R&M -Buildings DLO Charge,PP ELECTRICAL SERVICES (Shropshire) Ltd,04/12/2017, 315.00 
Commercial Services,Property & Design (BiT),Premises-Related Expenditure,R&M -Buildings DLO Charge,PP ELECTRICAL SERVICES (Shropshire) Ltd,15/12/2017, 120.00 
Commercial Services,Property & Design (BiT),Premises-Related Expenditure,R&M -Buildings DLO Charge,PP ELECTRICAL SERVICES (Shropshire) Ltd,15/12/2017," 1,346.00 "
Commercial Services,Property & Design (BiT),Premises-Related Expenditure,R&M -Buildings DLO Charge,PP ELECTRICAL SERVICES (Shropshire) Ltd,04/12/2017, 138.75 
Commercial Services,Property & Design (BiT),Premises-Related Expenditure,R&M -Buildings DLO Charge,PP ELECTRICAL SERVICES (Shropshire) Ltd,15/12/2017," 1,066.25 "
Commercial Services,Property & Design (BiT),Premises-Related Expenditure,R&M -Buildings DLO Charge,PP ELECTRICAL SERVICES (Shropshire) Ltd,04/12/2017, 463.40 
Commercial Services,Property & Design (BiT),Premises-Related Expenditure,R&M -Buildings DLO Charge,PP ELECTRICAL SERVICES (Shropshire) Ltd,04/12/2017, 137.50 
Commercial Services,Property & Design (BiT),Premises-Related Expenditure,R&M -Buildings DLO Charge,(CIS) BRITISH GAS SERVICES LTD (34051491),15/12/2017, 335.00 
Commercial Services,Property & Design (BiT),Premises-Related Expenditure,R&M -Buildings DLO Charge,(CIS) BRITISH GAS SERVICES LTD (34051491),15/12/2017, 335.00 
Commercial Services,Property & Design (BiT),Premises-Related Expenditure,Service Contracts,(CIS) BRITISH GAS SERVICES LTD (34051491),15/12/2017, 268.00 
Commercial Services,Property & Design (BiT),Premises-Related Expenditure,Service Contracts,(CIS) BRITISH GAS SERVICES LTD (34051491),15/12/2017, 335.00 
Commercial Services,Property & Design (BiT),Premises-Related Expenditure,Service Contracts,(CIS) BRITISH GAS SERVICES LTD (34051491),15/12/2017, 268.00 
Commercial Services,Property & Design (BiT),Premises-Related Expenditure,Service Contracts,(CIS) BRITISH GAS SERVICES LTD (34051491),15/12/2017, 167.50 
Commercial Services,Property & Design (BiT),Premises-Related Expenditure,Service Contracts,(CIS) BRITISH GAS SERVICES LTD (34051491),15/12/2017, 167.50 
Commercial Services,Property & Design (BiT),Premises-Related Expenditure,Service Contracts,(CIS) BRITISH GAS SERVICES LTD (34051491),15/12/2017, 234.50 
Commercial Services,Property & Design (BiT),Premises-Related Expenditure,Service Contracts,(CIS) BRITISH GAS SERVICES LTD (34051491),15/12/2017," 13,921.83 "
Commercial Services,Property & Design (BiT),Premises-Related Expenditure,R&M -Buildings DLO Charge,JCE & SONS LTD,28/12/2017, 157.00 
Commercial Services,Property & Design (BiT),Premises-Related Expenditure,R&M -Buildings DLO Charge,JCE & SONS LTD,28/12/2017, 474.69 
Commercial Services,Property & Design (BiT),Premises-Related Expenditure,Service Contracts,JCE & SONS LTD,15/12/2017, 301.00 
Commercial Services,Property & Design (BiT),Premises-Related Expenditure,Service Contracts,JCE & SONS LTD,28/12/2017, 141.02 
Commercial Services,Property & Design (BiT),Premises-Related Expenditure,Service Contracts,JCE & SONS LTD,28/12/2017, 289.50 
Commercial Services,Property & Design (BiT),Premises-Related Expenditure,R&M -Buildings DLO Charge,JCE & SONS LTD,04/12/2017, 122.49 
Commercial Services,Property & Design (BiT),Premises-Related Expenditure,R&M -Buildings DLO Charge,JCE & SONS LTD,05/12/2017, 708.00 
Commercial Services,Property & Design (BiT),Premises-Related Expenditure,R&M -Buildings DLO Charge,JCE & SONS LTD,05/12/2017," 2,330.01 "
Commercial Services,Property & Design (BiT),Premises-Related Expenditure,R&M -Buildings DLO Charge,JCE & SONS LTD,28/12/2017, 288.08 
Commercial Services,Property & Design (BiT),Premises-Related Expenditure,R&M -Buildings DLO Charge,JCE & SONS LTD,28/12/2017, 217.78 
Commercial Services,Property & Design (BiT),Premises-Related Expenditure,R&M -Buildings DLO Charge,JCE & SONS LTD,28/12/2017, 264.63 
Commercial Services,Property & Design (BiT),Premises-Related Expenditure,R&M -Buildings DLO Charge,JCE & SONS LTD,04/12/2017, 117.66 
Commercial Services,Property & Design (BiT),Premises-Related Expenditure,R&M -Buildings DLO Charge,JCE & SONS LTD,04/12/2017, 221.12 
Commercial Services,Property & Design (BiT),Premises-Related Expenditure,R&M -Buildings DLO Charge,JCE & SONS LTD,04/12/2017, 187.50 
Commercial Services,Property & Design (BiT),Premises-Related Expenditure,R&M -Buildings DLO Charge,JCE & SONS LTD,04/12/2017, 268.70 
Commercial Services,Property & Design (BiT),Premises-Related Expenditure,R&M -Buildings DLO Charge,JCE & SONS LTD,04/12/2017, 497.20 
Commercial Services,Property & Design (BiT),Premises-Related Expenditure,R&M -Buildings DLO Charge,JCE & SONS LTD,04/12/2017, 331.16 
Commercial Services,Property & Design (BiT),Premises-Related Expenditure,R&M -Buildings DLO Charge,JCE & SONS LTD,15/12/2017, 227.40 
Commercial Services,Property & Design (BiT),Premises-Related Expenditure,R&M -Buildings DLO Charge,JCE & SONS LTD,15/12/2017, 107.50 
Commercial Services,Property & Design (BiT),Premises-Related Expenditure,R&M -Buildings DLO Charge,JCE & SONS LTD,15/12/2017, 299.74 
Commercial Services,Property & Design (BiT),Premises-Related Expenditure,R&M -Buildings DLO Charge,JCE & SONS LTD,15/12/2017, 835.04 
Commercial Services,Property & Design (BiT),Premises-Related Expenditure,R&M -Buildings DLO Charge,JCE & SONS LTD,04/12/2017, 110.11 
Commercial Services,Property & Design (BiT),Premises-Related Expenditure,R&M -Buildings DLO Charge,JCE & SONS LTD,04/12/2017, 163.40 
Commercial Services,Property & Design (BiT),Premises-Related Expenditure,R&M -Buildings DLO Charge,JCE & SONS LTD,28/12/2017, 237.76 
Commercial Services,Property & Design (BiT),Premises-Related Expenditure,R&M -Buildings DLO Charge,JCE & SONS LTD,28/12/2017, 104.08 
Commercial Services,Property & Design (BiT),Premises-Related Expenditure,R&M -Buildings DLO Charge,JCE & SONS LTD,28/12/2017, 168.90 
Commercial Services,Property & Design (BiT),Premises-Related Expenditure,R&M -Buildings DLO Charge,JCE & SONS LTD,28/12/2017, 123.00 
Commercial Services,Property & Design (BiT),Premises-Related Expenditure,R&M -Buildings DLO Charge,JCE & SONS LTD,28/12/2017, 214.00 
Commercial Services,Property & Design (BiT),Premises-Related Expenditure,R&M -Buildings DLO Charge,JCE & SONS LTD,15/12/2017," 1,450.00 "
Commercial Services,Property & Design (BiT),Premises-Related Expenditure,R&M -Buildings DLO Charge,JCE & SONS LTD,04/12/2017, 228.00 
Commercial Services,Property & Design (BiT),Premises-Related Expenditure,R&M -Buildings DLO Charge,JCE & SONS LTD,04/12/2017, 328.00 
Commercial Services,Property & Design (BiT),Premises-Related Expenditure,R&M -Buildings DLO Charge,JCE & SONS LTD,04/12/2017, 151.00 
Commercial Services,Property & Design (BiT),Premises-Related Expenditure,R&M -Buildings DLO Charge,JCE & SONS LTD,13/12/2017, 272.00 
Commercial Services,Property & Design (BiT),Premises-Related Expenditure,R&M -Buildings DLO Charge,JCE & SONS LTD,05/12/2017, 126.00 
Commercial Services,Property & Design (BiT),Premises-Related Expenditure,R&M -Buildings DLO Charge,JCE & SONS LTD,28/12/2017, 199.62 
Commercial Services,Property & Design (BiT),Premises-Related Expenditure,R&M -Buildings DLO Charge,JCE & SONS LTD,04/12/2017, 190.48 
Commercial Services,Property & Design (BiT),Premises-Related Expenditure,Service Contracts,JCE & SONS LTD,04/12/2017," 1,899.00 "
Commercial Services,Property & Design (BiT),Premises-Related Expenditure,R&M -Buildings DLO Charge,JCE & SONS LTD,04/12/2017, 223.50 
Commercial Services,Property & Design (BiT),Premises-Related Expenditure,R&M -Buildings DLO Charge,JCE & SONS LTD,28/12/2017, 600.00 
Commercial Services,Property & Design (BiT),Premises-Related Expenditure,R&M -Buildings DLO Charge,JCE & SONS LTD,15/12/2017, 276.06 
Commercial Services,Property & Design (BiT),Premises-Related Expenditure,R&M -Buildings DLO Charge,JCE & SONS LTD,15/12/2017, 258.74 
Commercial Services,Property & Design (BiT),Premises-Related Expenditure,R&M -Building Other,JCE & SONS LTD,15/12/2017, 287.50 
Commercial Services,Property & Design (BiT),Premises-Related Expenditure,R&M -Building Other,JCE & SONS LTD,04/12/2017, 467.50 
Commercial Services,Property & Design (BiT),Premises-Related Expenditure,R&M -Building Other,JCE & SONS LTD,04/12/2017, 397.50 
Commercial Services,Property & Design (BiT),Premises-Related Expenditure,R&M -Buildings DLO Charge,JCE & SONS LTD,04/12/2017, 448.51 
Commercial Services,Property & Design (BiT),Premises-Related Expenditure,R&M -Building Other,JCE & SONS LTD,04/12/2017, 132.26 
Commercial Services,Property & Design (BiT),Premises-Related Expenditure,R&M -Building Other,JCE & SONS LTD,04/12/2017, 234.63 
Commercial Services,Property & Design (BiT),Premises-Related Expenditure,R&M -Buildings DLO Charge,JCE & SONS LTD,28/12/2017," 1,048.84 "
Commercial Services,Property & Design (BiT),Premises-Related Expenditure,R&M -Buildings DLO Charge,JCE & SONS LTD,28/12/2017, 307.34 
Commercial Services,Property & Design (BiT),Premises-Related Expenditure,R&M -Buildings DLO Charge,JCE & SONS LTD,28/12/2017, 192.80 
Commercial Services,Property & Design (BiT),Premises-Related Expenditure,R&M -Buildings DLO Charge,JCE & SONS LTD,15/12/2017, 209.44 
Commercial Services,Property & Design (BiT),Premises-Related Expenditure,R&M -Building Other,JCE & SONS LTD,15/12/2017, 272.46 
Commercial Services,Property & Design (BiT),Premises-Related Expenditure,R&M -Buildings DLO Charge,JCE & SONS LTD,15/12/2017, 196.74 
Commercial Services,Property & Design (BiT),Premises-Related Expenditure,R&M -Buildings DLO Charge,JCE & SONS LTD,04/12/2017, 387.50 
Commercial Services,Property & Design (BiT),Premises-Related Expenditure,R&M -Buildings DLO Charge,JCE & SONS LTD,13/12/2017, 136.32 
Commercial Services,Property & Design (BiT),Premises-Related Expenditure,R&M -Buildings DLO Charge,JCE & SONS LTD,13/12/2017, 118.00 
Commercial Services,Property & Design (BiT),Premises-Related Expenditure,R&M -Buildings DLO Charge,JCE & SONS LTD,05/12/2017, 184.50 
Commercial Services,Property & Design (BiT),Premises-Related Expenditure,R&M -Buildings DLO Charge,JCE & SONS LTD,28/12/2017, 111.90 
Commercial Services,Property & Design (BiT),Premises-Related Expenditure,R&M -Buildings DLO Charge,JCE & SONS LTD,28/12/2017, 368.14 
Commercial Services,Property & Design (BiT),Premises-Related Expenditure,R&M -Buildings DLO Charge,JCE & SONS LTD,04/12/2017, 202.50 
Commercial Services,Property & Design (BiT),Premises-Related Expenditure,R&M -Buildings DLO Charge,JCE & SONS LTD,04/12/2017, 162.01 
Commercial Services,Property & Design (BiT),Premises-Related Expenditure,R&M -Buildings DLO Charge,JCE & SONS LTD,04/12/2017, 306.48 
Commercial Services,Property & Design (BiT),Premises-Related Expenditure,R&M -Buildings DLO Charge,JCE & SONS LTD,04/12/2017," 1,845.00 "
Commercial Services,Property & Design (BiT),Premises-Related Expenditure,R&M -Buildings DLO Charge,JCE & SONS LTD,04/12/2017, 101.48 
Commercial Services,Property & Design (BiT),Premises-Related Expenditure,R&M -Buildings DLO Charge,JCE & SONS LTD,04/12/2017, 413.00 
Commercial Services,Property & Design (BiT),Premises-Related Expenditure,R&M -Buildings DLO Charge,JCE & SONS LTD,04/12/2017, 171.50 
Commercial Services,Property & Design (BiT),Premises-Related Expenditure,R&M -Buildings DLO Charge,JCE & SONS LTD,04/12/2017, 212.13 
Commercial Services,Property & Design (BiT),Premises-Related Expenditure,R&M -Buildings DLO Charge,JCE & SONS LTD,04/12/2017, 116.50 
Commercial Services,Property & Design (BiT),Premises-Related Expenditure,R&M -Buildings DLO Charge,JCE & SONS LTD,04/12/2017, 393.70 
Commercial Services,Property & Design (BiT),Premises-Related Expenditure,R&M -Buildings DLO Charge,JCE & SONS LTD,04/12/2017, 152.94 
Commercial Services,Property & Design (BiT),Premises-Related Expenditure,R&M -Buildings DLO Charge,JCE & SONS LTD,04/12/2017, 180.00 
Commercial Services,Property & Design (BiT),Premises-Related Expenditure,R&M -Buildings DLO Charge,JCE & SONS LTD,15/12/2017, 116.20 
Commercial Services,Property & Design (BiT),Premises-Related Expenditure,R&M -Buildings DLO Charge,JCE & SONS LTD,04/12/2017, 281.16 
Commercial Services,Property & Design (BiT),Premises-Related Expenditure,R&M -Buildings DLO Charge,JCE & SONS LTD,04/12/2017, 103.52 
Commercial Services,Property & Design (BiT),Premises-Related Expenditure,R&M -Buildings DLO Charge,JCE & SONS LTD,04/12/2017, 363.00 
Commercial Services,Property & Design (BiT),Premises-Related Expenditure,R&M -Buildings DLO Charge,JCE & SONS LTD,04/12/2017, 161.42 
Commercial Services,Property & Design (BiT),Premises-Related Expenditure,R&M -Buildings DLO Charge,JCE & SONS LTD,04/12/2017, 497.50 
Commercial Services,Property & Design (BiT),Premises-Related Expenditure,R&M -Buildings DLO Charge,JCE & SONS LTD,15/12/2017, 111.00 
Commercial Services,Property & Design (BiT),Premises-Related Expenditure,R&M -Buildings DLO Charge,JCE & SONS LTD,15/12/2017, 400.05 
Commercial Services,Property & Design (BiT),Premises-Related Expenditure,R&M -Buildings DLO Charge,JCE & SONS LTD,15/12/2017, 143.41 
Commercial Services,Property & Design (BiT),Premises-Related Expenditure,R&M -Buildings DLO Charge,JCE & SONS LTD,15/12/2017, 197.50 
Commercial Services,Property & Design (BiT),Premises-Related Expenditure,R&M -Buildings DLO Charge,SDT ELECTRICAL LTD,05/12/2017, 767.64 
Commercial Services,Property & Design (BiT),Premises-Related Expenditure,R&M -Buildings DLO Charge,SDT ELECTRICAL LTD,05/12/2017, 120.00 
Commercial Services,Property & Design (BiT),Premises-Related Expenditure,R&M -Building Other,WREKIN DRAIN SERVICES LTD,05/12/2017, 185.00 
Commercial Services,Property & Design (BiT),Premises-Related Expenditure,Tenant Damage,WREKIN DRAIN SERVICES LTD,05/12/2017, 115.00 
Commercial Services,Property & Design (BiT),Premises-Related Expenditure,R&M -Buildings DLO Charge,WREKIN DRAIN SERVICES LTD,05/12/2017, 170.00 
Commercial Services,Property & Design (BiT),Premises-Related Expenditure,R&M -Buildings DLO Charge,WREKIN DRAIN SERVICES LTD,05/12/2017, 170.00 
Commercial Services,Property & Design (BiT),Premises-Related Expenditure,R&M -Buildings DLO Charge,WREKIN DRAIN SERVICES LTD,05/12/2017, 460.00 
Commercial Services,Property & Design (BiT),Premises-Related Expenditure,R&M -Buildings DLO Charge,WREKIN DRAIN SERVICES LTD,05/12/2017, 170.00 
Commercial Services,Property & Design (BiT),Premises-Related Expenditure,R&M -Buildings DLO Charge,WREKIN DRAIN SERVICES LTD,05/12/2017, 185.00 
Commercial Services,Property & Design (BiT),Premises-Related Expenditure,R&M -Buildings DLO Charge,WREKIN DRAIN SERVICES LTD,05/12/2017, 170.00 
Commercial Services,Property & Design (BiT),Premises-Related Expenditure,R&M -Buildings DLO Charge,WREKIN DRAIN SERVICES LTD,05/12/2017, 150.00 
Commercial Services,Property & Design (BiT),Premises-Related Expenditure,R&M -Buildings DLO Charge,WREKIN DRAIN SERVICES LTD,06/12/2017," 1,430.00 "
Commercial Services,Property & Design (BiT),Premises-Related Expenditure,R&M -Buildings DLO Charge,WREKIN DRAIN SERVICES LTD,06/12/2017, 170.00 
Commercial Services,Property & Design (BiT),Premises-Related Expenditure,R&M -Building Other,WREKIN DRAIN SERVICES LTD,15/12/2017, 170.00 
Commercial Services,Property & Design (BiT),Premises-Related Expenditure,R&M -Buildings DLO Charge,WREKIN DRAIN SERVICES LTD,05/12/2017, 170.00 
Commercial Services,Property & Design (BiT),Premises-Related Expenditure,R&M -Buildings DLO Charge,WREKIN DRAIN SERVICES LTD,05/12/2017, 150.00 
Commercial Services,Property & Design (BiT),Premises-Related Expenditure,R&M -Buildings DLO Charge,WREKIN DRAIN SERVICES LTD,05/12/2017, 170.00 
Commercial Services,Property & Design (BiT),Premises-Related Expenditure,R&M -Buildings DLO Charge,WREKIN DRAIN SERVICES LTD,05/12/2017, 170.00 
Commercial Services,Property & Design (BiT),Premises-Related Expenditure,R&M -Buildings DLO Charge,COOL SERVICES LTD,04/12/2017, 254.10 
Commercial Services,Property & Design (BiT),Premises-Related Expenditure,R&M -Buildings DLO Charge,COOL SERVICES LTD,04/12/2017, 336.00 
Commercial Services,Property & Design (BiT),Premises-Related Expenditure,R&M -Buildings DLO Charge,COOL SERVICES LTD,28/12/2017, 237.00 
Commercial Services,Property & Design (BiT),Premises-Related Expenditure,R&M -Buildings DLO Charge,COOL SERVICES LTD,28/12/2017, 745.00 
Commercial Services,Property & Design (BiT),Premises-Related Expenditure,Service Contracts,COOL SERVICES LTD,04/12/2017," 1,109.78 "
Commercial Services,Property & Design (BiT),Premises-Related Expenditure,Service Contracts,COOL SERVICES LTD,04/12/2017, 391.56 
Commercial Services,Property & Design (BiT),Premises-Related Expenditure,Service Contracts,COOL SERVICES LTD,28/12/2017, 424.90 
Commercial Services,Property & Design (BiT),Premises-Related Expenditure,Service Contracts,COOL SERVICES LTD,28/12/2017, 368.97 
Commercial Services,Property & Design (BiT),Premises-Related Expenditure,R&M -Buildings DLO Charge,COOL SERVICES LTD,04/12/2017, 156.00 
Commercial Services,Property & Design (BiT),Premises-Related Expenditure,R&M -Buildings DLO Charge,COOL SERVICES LTD,04/12/2017, 264.00 
Commercial Services,Property & Design (BiT),Premises-Related Expenditure,R&M -Buildings DLO Charge,COOL SERVICES LTD,04/12/2017, 176.00 
Commercial Services,Property & Design (BiT),Premises-Related Expenditure,R&M -Buildings DLO Charge,COOL SERVICES LTD,28/12/2017, 960.00 
Commercial Services,Property & Design (BiT),Premises-Related Expenditure,R&M -Buildings DLO Charge,COOL SERVICES LTD,04/12/2017, 250.00 
Commercial Services,Property & Design (BiT),Premises-Related Expenditure,R&M -Buildings DLO Charge,COOL SERVICES LTD,04/12/2017, 110.00 
Commercial Services,Property & Design (BiT),Premises-Related Expenditure,R&M -Buildings DLO Charge,A1 Glass & Glazing (Shropshire) Limited,28/12/2017, 120.00 
Commercial Services,Property & Design (BiT),Premises-Related Expenditure,R&M -Buildings DLO Charge,A1 Glass & Glazing (Shropshire) Limited,15/12/2017, 375.00 
Commercial Services,Property & Design (BiT),Premises-Related Expenditure,R&M -Buildings DLO Charge,Reacted Personal Information ,28/12/2017, 329.89 
Commercial Services,Property & Design (BiT),Premises-Related Expenditure,Service Contracts,Reacted Personal Information ,04/12/2017, 228.57 
Commercial Services,Property & Design (BiT),Premises-Related Expenditure,Service Contracts,Reacted Personal Information ,28/12/2017, 229.63 
Commercial Services,Property & Design (BiT),Premises-Related Expenditure,R&M -Buildings DLO Charge,Reacted Personal Information ,13/12/2017," 3,249.38 "
Commercial Services,Property & Design (BiT),Premises-Related Expenditure,R&M -Buildings DLO Charge,Reacted Personal Information ,13/12/2017, 171.02 
Commercial Services,Property & Design (BiT),Premises-Related Expenditure,R&M -Buildings DLO Charge,Reacted Personal Information ,13/12/2017," 1,224.68 "
Commercial Services,Property & Design (BiT),Premises-Related Expenditure,R&M -Buildings DLO Charge,Reacted Personal Information ,06/12/2017, 660.87 
Commercial Services,Property & Design (BiT),Premises-Related Expenditure,R&M -Buildings DLO Charge,Reacted Personal Information ,06/12/2017, 101.33 
Commercial Services,Property & Design (BiT),Premises-Related Expenditure,R&M -Buildings DLO Charge,Reacted Personal Information ,06/12/2017, 104.08 
Commercial Services,Property & Design (BiT),Premises-Related Expenditure,R&M -Buildings DLO Charge,Reacted Personal Information ,04/12/2017, 300.74 
Commercial Services,Property & Design (BiT),Premises-Related Expenditure,R&M -Buildings DLO Charge,Reacted Personal Information ,04/12/2017, 106.54 
Commercial Services,Property & Design (BiT),Premises-Related Expenditure,R&M -Buildings DLO Charge,Reacted Personal Information ,04/12/2017, 142.70 
Commercial Services,Property & Design (BiT),Premises-Related Expenditure,R&M -Buildings DLO Charge,Reacted Personal Information ,04/12/2017," 1,627.38 "
Commercial Services,Property & Design (BiT),Premises-Related Expenditure,R&M -Buildings DLO Charge,Reacted Personal Information ,13/12/2017, 116.75 
Commercial Services,Property & Design (BiT),Premises-Related Expenditure,R&M -Buildings DLO Charge,Reacted Personal Information ,13/12/2017, 127.50 
Commercial Services,Property & Design (BiT),Premises-Related Expenditure,R&M -Buildings DLO Charge,Reacted Personal Information ,15/12/2017," 1,246.30 "
Commercial Services,Property & Design (BiT),Premises-Related Expenditure,R&M -Buildings DLO Charge,Reacted Personal Information ,04/12/2017, 153.31 
Commercial Services,Property & Design (BiT),Premises-Related Expenditure,R&M -Buildings DLO Charge,Reacted Personal Information ,04/12/2017, 361.45 
Commercial Services,Property & Design (BiT),Premises-Related Expenditure,R&M -Buildings DLO Charge,Reacted Personal Information ,04/12/2017, 188.17 
Commercial Services,Property & Design (BiT),Premises-Related Expenditure,R&M -Buildings DLO Charge,Reacted Personal Information ,04/12/2017, 127.50 
Commercial Services,Property & Design (BiT),Premises-Related Expenditure,R&M -Buildings DLO Charge,Reacted Personal Information ,04/12/2017," 2,340.05 "
Commercial Services,Property & Design (BiT),Premises-Related Expenditure,R&M -Buildings DLO Charge,Reacted Personal Information ,04/12/2017, 250.46 
Commercial Services,Property & Design (BiT),Premises-Related Expenditure,R&M -Buildings DLO Charge,Reacted Personal Information ,13/12/2017, 105.00 
Commercial Services,Property & Design (BiT),Premises-Related Expenditure,R&M -Buildings DLO Charge,Reacted Personal Information ,13/12/2017, 122.60 
Commercial Services,Property & Design (BiT),Premises-Related Expenditure,R&M -Buildings DLO Charge,Reacted Personal Information ,13/12/2017, 140.00 
Commercial Services,Property & Design (BiT),Premises-Related Expenditure,R&M -Buildings DLO Charge,Reacted Personal Information ,28/12/2017, 261.31 
Commercial Services,Property & Design (BiT),Premises-Related Expenditure,R&M -Buildings DLO Charge,Reacted Personal Information ,14/12/2017," 5,101.56 "
Commercial Services,Property & Design (BiT),Premises-Related Expenditure,R&M -Buildings DLO Charge,Reacted Personal Information ,04/12/2017, 386.77 
Commercial Services,Property & Design (BiT),Premises-Related Expenditure,R&M -Buildings DLO Charge,Reacted Personal Information ,04/12/2017, 181.63 
Commercial Services,Property & Design (BiT),Premises-Related Expenditure,R&M -Buildings DLO Charge,Reacted Personal Information ,04/12/2017, 247.39 
Commercial Services,Property & Design (BiT),Premises-Related Expenditure,R&M -Buildings DLO Charge,Reacted Personal Information ,13/12/2017, 365.51 
Commercial Services,Property & Design (BiT),Premises-Related Expenditure,Planned Repairs,Reacted Personal Information ,13/12/2017, 140.00 
Commercial Services,Property & Design (BiT),Premises-Related Expenditure,R&M -Buildings DLO Charge,Reacted Personal Information ,04/12/2017, 318.75 
Commercial Services,Property & Design (BiT),Premises-Related Expenditure,R&M -Building Other,Reacted Personal Information ,04/12/2017, 154.65 
Commercial Services,Property & Design (BiT),Premises-Related Expenditure,Planned Repairs,Reacted Personal Information ,04/12/2017, 140.00 
Commercial Services,Property & Design (BiT),Premises-Related Expenditure,R&M -Buildings DLO Charge,Reacted Personal Information ,04/12/2017, 168.00 
Commercial Services,Property & Design (BiT),Premises-Related Expenditure,R&M -Buildings DLO Charge,Reacted Personal Information ,04/12/2017, 215.51 
Commercial Services,Property & Design (BiT),Premises-Related Expenditure,R&M -Buildings DLO Charge,Reacted Personal Information ,04/12/2017, 365.69 
Commercial Services,Property & Design (BiT),Premises-Related Expenditure,R&M -Buildings DLO Charge,Reacted Personal Information ,04/12/2017, 185.20 
Commercial Services,Property & Design (BiT),Premises-Related Expenditure,R&M -Buildings DLO Charge,Reacted Personal Information ,28/12/2017, 130.28 
Commercial Services,Property & Design (BiT),Premises-Related Expenditure,R&M -Buildings DLO Charge,Reacted Personal Information ,28/12/2017, 231.60 
Commercial Services,Property & Design (BiT),Premises-Related Expenditure,R&M -Buildings DLO Charge,Reacted Personal Information ,15/12/2017, 115.72 
Commercial Services,Property & Design (BiT),Premises-Related Expenditure,R&M -Buildings DLO Charge,Reacted Personal Information ,15/12/2017, 628.19 
Commercial Services,Property & Design (BiT),Premises-Related Expenditure,R&M -Building Other,Reacted Personal Information ,04/12/2017, 119.00 
Commercial Services,Property & Design (BiT),Premises-Related Expenditure,R&M -Building Other,Reacted Personal Information ,04/12/2017, 177.22 
Commercial Services,Property & Design (BiT),Premises-Related Expenditure,R&M -Buildings DLO Charge,Reacted Personal Information ,05/12/2017, 327.53 
Commercial Services,Property & Design (BiT),Premises-Related Expenditure,R&M -Buildings DLO Charge,Reacted Personal Information ,06/12/2017," 1,232.77 "
Commercial Services,Property & Design (BiT),Premises-Related Expenditure,R&M -Buildings DLO Charge,Reacted Personal Information ,06/12/2017, 127.50 
Commercial Services,Property & Design (BiT),Premises-Related Expenditure,R&M -Buildings DLO Charge,Reacted Personal Information ,28/12/2017, 191.25 
Commercial Services,Property & Design (BiT),Premises-Related Expenditure,R&M -Buildings DLO Charge,Reacted Personal Information ,28/12/2017, 191.25 
Commercial Services,Property & Design (BiT),Premises-Related Expenditure,R&M -Buildings DLO Charge,Reacted Personal Information ,28/12/2017, 134.00 
Commercial Services,Property & Design (BiT),Premises-Related Expenditure,R&M -Buildings DLO Charge,Reacted Personal Information ,13/12/2017, 255.00 
Commercial Services,Property & Design (BiT),Premises-Related Expenditure,R&M -Buildings DLO Charge,Reacted Personal Information ,13/12/2017, 191.25 
Commercial Services,Property & Design (BiT),Premises-Related Expenditure,R&M -Buildings DLO Charge,Reacted Personal Information ,13/12/2017, 168.30 
Commercial Services,Property & Design (BiT),Premises-Related Expenditure,R&M -Buildings DLO Charge,Reacted Personal Information ,13/12/2017, 197.26 
Commercial Services,Property & Design (BiT),Premises-Related Expenditure,R&M -Buildings DLO Charge,Reacted Personal Information ,13/12/2017, 140.00 
Commercial Services,Property & Design (BiT),Premises-Related Expenditure,R&M -Buildings DLO Charge,Reacted Personal Information ,13/12/2017, 225.57 
Commercial Services,Property & Design (BiT),Premises-Related Expenditure,R&M -Buildings DLO Charge,Reacted Personal Information ,04/12/2017, 223.47 
Commercial Services,Property & Design (BiT),Premises-Related Expenditure,R&M -Buildings DLO Charge,Reacted Personal Information ,04/12/2017, 318.75 
Commercial Services,Property & Design (BiT),Premises-Related Expenditure,R&M -Buildings DLO Charge,Reacted Personal Information ,04/12/2017, 214.13 
Commercial Services,Property & Design (BiT),Premises-Related Expenditure,R&M -Buildings DLO Charge,Reacted Personal Information ,04/12/2017, 532.24 
Commercial Services,Property & Design (BiT),Premises-Related Expenditure,R&M -Buildings DLO Charge,Reacted Personal Information ,04/12/2017," 1,058.09 "
Commercial Services,Property & Design (BiT),Premises-Related Expenditure,R&M -Buildings DLO Charge,Reacted Personal Information ,13/12/2017, 191.25 
Commercial Services,Property & Design (BiT),Premises-Related Expenditure,R&M -Buildings DLO Charge,Reacted Personal Information ,15/12/2017, 145.50 
Commercial Services,Property & Design (BiT),Premises-Related Expenditure,R&M -Buildings DLO Charge,Reacted Personal Information ,04/12/2017, 496.50 
Commercial Services,Property & Design (BiT),Premises-Related Expenditure,R&M -Buildings DLO Charge,Reacted Personal Information ,04/12/2017, 122.50 
Commercial Services,Property & Design (BiT),Premises-Related Expenditure,R&M -Buildings DLO Charge,Reacted Personal Information ,04/12/2017, 226.01 
Commercial Services,Property & Design (BiT),Premises-Related Expenditure,R&M -Buildings DLO Charge,Reacted Personal Information ,04/12/2017, 255.00 
Commercial Services,Property & Design (BiT),Premises-Related Expenditure,R&M -Buildings DLO Charge,Reacted Personal Information ,04/12/2017, 255.00 
Commercial Services,Property & Design (BiT),Premises-Related Expenditure,R&M -Buildings DLO Charge,Reacted Personal Information ,14/12/2017, 101.33 
Commercial Services,Property & Design (BiT),Premises-Related Expenditure,Other,Reacted Personal Information ,14/12/2017, 140.00 
Commercial Services,Property & Design (BiT),Premises-Related Expenditure,R&M -Buildings DLO Charge,Reacted Personal Information ,15/12/2017," 1,901.43 "
Commercial Services,Property & Design (BiT),Premises-Related Expenditure,R&M -Buildings DLO Charge,Bagnalls Painting & Decorating,21/12/2017," 3,485.00 "
Commercial Services,Property & Design (BiT),Premises-Related Expenditure,R&M -Buildings DLO Charge,Churches Fire Security Ltd,04/12/2017, 165.75 
Commercial Services,Property & Design (BiT),Premises-Related Expenditure,R&M -Buildings DLO Charge,Churches Fire Security Ltd,04/12/2017, 120.00 
Commercial Services,Property & Design (BiT),Premises-Related Expenditure,R&M -Buildings DLO Charge,Churches Fire Security Ltd,04/12/2017, 206.50 
Commercial Services,Property & Design (BiT),Premises-Related Expenditure,R&M -Buildings DLO Charge,Churches Fire Security Ltd,04/12/2017, 211.00 
Commercial Services,Property & Design (BiT),Premises-Related Expenditure,Service Contracts,Churches Fire Security Ltd,04/12/2017, 495.00 
Commercial Services,Property & Design (BiT),Premises-Related Expenditure,Service Contracts,Churches Fire Security Ltd,04/12/2017, 180.00 
Commercial Services,Property & Design (BiT),Premises-Related Expenditure,R&M -Buildings DLO Charge,Churches Fire Security Ltd,04/12/2017, 355.95 
Commercial Services,Property & Design (BiT),Premises-Related Expenditure,R&M -Buildings DLO Charge,Churches Fire Security Ltd,04/12/2017, 904.50 
Commercial Services,Property & Design (BiT),Premises-Related Expenditure,Service Contracts,Churches Fire Security Ltd,04/12/2017, 590.00 
Commercial Services,Property & Design (BiT),Premises-Related Expenditure,Trade Refuse,FCC Recycling (UK) Ltd (39521486),05/12/2017," 1,066.78 "
Commercial Services,Property & Design (BiT),Premises-Related Expenditure,Clean Mats & Toilet Requisites,Larragard Ltd T/A Gard Chemicals,29/12/2017, 376.20 
Commercial Services,Property & Design (BiT),Premises-Related Expenditure,R&M -Buildings DLO Charge,WAGSTAFF SCHOOL FURNITURE,04/12/2017," 2,340.00 "
Commercial Services,Property & Design (BiT),Premises-Related Expenditure,R&M -Buildings DLO Charge,WAGSTAFF SCHOOL FURNITURE,04/12/2017, 235.90 
Commercial Services,Property & Design (BiT),Premises-Related Expenditure,R&M -Buildings DLO Charge,ARJO UK LTD,15/12/2017, 610.37 
Commercial Services,Property & Design (BiT),Premises-Related Expenditure,Service Contracts,ARJO UK LTD,15/12/2017, 604.00 
Commercial Services,Property & Design (BiT),Premises-Related Expenditure,R&M -Buildings DLO Charge,ASLES (TOOL HIRE & SALES) LTD,04/12/2017, 265.00 
Commercial Services,Property & Design (BiT),Premises-Related Expenditure,R&M -Buildings DLO Charge,AQUALOGIC (WC) LTD,13/12/2017, 204.50 
Commercial Services,Property & Design (BiT),Premises-Related Expenditure,R&M -Buildings DLO Charge,AGS AUTOMATIC DOORS LTD,04/12/2017, 115.00 
Commercial Services,Property & Design (BiT),Premises-Related Expenditure,R&M -Buildings DLO Charge,AGS AUTOMATIC DOORS LTD,05/12/2017, 385.00 
Commercial Services,Property & Design (BiT),Premises-Related Expenditure,Service Contracts,AGS AUTOMATIC DOORS LTD,04/12/2017, 237.50 
Commercial Services,Property & Design (BiT),Premises-Related Expenditure,R&M -Buildings DLO Charge,Reacted Personal Information ,04/12/2017, 113.30 
Commercial Services,Property & Design (BiT),Premises-Related Expenditure,R&M -Buildings DLO Charge,Reacted Personal Information ,04/12/2017, 147.40 
Commercial Services,Property & Design (BiT),Premises-Related Expenditure,R&M -Buildings DLO Charge,Reacted Personal Information ,04/12/2017, 147.40 
Commercial Services,Property & Design (BiT),Premises-Related Expenditure,R&M -Buildings DLO Charge,Reacted Personal Information ,04/12/2017, 322.65 
Commercial Services,Property & Design (BiT),Premises-Related Expenditure,R&M -Building Other,Reacted Personal Information ,04/12/2017, 107.21 
Commercial Services,Property & Design (BiT),Premises-Related Expenditure,R&M -Building Other,Reacted Personal Information ,04/12/2017, 107.21 
Commercial Services,Property & Design (BiT),Premises-Related Expenditure,Service Contracts,Reacted Personal Information ,04/12/2017, 193.00 
Commercial Services,Property & Design (BiT),Premises-Related Expenditure,Service Contracts,BRADLEY INDUSTRIAL SERVICES,15/12/2017, 171.50 
Commercial Services,Property & Design (BiT),Premises-Related Expenditure,Service Contracts,BRADLEY INDUSTRIAL SERVICES,15/12/2017, 175.50 
Commercial Services,Property & Design (BiT),Premises-Related Expenditure,Service Contracts,BRADLEY INDUSTRIAL SERVICES,15/12/2017, 128.50 
Commercial Services,Property & Design (BiT),Premises-Related Expenditure,Service Contracts,BRADLEY INDUSTRIAL SERVICES,15/12/2017, 143.50 
Commercial Services,Property & Design (BiT),Premises-Related Expenditure,R&M Fixed Plant Other,BRADLEY INDUSTRIAL SERVICES,15/12/2017," 1,017.41 "
Commercial Services,Property & Design (BiT),Premises-Related Expenditure,R&M -Buildings DLO Charge,BRADLEY INDUSTRIAL SERVICES,29/12/2017, 264.93 
Commercial Services,Property & Design (BiT),Premises-Related Expenditure,R&M -Buildings DLO Charge,BRADLEY INDUSTRIAL SERVICES,29/12/2017, 162.25 
Commercial Services,Property & Design (BiT),Premises-Related Expenditure,R&M -Buildings DLO Charge,BRADLEY INDUSTRIAL SERVICES,29/12/2017, 105.39 
Commercial Services,Property & Design (BiT),Premises-Related Expenditure,R&M -Buildings DLO Charge,BRADLEY INDUSTRIAL SERVICES,29/12/2017, 184.67 
Commercial Services,Property & Design (BiT),Premises-Related Expenditure,R&M -Buildings DLO Charge,BRADLEY INDUSTRIAL SERVICES,29/12/2017, 110.13 
Commercial Services,Property & Design (BiT),Premises-Related Expenditure,R&M -Buildings DLO Charge,BRADLEY INDUSTRIAL SERVICES,29/12/2017, 209.46 
Commercial Services,Property & Design (BiT),Premises-Related Expenditure,Service Contracts,BRADLEY INDUSTRIAL SERVICES,29/12/2017, 124.50 
Commercial Services,Property & Design (BiT),Premises-Related Expenditure,Service Contracts,BRADLEY INDUSTRIAL SERVICES,29/12/2017, 224.50 
Commercial Services,Property & Design (BiT),Premises-Related Expenditure,Service Contracts,BRADLEY INDUSTRIAL SERVICES,29/12/2017, 109.50 
Commercial Services,Property & Design (BiT),Premises-Related Expenditure,Service Contracts,BRADLEY INDUSTRIAL SERVICES,29/12/2017, 196.50 
Commercial Services,Property & Design (BiT),Premises-Related Expenditure,R&M -Buildings DLO Charge,BRADLEY INDUSTRIAL SERVICES,29/12/2017, 199.46 
Commercial Services,Property & Design (BiT),Premises-Related Expenditure,R&M -Buildings DLO Charge,BRADLEY INDUSTRIAL SERVICES,29/12/2017, 659.70 
Commercial Services,Property & Design (BiT),Premises-Related Expenditure,R&M -Buildings DLO Charge,BRADLEY INDUSTRIAL SERVICES,05/12/2017," 2,261.24 "
Commercial Services,Property & Design (BiT),Premises-Related Expenditure,R&M -Buildings DLO Charge,BRADLEY INDUSTRIAL SERVICES,29/12/2017, 281.33 
Commercial Services,Property & Design (BiT),Premises-Related Expenditure,R&M -Buildings DLO Charge,BRADLEY INDUSTRIAL SERVICES,29/12/2017, 509.29 
Commercial Services,Property & Design (BiT),Premises-Related Expenditure,Service Contracts,BRADLEY INDUSTRIAL SERVICES,29/12/2017, 196.50 
Commercial Services,Property & Design (BiT),Premises-Related Expenditure,Service Contracts,BRADLEY INDUSTRIAL SERVICES,29/12/2017, 177.50 
Commercial Services,Property & Design (BiT),Premises-Related Expenditure,Service Contracts,BRADLEY INDUSTRIAL SERVICES,29/12/2017, 147.50 
Commercial Services,Property & Design (BiT),Premises-Related Expenditure,R&M -Buildings DLO Charge,BRADLEY INDUSTRIAL SERVICES,15/12/2017, 126.31 
Commercial Services,Property & Design (BiT),Premises-Related Expenditure,R&M -Buildings DLO Charge,BRADLEY INDUSTRIAL SERVICES,15/12/2017, 204.33 
Commercial Services,Property & Design (BiT),Premises-Related Expenditure,R&M -Buildings DLO Charge,BRADLEY INDUSTRIAL SERVICES,15/12/2017, 159.39 
Commercial Services,Property & Design (BiT),Premises-Related Expenditure,R&M -Buildings DLO Charge,BRADLEY INDUSTRIAL SERVICES,05/12/2017, 203.86 
Commercial Services,Property & Design (BiT),Premises-Related Expenditure,R&M -Buildings DLO Charge,BRADLEY INDUSTRIAL SERVICES,05/12/2017, 659.70 
Commercial Services,Property & Design (BiT),Premises-Related Expenditure,R&M -Buildings DLO Charge,BRADLEY INDUSTRIAL SERVICES,05/12/2017, 121.80 
Commercial Services,Property & Design (BiT),Premises-Related Expenditure,General Rents,COMBINED PROPERTY CONTROL,22/12/2017," 118,150.13 "
Commercial Services,Property & Design (BiT),Premises-Related Expenditure,Leasehold Rents,CHURCHILL PL LIMITED,20/12/2017, 445.50 
Commercial Services,Property & Design (BiT),Premises-Related Expenditure,Leasehold Rents,CHURCHILL PL LIMITED,20/12/2017, 445.50 
Commercial Services,Property & Design (BiT),Premises-Related Expenditure,Leasehold Rents,CHURCHILL PL LIMITED,20/12/2017, 544.50 
Commercial Services,Property & Design (BiT),Premises-Related Expenditure,Leasehold Rents,CHURCHILL PL LIMITED,20/12/2017, 445.50 
Commercial Services,Property & Design (BiT),Premises-Related Expenditure,Leasehold Rents,CHURCHILL PL LIMITED,20/12/2017, 445.50 
Commercial Services,Property & Design (BiT),Premises-Related Expenditure,Leasehold Rents,CHURCHILL PL LIMITED,20/12/2017, 445.50 
Commercial Services,Property & Design (BiT),Supplies & Services,Consultancy,DMW ENVIRONMENTAL SAFETY LTD,29/12/2017, 125.00 
Commercial Services,Property & Design (BiT),Premises-Related Expenditure,R&M -Buildings DLO Charge,DMW ENVIRONMENTAL SAFETY LTD,04/12/2017, 450.00 
Commercial Services,Property & Design (BiT),Supplies & Services,Comp Hardware (Purch / Hire),EUROPEAN ELECTRONIQUE LTD,13/12/2017, 197.06 
Commercial Services,Property & Design (BiT),Premises-Related Expenditure,Service Contracts,HANOVIA LIMITED,05/12/2017," 1,406.70 "
Commercial Services,Property & Design (BiT),Premises-Related Expenditure,R&M -Buildings DLO Charge,JAK WATER SYSTEMS LTD,15/12/2017, 469.74 
Commercial Services,Property & Design (BiT),Premises-Related Expenditure,R&M -Buildings DLO Charge,JAK WATER SYSTEMS LTD,15/12/2017, 585.99 
Commercial Services,Property & Design (BiT),Premises-Related Expenditure,R&M -Buildings DLO Charge,JAK WATER SYSTEMS LTD,04/12/2017," 1,192.05 "
Commercial Services,Property & Design (BiT),Premises-Related Expenditure,R&M -Buildings DLO Charge,JAK WATER SYSTEMS LTD,05/12/2017," 3,619.00 "
Commercial Services,Property & Design (BiT),Supplies & Services,Consultants Fees,Reacted Personal Information ,15/12/2017," 1,160.78 "
Commercial Services,Property & Design (BiT),Supplies & Services,Security Services,LEISURE SEC PLC,15/12/2017, 150.00 
Commercial Services,Property & Design (BiT),Supplies & Services,Security Services,LEISURE SEC PLC,15/12/2017, 150.00 
Commercial Services,Property & Design (BiT),Supplies & Services,Security Services,LEISURE SEC PLC,15/12/2017, 150.00 
Commercial Services,Property & Design (BiT),Supplies & Services,Security Services,LEISURE SEC PLC,15/12/2017, 150.00 
Commercial Services,Property & Design (BiT),Supplies & Services,Security Services,LEISURE SEC PLC,15/12/2017, 150.00 
Commercial Services,Property & Design (BiT),Supplies & Services,Security Services,LEISURE SEC PLC,15/12/2017, 150.00 
Commercial Services,Property & Design (BiT),Supplies & Services,Security Services,LEISURE SEC PLC,15/12/2017,-150.00 
Commercial Services,Property & Design (BiT),Supplies & Services,Security Services,LEISURE SEC PLC,15/12/2017, 150.00 
Commercial Services,Property & Design (BiT),Premises-Related Expenditure,Solid Fuel,FOREST FUELS,15/12/2017, 304.37 
Commercial Services,Property & Design (BiT),Premises-Related Expenditure,Service Contracts,OSBORNE DELTA (LIGHTNING CONDUCTORS) LTD,04/12/2017, 250.00 
Commercial Services,Property & Design (BiT),Premises-Related Expenditure,R&M -Buildings DLO Charge,OSBORNE DELTA (LIGHTNING CONDUCTORS) LTD,15/12/2017, 120.00 
Commercial Services,Property & Design (BiT),Premises-Related Expenditure,R&M -Buildings DLO Charge,OSBORNE DELTA (LIGHTNING CONDUCTORS) LTD,15/12/2017, 120.00 
Commercial Services,Property & Design (BiT),Premises-Related Expenditure,Clean Mats & Toilet Requisites,PROVAC CLEANING SUPPLIES LTD,16/12/2017, 212.60 
Commercial Services,Property & Design (BiT),Premises-Related Expenditure,Clean Mats & Toilet Requisites,PROVAC CLEANING SUPPLIES LTD,16/12/2017, 299.70 
Commercial Services,Property & Design (BiT),Supplies & Services,Comp Software (Purch / Hire),PHOENIX SOFTWARE LTD,14/12/2017, 108.00 
Commercial Services,Property & Design (BiT),Supplies & Services,Health & Safety Expenses,PLAYSAFETY LTD,13/12/2017," 4,248.00 "
Commercial Services,Property & Design (BiT),Premises-Related Expenditure,R&M -Buildings DLO Charge,QUICK SKIPS (TELFORD) LTD,15/12/2017, 165.00 
Commercial Services,Property & Design (BiT),Supplies & Services,Comp Software (Purch / Hire),RICS BUSINESS SERVICES,05/12/2017," 1,866.00 "
Commercial Services,Property & Design (BiT),Premises-Related Expenditure,R&M -Buildings DLO Charge,SECURITY WISE LTD,15/12/2017, 140.00 
Commercial Services,Property & Design (BiT),Premises-Related Expenditure,R&M -Buildings DLO Charge,SECURITY WISE LTD,11/12/2017," 2,669.00 "
Commercial Services,Property & Design (BiT),Premises-Related Expenditure,Gas,SCOTTISH & SOUTHERN ENERGY,15/12/2017, 292.01 
Commercial Services,Property & Design (BiT),Supplies & Services,Equipment - Purchase,SPACEOASIS LTD,05/12/2017, 313.00 
Commercial Services,Property & Design (BiT),Premises-Related Expenditure,R&M -Buildings DLO Charge,G M TREBLE LTD,05/12/2017, 178.00 
Commercial Services,Property & Design (BiT),Premises-Related Expenditure,R&M -Buildings DLO Charge,WESSEX LIFT CO. LTD,04/12/2017, 165.00 
Commercial Services,Property & Design (BiT),Premises-Related Expenditure,R&M -Buildings DLO Charge,WENLOCK HEALTH & SAFETY LTD,05/12/2017, 253.50 
Commercial Services,Property & Design (BiT),Premises-Related Expenditure,R&M -Building Other,Reacted Personal Information ,13/12/2017, 210.00 
Commercial Services,Property & Design (BiT),Premises-Related Expenditure,Gas,West Mercia Energy (WME),28/12/2017, 108.70 
Commercial Services,Property & Design (BiT),Premises-Related Expenditure,Gas,West Mercia Energy (WME),28/12/2017," 1,063.93 "
Commercial Services,Property & Design (BiT),Premises-Related Expenditure,Gas,West Mercia Energy (WME),28/12/2017, 157.97 
Commercial Services,Property & Design (BiT),Premises-Related Expenditure,Electricity,West Mercia Energy (WME),28/12/2017, 199.18 
Commercial Services,Property & Design (BiT),Premises-Related Expenditure,Gas,West Mercia Energy (WME),28/12/2017, 322.68 
Commercial Services,Property & Design (BiT),Premises-Related Expenditure,Gas,West Mercia Energy (WME),28/12/2017," 2,880.93 "
Commercial Services,Property & Design (BiT),Premises-Related Expenditure,Gas,West Mercia Energy (WME),28/12/2017, 154.20 
Commercial Services,Property & Design (BiT),Premises-Related Expenditure,Gas,West Mercia Energy (WME),28/12/2017, 243.57 
Commercial Services,Property & Design (BiT),Premises-Related Expenditure,Gas,West Mercia Energy (WME),28/12/2017, 367.79 
Commercial Services,Property & Design (BiT),Premises-Related Expenditure,Gas,West Mercia Energy (WME),28/12/2017, 157.62 
Commercial Services,Property & Design (BiT),Premises-Related Expenditure,Gas,West Mercia Energy (WME),28/12/2017, 154.43 
Commercial Services,Property & Design (BiT),Premises-Related Expenditure,Gas,West Mercia Energy (WME),28/12/2017, 383.71 
Commercial Services,Property & Design (BiT),Premises-Related Expenditure,Gas,West Mercia Energy (WME),28/12/2017, 291.46 
Commercial Services,Property & Design (BiT),Premises-Related Expenditure,Gas,West Mercia Energy (WME),28/12/2017," 1,701.26 "
Commercial Services,Property & Design (BiT),Premises-Related Expenditure,Gas,West Mercia Energy (WME),28/12/2017, 372.42 
Commercial Services,Property & Design (BiT),Premises-Related Expenditure,Gas,West Mercia Energy (WME),28/12/2017, 258.79 
Commercial Services,Property & Design (BiT),Premises-Related Expenditure,Electricity,West Mercia Energy (WME),19/12/2017," 2,688.27 "
Commercial Services,Property & Design (BiT),Premises-Related Expenditure,Electricity,West Mercia Energy (WME),19/12/2017, 155.43 
Commercial Services,Property & Design (BiT),Premises-Related Expenditure,Gas,West Mercia Energy (WME),19/12/2017," 1,403.42 "
Commercial Services,Property & Design (BiT),Premises-Related Expenditure,Electricity,West Mercia Energy (WME),19/12/2017,-170.12 
Commercial Services,Property & Design (BiT),Premises-Related Expenditure,Electricity,West Mercia Energy (WME),19/12/2017," 4,445.16 "
Commercial Services,Property & Design (BiT),Premises-Related Expenditure,Gas,West Mercia Energy (WME),28/12/2017," 2,190.33 "
Commercial Services,Property & Design (BiT),Premises-Related Expenditure,Electricity,West Mercia Energy (WME),19/12/2017," 8,379.28 "
Commercial Services,Property & Design (BiT),Premises-Related Expenditure,Electricity,West Mercia Energy (WME),19/12/2017," 4,623.40 "
Commercial Services,Property & Design (BiT),Premises-Related Expenditure,Gas,West Mercia Energy (WME),19/12/2017, 176.09 
Commercial Services,Property & Design (BiT),Premises-Related Expenditure,Gas,West Mercia Energy (WME),19/12/2017, 218.48 
Commercial Services,Property & Design (BiT),Premises-Related Expenditure,Electricity,West Mercia Energy (WME),19/12/2017, 407.44 
Commercial Services,Property & Design (BiT),Premises-Related Expenditure,Electricity,West Mercia Energy (WME),19/12/2017, 233.75 
Commercial Services,Property & Design (BiT),Premises-Related Expenditure,Gas,West Mercia Energy (WME),19/12/2017, 161.09 
Commercial Services,Property & Design (BiT),Premises-Related Expenditure,Gas,West Mercia Energy (WME),19/12/2017, 597.99 
Commercial Services,Property & Design (BiT),Premises-Related Expenditure,Gas,West Mercia Energy (WME),19/12/2017, 208.06 
Commercial Services,Property & Design (BiT),Premises-Related Expenditure,Gas,West Mercia Energy (WME),19/12/2017," 1,576.96 "
Commercial Services,Property & Design (BiT),Premises-Related Expenditure,Electricity,West Mercia Energy (WME),19/12/2017, 116.86 
Commercial Services,Property & Design (BiT),Premises-Related Expenditure,Electricity,West Mercia Energy (WME),19/12/2017, 194.44 
Commercial Services,Property & Design (BiT),Premises-Related Expenditure,Electricity,West Mercia Energy (WME),19/12/2017, 154.86 
Commercial Services,Property & Design (BiT),Premises-Related Expenditure,Gas,West Mercia Energy (WME),19/12/2017, 240.82 
Commercial Services,Property & Design (BiT),Premises-Related Expenditure,Gas,West Mercia Energy (WME),19/12/2017," 2,000.43 "
Commercial Services,Property & Design (BiT),Premises-Related Expenditure,Electricity,West Mercia Energy (WME),19/12/2017," 2,265.17 "
Commercial Services,Property & Design (BiT),Premises-Related Expenditure,Electricity,West Mercia Energy (WME),19/12/2017, 152.22 
Commercial Services,Property & Design (BiT),Premises-Related Expenditure,Electricity,West Mercia Energy (WME),19/12/2017, 560.06 
Commercial Services,Property & Design (BiT),Premises-Related Expenditure,Electricity,West Mercia Energy (WME),19/12/2017, 428.02 
Commercial Services,Property & Design (BiT),Premises-Related Expenditure,Electricity,West Mercia Energy (WME),19/12/2017, 148.19 
Commercial Services,Property & Design (BiT),Premises-Related Expenditure,Electricity,West Mercia Energy (WME),19/12/2017, 230.38 
Commercial Services,Property & Design (BiT),Premises-Related Expenditure,Electricity,West Mercia Energy (WME),19/12/2017,-155.43 
Commercial Services,Property & Design (BiT),Premises-Related Expenditure,Electricity,West Mercia Energy (WME),19/12/2017, 100.85 
Commercial Services,Property & Design (BiT),Premises-Related Expenditure,Electricity,West Mercia Energy (WME),19/12/2017, 231.65 
Commercial Services,Property & Design (BiT),Premises-Related Expenditure,Gas,West Mercia Energy (WME),19/12/2017, 181.69 
Commercial Services,Property & Design (BiT),Premises-Related Expenditure,Gas,West Mercia Energy (WME),19/12/2017, 109.33 
Commercial Services,Property & Design (BiT),Premises-Related Expenditure,Gas,West Mercia Energy (WME),19/12/2017, 106.45 
Commercial Services,Property & Design (BiT),Premises-Related Expenditure,Gas,West Mercia Energy (WME),19/12/2017," 2,089.47 "
Commercial Services,Property & Design (BiT),Premises-Related Expenditure,Gas,West Mercia Energy (WME),19/12/2017, 366.04 
Commercial Services,Property & Design (BiT),Premises-Related Expenditure,Electricity,West Mercia Energy (WME),19/12/2017, 654.73 
Commercial Services,Property & Design (BiT),Premises-Related Expenditure,Electricity,West Mercia Energy (WME),19/12/2017, 399.75 
Commercial Services,Property & Design (BiT),Premises-Related Expenditure,Electricity,West Mercia Energy (WME),19/12/2017," 1,175.95 "
Commercial Services,Property & Design (BiT),Premises-Related Expenditure,Electricity,West Mercia Energy (WME),19/12/2017, 331.00 
Commercial Services,Property & Design (BiT),Premises-Related Expenditure,Electricity,West Mercia Energy (WME),19/12/2017, 393.18 
Commercial Services,Property & Design (BiT),Premises-Related Expenditure,Electricity,West Mercia Energy (WME),19/12/2017, 675.86 
Commercial Services,Property & Design (BiT),Premises-Related Expenditure,Gas,West Mercia Energy (WME),19/12/2017, 192.57 
Commercial Services,Property & Design (BiT),Premises-Related Expenditure,Electricity,West Mercia Energy (WME),19/12/2017, 106.99 
Commercial Services,Property & Design (BiT),Premises-Related Expenditure,Gas,West Mercia Energy (WME),19/12/2017," 1,630.02 "
Commercial Services,Property & Design (BiT),Premises-Related Expenditure,Gas,West Mercia Energy (WME),19/12/2017," 6,636.59 "
Commercial Services,Property & Design (BiT),Premises-Related Expenditure,Gas,West Mercia Energy (WME),19/12/2017, 198.39 
Commercial Services,Property & Design (BiT),Premises-Related Expenditure,Electricity,West Mercia Energy (WME),19/12/2017," 1,073.97 "
Commercial Services,Property & Design (BiT),Premises-Related Expenditure,Electricity,West Mercia Energy (WME),19/12/2017, 411.00 
Commercial Services,Property & Design (BiT),Premises-Related Expenditure,Electricity,West Mercia Energy (WME),19/12/2017, 339.63 
Commercial Services,Property & Design (BiT),Premises-Related Expenditure,Electricity,West Mercia Energy (WME),19/12/2017," 1,858.22 "
Commercial Services,Property & Design (BiT),Premises-Related Expenditure,Electricity,West Mercia Energy (WME),19/12/2017, 199.44 
Commercial Services,Property & Design (BiT),Premises-Related Expenditure,Electricity,West Mercia Energy (WME),19/12/2017, 461.23 
Commercial Services,Property & Design (BiT),Premises-Related Expenditure,Electricity,West Mercia Energy (WME),19/12/2017, 183.67 
Commercial Services,Property & Design (BiT),Premises-Related Expenditure,Electricity,West Mercia Energy (WME),19/12/2017," 5,227.29 "
Commercial Services,Property & Design (BiT),Premises-Related Expenditure,Gas,West Mercia Energy (WME),05/12/2017," 4,449.32 "
Commercial Services,Property & Design (BiT),Premises-Related Expenditure,Electricity,West Mercia Energy (WME),19/12/2017," 2,134.66 "
Commercial Services,Property & Design (BiT),Premises-Related Expenditure,Electricity,West Mercia Energy (WME),19/12/2017, 998.57 
Commercial Services,Property & Design (BiT),Premises-Related Expenditure,Electricity,West Mercia Energy (WME),19/12/2017, 100.59 
Commercial Services,Property & Design (BiT),Premises-Related Expenditure,Electricity,West Mercia Energy (WME),19/12/2017, 114.24 
Commercial Services,Property & Design (BiT),Premises-Related Expenditure,Electricity,West Mercia Energy (WME),19/12/2017, 123.12 
Commercial Services,Property & Design (BiT),Premises-Related Expenditure,Electricity,West Mercia Energy (WME),19/12/2017, 150.33 
Commercial Services,Property & Design (BiT),Premises-Related Expenditure,Gas,West Mercia Energy (WME),19/12/2017, 594.75 
Commercial Services,Property & Design (BiT),Premises-Related Expenditure,Gas,West Mercia Energy (WME),19/12/2017, 249.63 
Commercial Services,Property & Design (BiT),Premises-Related Expenditure,Gas,West Mercia Energy (WME),19/12/2017, 990.73 
Commercial Services,Property & Design (BiT),Premises-Related Expenditure,Gas,West Mercia Energy (WME),28/12/2017, 383.97 
Commercial Services,Property & Design (BiT),Premises-Related Expenditure,Electricity,West Mercia Energy (WME),05/12/2017, 117.56 
Commercial Services,Property & Design (BiT),Premises-Related Expenditure,Electricity,West Mercia Energy (WME),19/12/2017, 155.54 
Commercial Services,Property & Design (BiT),Premises-Related Expenditure,Electricity,West Mercia Energy (WME),19/12/2017, 204.16 
Commercial Services,Property & Design (BiT),Premises-Related Expenditure,Electricity,West Mercia Energy (WME),19/12/2017, 137.95 
Commercial Services,Property & Design (BiT),Premises-Related Expenditure,Electricity,West Mercia Energy (WME),19/12/2017," 1,439.81 "
Commercial Services,Property & Design (BiT),Premises-Related Expenditure,Electricity,West Mercia Energy (WME),19/12/2017, 933.29 
Commercial Services,Property & Design (BiT),Premises-Related Expenditure,Electricity,West Mercia Energy (WME),19/12/2017, 140.80 
Commercial Services,Property & Design (BiT),Premises-Related Expenditure,Electricity,West Mercia Energy (WME),19/12/2017, 221.36 
Commercial Services,Property & Design (BiT),Premises-Related Expenditure,Electricity,West Mercia Energy (WME),19/12/2017, 127.84 
Commercial Services,Property & Design (BiT),Premises-Related Expenditure,Electricity,West Mercia Energy (WME),19/12/2017, 481.80 
Commercial Services,Property & Design (BiT),Premises-Related Expenditure,Electricity,West Mercia Energy (WME),19/12/2017, 921.34 
Commercial Services,Property & Design (BiT),Premises-Related Expenditure,Electricity,West Mercia Energy (WME),19/12/2017, 146.12 
Commercial Services,Property & Design (BiT),Premises-Related Expenditure,Electricity,West Mercia Energy (WME),19/12/2017," 2,962.84 "
Commercial Services,Property & Design (BiT),Premises-Related Expenditure,Electricity,West Mercia Energy (WME),19/12/2017, 302.99 
Commercial Services,Property & Design (BiT),Premises-Related Expenditure,Electricity,West Mercia Energy (WME),19/12/2017, 163.67 
Commercial Services,Property & Design (BiT),Premises-Related Expenditure,Electricity,West Mercia Energy (WME),19/12/2017," 2,195.37 "
Commercial Services,Property & Design (BiT),Premises-Related Expenditure,Electricity,West Mercia Energy (WME),19/12/2017, 114.32 
Commercial Services,Property & Design (BiT),Premises-Related Expenditure,Electricity,West Mercia Energy (WME),19/12/2017, 134.73 
Commercial Services,Property & Design (BiT),Premises-Related Expenditure,Electricity,West Mercia Energy (WME),19/12/2017, 201.80 
Commercial Services,Property & Design (BiT),Premises-Related Expenditure,Electricity,West Mercia Energy (WME),19/12/2017, 151.39 
Commercial Services,Property & Design (BiT),Premises-Related Expenditure,Electricity,West Mercia Energy (WME),19/12/2017, 155.80 
Commercial Services,Property & Design (BiT),Premises-Related Expenditure,Electricity,West Mercia Energy (WME),19/12/2017, 143.23 
Commercial Services,Property & Design (BiT),Premises-Related Expenditure,Electricity,West Mercia Energy (WME),19/12/2017, 179.57 
Commercial Services,Property & Design (BiT),Premises-Related Expenditure,Electricity,West Mercia Energy (WME),19/12/2017, 263.15 
Commercial Services,Property & Design (BiT),Premises-Related Expenditure,Electricity,West Mercia Energy (WME),19/12/2017, 144.01 
Commercial Services,Property & Design (BiT),Premises-Related Expenditure,Electricity,West Mercia Energy (WME),19/12/2017, 167.74 
Commercial Services,Property & Design (BiT),Premises-Related Expenditure,Gas,West Mercia Energy (WME),19/12/2017, 133.18 
Commercial Services,Property & Design (BiT),Premises-Related Expenditure,Electricity,West Mercia Energy (WME),19/12/2017, 168.72 
Commercial Services,Property & Design (BiT),Premises-Related Expenditure,Electricity,West Mercia Energy (WME),19/12/2017, 106.56 
Commercial Services,Property & Design (BiT),Premises-Related Expenditure,Electricity,West Mercia Energy (WME),19/12/2017, 107.27 
Commercial Services,Property & Design (BiT),Premises-Related Expenditure,Electricity,West Mercia Energy (WME),19/12/2017, 181.55 
Commercial Services,Property & Design (BiT),Premises-Related Expenditure,Electricity,West Mercia Energy (WME),19/12/2017, 125.67 
Commercial Services,Property & Design (BiT),Premises-Related Expenditure,R&M -Buildings DLO Charge,MK Door Systems Ltd T/A Style Midlands,04/12/2017, 632.00 
Commercial Services,Property & Design (BiT),Premises-Related Expenditure,R&M -Buildings DLO Charge,MK Door Systems Ltd T/A Style Midlands,05/12/2017, 316.00 
Commercial Services,Property & Design (BiT),Premises-Related Expenditure,Service Contracts,Clearstone Solutions Ltd,28/12/2017, 114.00 
Commercial Services,Property & Design (BiT),Premises-Related Expenditure,R&M -Buildings DLO Charge,Lift Source (UK) Limited,15/12/2017," 10,910.40 "
Commercial Services,Property & Design (BiT),Premises-Related Expenditure,R&M -Buildings DLO Charge,Lift Source (UK) Limited,15/12/2017," 1,818.40 "
Commercial Services,Property & Design (BiT),Premises-Related Expenditure,R&M -Buildings DLO Charge,Lift Source (UK) Limited,05/12/2017, 490.00 
Commercial Services,Property & Design (BiT),Premises-Related Expenditure,R&M -Buildings DLO Charge,Lift Source (UK) Limited,15/12/2017, 120.00 
Commercial Services,Property & Design (BiT),Premises-Related Expenditure,R&M -Buildings DLO Charge,Lift Source (UK) Limited,05/12/2017, 420.00 
Commercial Services,Property & Design (BiT),Premises-Related Expenditure,R&M -Buildings DLO Charge,Lift Source (UK) Limited,05/12/2017, 130.00 
Commercial Services,Property & Design (BiT),Premises-Related Expenditure,R&M -Buildings DLO Charge,Lift Source (UK) Limited,05/12/2017, 120.00 
Commercial Services,Property & Design (BiT),Premises-Related Expenditure,R&M -Buildings DLO Charge,Lift Source (UK) Limited,28/12/2017, 195.00 
Commercial Services,Property & Design (BiT),Premises-Related Expenditure,Service Contracts,Lift Source (UK) Limited,04/12/2017, 140.00 
Commercial Services,Property & Design (BiT),Premises-Related Expenditure,Service Contracts,Zumtobel,05/12/2017," 2,893.00 "
Commercial Services,Property & Design (BiT),Premises-Related Expenditure,Service Contracts,Sorption Wheel Services Ltd T/A Dehum UK,28/12/2017, 710.00 
Commercial Services,Property & Design (BiT),Supplies & Services,Consultants Fees,AB acoustics,18/12/2017, 475.00 
Commercial Services,Property & Design (BiT),Premises-Related Expenditure,R&M -Buildings DLO Charge,Lorient Polyproducts Ltd,18/12/2017," 3,500.00 "
Commercial Services,Property & Design (BiT),Supplies & Services,Advertising,Kensa Creative Ltd,15/12/2017, 330.00 
Commercial Services,Property & Design (BiT),Supplies & Services,Advertising,Kensa Creative Ltd,15/12/2017, 200.00 
Commercial Services,Sport & Leisure,Capital Expenditure,Payments to Contractor,Technical Outdoor Solutions Ltd,14/12/2017," 28,352.40 "
Commercial Services,Sport & Leisure,Capital Expenditure,Fixtures & Fittings & Equipment,Life Fitness UK Ltd,01/12/2017," 128,085.00 "
Commercial Services,Sport & Leisure,Capital Expenditure,Payments to Contractor,ADIEN,05/12/2017," 4,000.00 "
Commercial Services,Sport & Leisure,Capital Expenditure,Payments to Contractor,Technical Outdoor Solutions Ltd,19/12/2017," 28,352.40 "
Commercial Services,Sport & Leisure,Capital Expenditure,Payments to Contractor,SIMPLY ECOLOGY,19/12/2017, 611.70 
Commercial Services,Sport & Leisure,Capital Expenditure,Payments to Contractor,Trust Ecology,06/12/2017, 275.00 
Commercial Services,Sport & Leisure,Premises-Related Expenditure,R&M WC Planned,AMENITY LAND SERVICES LTD T/A MAXWELL AMENITY LTD,05/12/2017, 189.00 
Commercial Services,Sport & Leisure,Transport-Related Expenditure,Fuel,ALLSTAR BUSINESS SOLUTIONS LTD,04/12/2017," 8,661.42 "
Commercial Services,Sport & Leisure,Transport-Related Expenditure,Fuel,ALLSTAR BUSINESS SOLUTIONS LTD,06/12/2017," 9,061.26 "
Commercial Services,Sport & Leisure,Transport-Related Expenditure,Fuel,ALLSTAR BUSINESS SOLUTIONS LTD,21/12/2017," 6,490.63 "
Commercial Services,Sport & Leisure,Supplies & Services,Provisions,BIKOLD,13/12/2017, 137.37 
Commercial Services,Sport & Leisure,Supplies & Services,Provisions,BIKOLD,05/12/2017, 185.50 
Commercial Services,Sport & Leisure,Supplies & Services,Provisions,BIKOLD,19/12/2017, 165.64 
Commercial Services,Sport & Leisure,Supplies & Services,Provisions,BIKOLD,19/12/2017, 103.59 
Commercial Services,Sport & Leisure,Supplies & Services,Provisions,BIKOLD,13/12/2017, 162.95 
Commercial Services,Sport & Leisure,Supplies & Services,Provisions,BIKOLD,13/12/2017,-162.95 
Commercial Services,Sport & Leisure,Supplies & Services,Provisions,BIKOLD,13/12/2017, 549.00 
Commercial Services,Sport & Leisure,Supplies & Services,Provisions,BIKOLD,13/12/2017, 208.47 
Commercial Services,Sport & Leisure,Supplies & Services,Provisions,BIKOLD,05/12/2017, 281.46 
Commercial Services,Sport & Leisure,Supplies & Services,Provisions,BIKOLD,13/12/2017, 135.58 
Commercial Services,Sport & Leisure,Supplies & Services,Provisions,BIKOLD,13/12/2017, 158.33 
Commercial Services,Sport & Leisure,Supplies & Services,Provisions,BIKOLD,05/12/2017, 161.48 
Commercial Services,Sport & Leisure,Supplies & Services,Provisions,BIKOLD,05/12/2017, 264.82 
Commercial Services,Sport & Leisure,Supplies & Services,Provisions,BIKOLD,19/12/2017, 103.68 
Commercial Services,Sport & Leisure,Supplies & Services,Provisions,BIKOLD,19/12/2017, 154.75 
Commercial Services,Sport & Leisure,Supplies & Services,Provisions,BIKOLD,19/12/2017, 153.31 
Commercial Services,Sport & Leisure,Supplies & Services,Provisions,BIKOLD,19/12/2017, 134.86 
Commercial Services,Sport & Leisure,Supplies & Services,Provisions,BIKOLD,13/12/2017, 171.85 
Commercial Services,Sport & Leisure,Supplies & Services,Provisions,BIKOLD,13/12/2017, 114.48 
Commercial Services,Sport & Leisure,Supplies & Services,Provisions,BIKOLD,05/12/2017, 220.86 
Commercial Services,Sport & Leisure,Supplies & Services,Provisions,BIKOLD,19/12/2017, 151.19 
Commercial Services,Sport & Leisure,Supplies & Services,Provisions,BIKOLD,19/12/2017, 618.75 
Commercial Services,Sport & Leisure,Supplies & Services,Provisions,BIKOLD,19/12/2017, 960.71 
Commercial Services,Sport & Leisure,Supplies & Services,Provisions,BIKOLD,19/12/2017, 276.96 
Commercial Services,Sport & Leisure,Supplies & Services,Provisions,BIKOLD,19/12/2017, 402.03 
Commercial Services,Sport & Leisure,Supplies & Services,Provisions,BIKOLD,19/12/2017, 150.88 
Commercial Services,Sport & Leisure,Supplies & Services,Provisions,BIKOLD,19/12/2017, 438.84 
Commercial Services,Sport & Leisure,Supplies & Services,Provisions,BIKOLD,05/12/2017, 417.39 
Commercial Services,Sport & Leisure,Supplies & Services,Provisions,BIKOLD,05/12/2017, 307.39 
Commercial Services,Sport & Leisure,Supplies & Services,Provisions,BIKOLD,05/12/2017, 140.91 
Commercial Services,Sport & Leisure,Supplies & Services,Provisions,BIKOLD,05/12/2017, 182.56 
Commercial Services,Sport & Leisure,Supplies & Services,Provisions,BIKOLD,05/12/2017, 451.42 
Commercial Services,Sport & Leisure,Supplies & Services,Provisions,BIKOLD,05/12/2017, 263.45 
Commercial Services,Sport & Leisure,Supplies & Services,Provisions,BIKOLD,05/12/2017, 605.76 
Commercial Services,Sport & Leisure,Supplies & Services,Provisions,BIKOLD,05/12/2017, 154.45 
Commercial Services,Sport & Leisure,Supplies & Services,Provisions,BIKOLD,05/12/2017, 105.06 
Commercial Services,Sport & Leisure,Supplies & Services,Provisions,BIKOLD,05/12/2017, 428.22 
Commercial Services,Sport & Leisure,Supplies & Services,Provisions,BIKOLD,05/12/2017, 202.31 
Commercial Services,Sport & Leisure,Supplies & Services,Provisions,BIKOLD,05/12/2017, 293.77 
Commercial Services,Sport & Leisure,Supplies & Services,Provisions,BIKOLD,05/12/2017, 192.34 
Commercial Services,Sport & Leisure,Supplies & Services,Provisions,BIKOLD,05/12/2017, 441.52 
Commercial Services,Sport & Leisure,Supplies & Services,Provisions,BIKOLD,05/12/2017, 169.03 
Commercial Services,Sport & Leisure,Supplies & Services,Provisions,BIKOLD,05/12/2017, 128.94 
Commercial Services,Sport & Leisure,Supplies & Services,Provisions,BIKOLD,05/12/2017, 162.12 
Commercial Services,Sport & Leisure,Supplies & Services,Provisions,BIKOLD,05/12/2017, 172.00 
Commercial Services,Sport & Leisure,Supplies & Services,Provisions,BIKOLD,13/12/2017, 114.00 
Commercial Services,Sport & Leisure,Supplies & Services,Provisions,BIKOLD,13/12/2017, 145.20 
Commercial Services,Sport & Leisure,Supplies & Services,Provisions,BIKOLD,13/12/2017, 173.23 
Commercial Services,Sport & Leisure,Supplies & Services,Provisions,BIKOLD,13/12/2017, 358.92 
Commercial Services,Sport & Leisure,Supplies & Services,Provisions,BIKOLD,13/12/2017, 133.79 
Commercial Services,Sport & Leisure,Supplies & Services,Provisions,BIKOLD,13/12/2017, 508.35 
Commercial Services,Sport & Leisure,Supplies & Services,Provisions,BIKOLD,13/12/2017, 491.38 
Commercial Services,Sport & Leisure,Supplies & Services,Provisions,BIKOLD,13/12/2017, 524.64 
Commercial Services,Sport & Leisure,Supplies & Services,Provisions,BIKOLD,13/12/2017, 142.56 
Commercial Services,Sport & Leisure,Supplies & Services,Provisions,BIKOLD,13/12/2017, 142.56 
Commercial Services,Sport & Leisure,Supplies & Services,Provisions,BIKOLD,13/12/2017, 207.94 
Commercial Services,Sport & Leisure,Supplies & Services,Provisions,BIKOLD,13/12/2017, 865.70 
Commercial Services,Sport & Leisure,Supplies & Services,Provisions,BIKOLD,13/12/2017, 255.79 
Commercial Services,Sport & Leisure,Supplies & Services,Provisions,BIKOLD,13/12/2017, 295.96 
Commercial Services,Sport & Leisure,Supplies & Services,Provisions,BIKOLD,13/12/2017, 608.24 
Commercial Services,Sport & Leisure,Supplies & Services,Provisions,BIKOLD,13/12/2017, 158.40 
Commercial Services,Sport & Leisure,Supplies & Services,Provisions,BIKOLD,13/12/2017, 180.10 
Commercial Services,Sport & Leisure,Supplies & Services,Provisions,BIKOLD,13/12/2017, 142.56 
Commercial Services,Sport & Leisure,Supplies & Services,Provisions,BIKOLD,19/12/2017, 189.53 
Commercial Services,Sport & Leisure,Supplies & Services,Provisions,BIKOLD,19/12/2017, 111.46 
Commercial Services,Sport & Leisure,Supplies & Services,Provisions,BIKOLD,19/12/2017, 122.86 
Commercial Services,Sport & Leisure,Supplies & Services,Provisions,BIKOLD,19/12/2017, 192.55 
Commercial Services,Sport & Leisure,Supplies & Services,Provisions,BIKOLD,19/12/2017, 109.23 
Commercial Services,Sport & Leisure,Supplies & Services,Provisions,BIKOLD,13/12/2017, 305.53 
Commercial Services,Sport & Leisure,Supplies & Services,Provisions,BIKOLD,19/12/2017, 271.16 
Commercial Services,Sport & Leisure,Supplies & Services,Provisions,BIKOLD,19/12/2017, 225.62 
Commercial Services,Sport & Leisure,Supplies & Services,Provisions,BIKOLD,19/12/2017, 156.88 
Commercial Services,Sport & Leisure,Supplies & Services,Provisions,BIKOLD,19/12/2017, 282.03 
Commercial Services,Sport & Leisure,Supplies & Services,Provisions,BIKOLD,19/12/2017, 226.18 
Commercial Services,Sport & Leisure,Supplies & Services,Provisions,BIKOLD,19/12/2017, 306.87 
Commercial Services,Sport & Leisure,Supplies & Services,Provisions,BIKOLD,19/12/2017, 184.11 
Commercial Services,Sport & Leisure,Supplies & Services,Provisions,BIKOLD,19/12/2017, 248.02 
Commercial Services,Sport & Leisure,Supplies & Services,Provisions,BIKOLD,19/12/2017, 177.29 
Commercial Services,Sport & Leisure,Supplies & Services,Provisions,BIKOLD,19/12/2017, 135.17 
Commercial Services,Sport & Leisure,Supplies & Services,Provisions,BIKOLD,19/12/2017, 343.29 
Commercial Services,Sport & Leisure,Supplies & Services,Provisions,BIKOLD,19/12/2017, 212.75 
Commercial Services,Sport & Leisure,Supplies & Services,Provisions,BIKOLD,19/12/2017, 228.08 
Commercial Services,Sport & Leisure,Supplies & Services,Provisions,BIKOLD,19/12/2017, 330.51 
Commercial Services,Sport & Leisure,Supplies & Services,Provisions,BIKOLD,19/12/2017, 306.12 
Commercial Services,Sport & Leisure,Supplies & Services,Provisions,BIKOLD,19/12/2017, 166.40 
Commercial Services,Sport & Leisure,Supplies & Services,Provisions,BIKOLD,19/12/2017, 106.79 
Commercial Services,Sport & Leisure,Supplies & Services,Provisions,BIKOLD,19/12/2017, 126.95 
Commercial Services,Sport & Leisure,Supplies & Services,Provisions,BIKOLD,19/12/2017, 277.62 
Commercial Services,Sport & Leisure,Supplies & Services,Provisions,BIKOLD,19/12/2017, 584.27 
Commercial Services,Sport & Leisure,Supplies & Services,Provisions,BIKOLD,19/12/2017, 144.77 
Commercial Services,Sport & Leisure,Supplies & Services,Provisions,BIKOLD,19/12/2017, 139.52 
Commercial Services,Sport & Leisure,Supplies & Services,Provisions,BIKOLD,19/12/2017, 144.79 
Commercial Services,Sport & Leisure,Supplies & Services,Provisions,BIKOLD,19/12/2017, 163.92 
Commercial Services,Sport & Leisure,Supplies & Services,Provisions,BIKOLD,19/12/2017, 151.19 
Commercial Services,Sport & Leisure,Supplies & Services,Provisions,BIKOLD,19/12/2017, 111.04 
Commercial Services,Sport & Leisure,Supplies & Services,Provisions,BIKOLD,19/12/2017, 317.47 
Commercial Services,Sport & Leisure,Supplies & Services,Provisions,BIKOLD,19/12/2017, 194.82 
Commercial Services,Sport & Leisure,Supplies & Services,Provisions,BIKOLD,19/12/2017, 250.06 
Commercial Services,Sport & Leisure,Supplies & Services,Provisions,BIKOLD,19/12/2017, 181.50 
Commercial Services,Sport & Leisure,Supplies & Services,Provisions,BIKOLD,19/12/2017, 185.01 
Commercial Services,Sport & Leisure,Supplies & Services,Provisions,BIKOLD,19/12/2017, 111.89 
Commercial Services,Sport & Leisure,Supplies & Services,Provisions,BIKOLD,19/12/2017, 113.47 
Commercial Services,Sport & Leisure,Supplies & Services,Provisions,BIKOLD,19/12/2017, 195.35 
Commercial Services,Sport & Leisure,Supplies & Services,Provisions,BIKOLD,19/12/2017, 248.93 
Commercial Services,Sport & Leisure,Supplies & Services,Provisions,BIKOLD,19/12/2017, 296.44 
Commercial Services,Sport & Leisure,Supplies & Services,Provisions,BIKOLD,19/12/2017, 172.20 
Commercial Services,Sport & Leisure,Supplies & Services,Provisions,BIKOLD,19/12/2017, 180.61 
Commercial Services,Sport & Leisure,Supplies & Services,Provisions,BIKOLD,19/12/2017, 159.96 
Commercial Services,Sport & Leisure,Supplies & Services,Provisions,BIKOLD,19/12/2017, 228.68 
Commercial Services,Sport & Leisure,Supplies & Services,Provisions,BIKOLD,19/12/2017, 177.92 
Commercial Services,Sport & Leisure,Supplies & Services,Provisions,BIKOLD,19/12/2017, 112.30 
Commercial Services,Sport & Leisure,Supplies & Services,Provisions,BIKOLD,19/12/2017, 166.07 
Commercial Services,Sport & Leisure,Supplies & Services,Provisions,BIKOLD,19/12/2017, 200.50 
Commercial Services,Sport & Leisure,Supplies & Services,Provisions,BIKOLD,19/12/2017, 114.93 
Commercial Services,Sport & Leisure,Supplies & Services,Provisions,BIKOLD,19/12/2017, 281.30 
Commercial Services,Sport & Leisure,Supplies & Services,Provisions,BIKOLD,19/12/2017, 205.17 
Commercial Services,Sport & Leisure,Supplies & Services,Provisions,BIKOLD,19/12/2017, 159.47 
Commercial Services,Sport & Leisure,Supplies & Services,Provisions,BIKOLD,19/12/2017, 124.37 
Commercial Services,Sport & Leisure,Supplies & Services,Provisions,BIKOLD,19/12/2017, 158.12 
Commercial Services,Sport & Leisure,Supplies & Services,Provisions,BIKOLD,19/12/2017, 207.85 
Commercial Services,Sport & Leisure,Supplies & Services,Provisions,BIKOLD,19/12/2017, 180.10 
Commercial Services,Sport & Leisure,Supplies & Services,Provisions,BIKOLD,19/12/2017, 110.29 
Commercial Services,Sport & Leisure,Supplies & Services,Provisions,BIKOLD,19/12/2017, 192.38 
Commercial Services,Sport & Leisure,Supplies & Services,Provisions,BIKOLD,19/12/2017, 131.76 
Commercial Services,Sport & Leisure,Supplies & Services,Provisions,BIKOLD,19/12/2017, 170.20 
Commercial Services,Sport & Leisure,Supplies & Services,Provisions,BIKOLD,19/12/2017, 161.80 
Commercial Services,Sport & Leisure,Supplies & Services,Provisions,BIKOLD,19/12/2017, 170.08 
Commercial Services,Sport & Leisure,Supplies & Services,Provisions,BIKOLD,19/12/2017, 168.68 
Commercial Services,Sport & Leisure,Supplies & Services,Provisions,BIKOLD,19/12/2017, 252.51 
Commercial Services,Sport & Leisure,Supplies & Services,Provisions,BIKOLD,19/12/2017, 103.38 
Commercial Services,Sport & Leisure,Supplies & Services,Provisions,BIKOLD,19/12/2017, 112.13 
Commercial Services,Sport & Leisure,Supplies & Services,Provisions,BIKOLD,19/12/2017, 130.27 
Commercial Services,Sport & Leisure,Supplies & Services,Provisions,BIKOLD,19/12/2017, 111.30 
Commercial Services,Sport & Leisure,Supplies & Services,Provisions,BIKOLD,19/12/2017, 170.03 
Commercial Services,Sport & Leisure,Supplies & Services,Provisions,BIKOLD,19/12/2017, 177.33 
Commercial Services,Sport & Leisure,Supplies & Services,Provisions,BIKOLD,05/12/2017, 190.17 
Commercial Services,Sport & Leisure,Supplies & Services,Provisions,BIKOLD,05/12/2017, 133.50 
Commercial Services,Sport & Leisure,Supplies & Services,Provisions,BIKOLD,05/12/2017, 176.33 
Commercial Services,Sport & Leisure,Supplies & Services,Provisions,BIKOLD,05/12/2017, 127.21 
Commercial Services,Sport & Leisure,Supplies & Services,Provisions,BIKOLD,05/12/2017, 153.75 
Commercial Services,Sport & Leisure,Supplies & Services,Provisions,BIKOLD,19/12/2017, 148.83 
Commercial Services,Sport & Leisure,Supplies & Services,Provisions,BIKOLD,05/12/2017, 129.25 
Commercial Services,Sport & Leisure,Supplies & Services,Provisions,BIKOLD,05/12/2017, 118.30 
Commercial Services,Sport & Leisure,Supplies & Services,Provisions,BIKOLD,05/12/2017, 233.85 
Commercial Services,Sport & Leisure,Supplies & Services,Provisions,BIKOLD,05/12/2017, 236.49 
Commercial Services,Sport & Leisure,Supplies & Services,Provisions,BIKOLD,05/12/2017, 104.61 
Commercial Services,Sport & Leisure,Supplies & Services,Provisions,BIKOLD,05/12/2017, 233.70 
Commercial Services,Sport & Leisure,Supplies & Services,Provisions,BIKOLD,05/12/2017, 104.65 
Commercial Services,Sport & Leisure,Supplies & Services,Provisions,BIKOLD,05/12/2017, 235.53 
Commercial Services,Sport & Leisure,Supplies & Services,Provisions,BIKOLD,05/12/2017, 193.79 
Commercial Services,Sport & Leisure,Supplies & Services,Provisions,BIKOLD,05/12/2017, 288.28 
Commercial Services,Sport & Leisure,Supplies & Services,Provisions,BIKOLD,05/12/2017, 638.40 
Commercial Services,Sport & Leisure,Supplies & Services,Provisions,BIKOLD,05/12/2017, 132.55 
Commercial Services,Sport & Leisure,Supplies & Services,Provisions,BIKOLD,05/12/2017, 200.02 
Commercial Services,Sport & Leisure,Supplies & Services,Provisions,BIKOLD,05/12/2017, 172.83 
Commercial Services,Sport & Leisure,Supplies & Services,Provisions,BIKOLD,05/12/2017, 795.12 
Commercial Services,Sport & Leisure,Supplies & Services,Provisions,BIKOLD,05/12/2017, 104.54 
Commercial Services,Sport & Leisure,Supplies & Services,Provisions,BIKOLD,05/12/2017, 143.51 
Commercial Services,Sport & Leisure,Supplies & Services,Provisions,BIKOLD,05/12/2017, 151.04 
Commercial Services,Sport & Leisure,Supplies & Services,Provisions,BIKOLD,05/12/2017, 319.00 
Commercial Services,Sport & Leisure,Supplies & Services,Provisions,BIKOLD,05/12/2017, 279.18 
Commercial Services,Sport & Leisure,Supplies & Services,Provisions,BIKOLD,05/12/2017, 158.99 
Commercial Services,Sport & Leisure,Supplies & Services,Provisions,BIKOLD,05/12/2017,-141.98 
Commercial Services,Sport & Leisure,Supplies & Services,Provisions,BIKOLD,05/12/2017, 200.13 
Commercial Services,Sport & Leisure,Supplies & Services,Provisions,BIKOLD,05/12/2017, 101.08 
Commercial Services,Sport & Leisure,Supplies & Services,Provisions,BIKOLD,05/12/2017, 151.26 
Commercial Services,Sport & Leisure,Supplies & Services,Provisions,BIKOLD,05/12/2017, 274.24 
Commercial Services,Sport & Leisure,Supplies & Services,Provisions,BIKOLD,05/12/2017, 112.34 
Commercial Services,Sport & Leisure,Supplies & Services,Provisions,BIKOLD,05/12/2017, 170.12 
Commercial Services,Sport & Leisure,Supplies & Services,Provisions,BIKOLD,05/12/2017, 172.48 
Commercial Services,Sport & Leisure,Supplies & Services,Provisions,BIKOLD,05/12/2017, 104.74 
Commercial Services,Sport & Leisure,Supplies & Services,Provisions,BIKOLD,05/12/2017, 133.64 
Commercial Services,Sport & Leisure,Supplies & Services,Provisions,BIKOLD,05/12/2017, 329.04 
Commercial Services,Sport & Leisure,Supplies & Services,Provisions,BIKOLD,05/12/2017, 305.92 
Commercial Services,Sport & Leisure,Supplies & Services,Provisions,BIKOLD,05/12/2017, 346.35 
Commercial Services,Sport & Leisure,Supplies & Services,Provisions,BIKOLD,05/12/2017, 227.51 
Commercial Services,Sport & Leisure,Supplies & Services,Provisions,BIKOLD,05/12/2017, 178.26 
Commercial Services,Sport & Leisure,Supplies & Services,Provisions,BIKOLD,05/12/2017, 173.29 
Commercial Services,Sport & Leisure,Supplies & Services,Provisions,BIKOLD,05/12/2017, 112.74 
Commercial Services,Sport & Leisure,Supplies & Services,Provisions,BIKOLD,05/12/2017, 159.13 
Commercial Services,Sport & Leisure,Supplies & Services,Provisions,BIKOLD,05/12/2017, 228.67 
Commercial Services,Sport & Leisure,Supplies & Services,Provisions,BIKOLD,05/12/2017, 108.86 
Commercial Services,Sport & Leisure,Supplies & Services,Provisions,BIKOLD,05/12/2017, 158.89 
Commercial Services,Sport & Leisure,Supplies & Services,Provisions,BIKOLD,05/12/2017, 151.51 
Commercial Services,Sport & Leisure,Supplies & Services,Provisions,BIKOLD,05/12/2017, 336.50 
Commercial Services,Sport & Leisure,Supplies & Services,Provisions,BIKOLD,05/12/2017, 280.89 
Commercial Services,Sport & Leisure,Supplies & Services,Provisions,BIKOLD,05/12/2017, 141.52 
Commercial Services,Sport & Leisure,Supplies & Services,Provisions,BIKOLD,05/12/2017, 119.15 
Commercial Services,Sport & Leisure,Supplies & Services,Provisions,BIKOLD,05/12/2017, 105.96 
Commercial Services,Sport & Leisure,Supplies & Services,Provisions,BIKOLD,05/12/2017, 220.17 
Commercial Services,Sport & Leisure,Supplies & Services,Provisions,BIKOLD,05/12/2017, 125.85 
Commercial Services,Sport & Leisure,Supplies & Services,Provisions,BIKOLD,05/12/2017, 288.66 
Commercial Services,Sport & Leisure,Supplies & Services,Provisions,BIKOLD,05/12/2017, 188.92 
Commercial Services,Sport & Leisure,Supplies & Services,Provisions,BIKOLD,05/12/2017, 222.77 
Commercial Services,Sport & Leisure,Supplies & Services,Provisions,BIKOLD,05/12/2017, 121.19 
Commercial Services,Sport & Leisure,Supplies & Services,Provisions,BIKOLD,05/12/2017, 364.28 
Commercial Services,Sport & Leisure,Supplies & Services,Provisions,BIKOLD,05/12/2017, 352.33 
Commercial Services,Sport & Leisure,Supplies & Services,Provisions,BIKOLD,05/12/2017, 148.04 
Commercial Services,Sport & Leisure,Supplies & Services,Provisions,BIKOLD,05/12/2017, 185.33 
Commercial Services,Sport & Leisure,Supplies & Services,Provisions,BIKOLD,05/12/2017, 256.82 
Commercial Services,Sport & Leisure,Supplies & Services,Provisions,BIKOLD,05/12/2017, 109.73 
Commercial Services,Sport & Leisure,Supplies & Services,Provisions,BIKOLD,05/12/2017, 193.98 
Commercial Services,Sport & Leisure,Supplies & Services,Provisions,BIKOLD,05/12/2017, 143.46 
Commercial Services,Sport & Leisure,Supplies & Services,Provisions,BIKOLD,05/12/2017, 209.73 
Commercial Services,Sport & Leisure,Supplies & Services,Provisions,BIKOLD,05/12/2017, 430.03 
Commercial Services,Sport & Leisure,Supplies & Services,Provisions,BIKOLD,05/12/2017, 323.81 
Commercial Services,Sport & Leisure,Supplies & Services,Provisions,BIKOLD,05/12/2017, 301.73 
Commercial Services,Sport & Leisure,Supplies & Services,Provisions,BIKOLD,05/12/2017, 360.99 
Commercial Services,Sport & Leisure,Supplies & Services,Provisions,BIKOLD,05/12/2017, 257.24 
Commercial Services,Sport & Leisure,Supplies & Services,Provisions,BIKOLD,05/12/2017, 294.64 
Commercial Services,Sport & Leisure,Supplies & Services,Provisions,BIKOLD,05/12/2017, 206.25 
Commercial Services,Sport & Leisure,Supplies & Services,Provisions,BIKOLD,05/12/2017, 221.48 
Commercial Services,Sport & Leisure,Supplies & Services,Provisions,BIKOLD,05/12/2017, 107.49 
Commercial Services,Sport & Leisure,Supplies & Services,Provisions,BIKOLD,05/12/2017, 130.25 
Commercial Services,Sport & Leisure,Supplies & Services,Provisions,BIKOLD,05/12/2017, 468.30 
Commercial Services,Sport & Leisure,Supplies & Services,Provisions,BIKOLD,05/12/2017, 392.32 
Commercial Services,Sport & Leisure,Supplies & Services,Provisions,BIKOLD,05/12/2017, 206.57 
Commercial Services,Sport & Leisure,Supplies & Services,Provisions,BIKOLD,05/12/2017, 179.43 
Commercial Services,Sport & Leisure,Supplies & Services,Provisions,BIKOLD,05/12/2017, 229.03 
Commercial Services,Sport & Leisure,Supplies & Services,Provisions,BIKOLD,05/12/2017, 204.49 
Commercial Services,Sport & Leisure,Supplies & Services,Provisions,BIKOLD,05/12/2017, 241.17 
Commercial Services,Sport & Leisure,Supplies & Services,Provisions,BIKOLD,05/12/2017, 262.31 
Commercial Services,Sport & Leisure,Supplies & Services,Provisions,BIKOLD,05/12/2017, 261.82 
Commercial Services,Sport & Leisure,Supplies & Services,Provisions,BIKOLD,05/12/2017, 140.75 
Commercial Services,Sport & Leisure,Supplies & Services,Provisions,BIKOLD,05/12/2017, 146.21 
Commercial Services,Sport & Leisure,Supplies & Services,Provisions,BIKOLD,05/12/2017,-202.80 
Commercial Services,Sport & Leisure,Supplies & Services,Provisions,BIKOLD,05/12/2017, 434.80 
Commercial Services,Sport & Leisure,Supplies & Services,Provisions,BIKOLD,05/12/2017, 108.28 
Commercial Services,Sport & Leisure,Supplies & Services,Provisions,BIKOLD,05/12/2017, 148.59 
Commercial Services,Sport & Leisure,Supplies & Services,Provisions,BIKOLD,05/12/2017, 159.93 
Commercial Services,Sport & Leisure,Supplies & Services,Provisions,BIKOLD,05/12/2017, 166.34 
Commercial Services,Sport & Leisure,Supplies & Services,Provisions,BIKOLD,05/12/2017, 224.01 
Commercial Services,Sport & Leisure,Supplies & Services,Provisions,BIKOLD,05/12/2017, 130.38 
Commercial Services,Sport & Leisure,Supplies & Services,Provisions,BIKOLD,05/12/2017, 171.14 
Commercial Services,Sport & Leisure,Supplies & Services,Provisions,BIKOLD,05/12/2017, 105.27 
Commercial Services,Sport & Leisure,Supplies & Services,Provisions,BIKOLD,05/12/2017, 185.64 
Commercial Services,Sport & Leisure,Supplies & Services,Provisions,BIKOLD,05/12/2017, 249.13 
Commercial Services,Sport & Leisure,Supplies & Services,Provisions,BIKOLD,05/12/2017, 235.68 
Commercial Services,Sport & Leisure,Supplies & Services,Provisions,BIKOLD,05/12/2017, 180.54 
Commercial Services,Sport & Leisure,Supplies & Services,Provisions,BIKOLD,05/12/2017, 291.44 
Commercial Services,Sport & Leisure,Supplies & Services,Provisions,BIKOLD,05/12/2017, 114.63 
Commercial Services,Sport & Leisure,Supplies & Services,Provisions,BIKOLD,05/12/2017, 176.74 
Commercial Services,Sport & Leisure,Supplies & Services,Provisions,BIKOLD,05/12/2017, 190.22 
Commercial Services,Sport & Leisure,Supplies & Services,Provisions,BIKOLD,13/12/2017,-137.93 
Commercial Services,Sport & Leisure,Supplies & Services,Provisions,BIKOLD,13/12/2017, 210.31 
Commercial Services,Sport & Leisure,Supplies & Services,Provisions,BIKOLD,13/12/2017, 103.42 
Commercial Services,Sport & Leisure,Supplies & Services,Provisions,BIKOLD,13/12/2017, 202.50 
Commercial Services,Sport & Leisure,Supplies & Services,Provisions,BIKOLD,05/12/2017, 112.71 
Commercial Services,Sport & Leisure,Supplies & Services,Provisions,BIKOLD,05/12/2017, 134.78 
Commercial Services,Sport & Leisure,Supplies & Services,Provisions,BIKOLD,13/12/2017, 242.06 
Commercial Services,Sport & Leisure,Supplies & Services,Provisions,BIKOLD,13/12/2017, 152.74 
Commercial Services,Sport & Leisure,Supplies & Services,Provisions,BIKOLD,13/12/2017, 109.60 
Commercial Services,Sport & Leisure,Supplies & Services,Provisions,BIKOLD,13/12/2017, 154.77 
Commercial Services,Sport & Leisure,Supplies & Services,Provisions,BIKOLD,13/12/2017, 361.64 
Commercial Services,Sport & Leisure,Supplies & Services,Provisions,BIKOLD,13/12/2017, 244.25 
Commercial Services,Sport & Leisure,Supplies & Services,Provisions,BIKOLD,13/12/2017, 151.71 
Commercial Services,Sport & Leisure,Supplies & Services,Provisions,BIKOLD,13/12/2017, 108.36 
Commercial Services,Sport & Leisure,Supplies & Services,Provisions,BIKOLD,13/12/2017, 105.08 
Commercial Services,Sport & Leisure,Supplies & Services,Provisions,BIKOLD,13/12/2017, 216.31 
Commercial Services,Sport & Leisure,Supplies & Services,Provisions,BIKOLD,13/12/2017, 171.21 
Commercial Services,Sport & Leisure,Supplies & Services,Provisions,BIKOLD,13/12/2017, 293.58 
Commercial Services,Sport & Leisure,Supplies & Services,Provisions,BIKOLD,13/12/2017, 286.95 
Commercial Services,Sport & Leisure,Supplies & Services,Provisions,BIKOLD,13/12/2017, 123.56 
Commercial Services,Sport & Leisure,Supplies & Services,Provisions,BIKOLD,13/12/2017, 176.44 
Commercial Services,Sport & Leisure,Supplies & Services,Provisions,BIKOLD,13/12/2017, 259.92 
Commercial Services,Sport & Leisure,Supplies & Services,Provisions,BIKOLD,13/12/2017, 180.70 
Commercial Services,Sport & Leisure,Supplies & Services,Provisions,BIKOLD,13/12/2017, 107.88 
Commercial Services,Sport & Leisure,Supplies & Services,Provisions,BIKOLD,13/12/2017, 380.21 
Commercial Services,Sport & Leisure,Supplies & Services,Provisions,BIKOLD,13/12/2017, 346.60 
Commercial Services,Sport & Leisure,Supplies & Services,Provisions,BIKOLD,13/12/2017, 122.08 
Commercial Services,Sport & Leisure,Supplies & Services,Provisions,BIKOLD,13/12/2017, 198.60 
Commercial Services,Sport & Leisure,Supplies & Services,Provisions,BIKOLD,13/12/2017, 294.27 
Commercial Services,Sport & Leisure,Supplies & Services,Provisions,BIKOLD,13/12/2017, 141.31 
Commercial Services,Sport & Leisure,Supplies & Services,Provisions,BIKOLD,13/12/2017, 102.68 
Commercial Services,Sport & Leisure,Supplies & Services,Provisions,BIKOLD,13/12/2017, 167.56 
Commercial Services,Sport & Leisure,Supplies & Services,Provisions,BIKOLD,13/12/2017, 156.04 
Commercial Services,Sport & Leisure,Supplies & Services,Provisions,BIKOLD,13/12/2017, 352.74 
Commercial Services,Sport & Leisure,Supplies & Services,Provisions,BIKOLD,13/12/2017, 156.53 
Commercial Services,Sport & Leisure,Supplies & Services,Provisions,BIKOLD,13/12/2017, 113.41 
Commercial Services,Sport & Leisure,Supplies & Services,Provisions,BIKOLD,13/12/2017, 137.37 
Commercial Services,Sport & Leisure,Supplies & Services,Provisions,BIKOLD,13/12/2017, 118.97 
Commercial Services,Sport & Leisure,Supplies & Services,Provisions,BIKOLD,13/12/2017, 231.43 
Commercial Services,Sport & Leisure,Supplies & Services,Provisions,BIKOLD,13/12/2017, 228.20 
Commercial Services,Sport & Leisure,Supplies & Services,Provisions,BIKOLD,13/12/2017, 127.92 
Commercial Services,Sport & Leisure,Supplies & Services,Provisions,BIKOLD,13/12/2017, 225.63 
Commercial Services,Sport & Leisure,Supplies & Services,Provisions,BIKOLD,13/12/2017, 301.15 
Commercial Services,Sport & Leisure,Supplies & Services,Provisions,BIKOLD,13/12/2017, 105.61 
Commercial Services,Sport & Leisure,Supplies & Services,Provisions,BIKOLD,13/12/2017, 179.48 
Commercial Services,Sport & Leisure,Supplies & Services,Provisions,BIKOLD,13/12/2017, 160.52 
Commercial Services,Sport & Leisure,Supplies & Services,Provisions,BIKOLD,13/12/2017, 117.85 
Commercial Services,Sport & Leisure,Supplies & Services,Provisions,BIKOLD,13/12/2017, 156.53 
Commercial Services,Sport & Leisure,Supplies & Services,Provisions,BIKOLD,13/12/2017, 265.27 
Commercial Services,Sport & Leisure,Supplies & Services,Provisions,BIKOLD,13/12/2017, 165.62 
Commercial Services,Sport & Leisure,Supplies & Services,Provisions,BIKOLD,13/12/2017, 137.11 
Commercial Services,Sport & Leisure,Supplies & Services,Provisions,BIKOLD,13/12/2017, 122.12 
Commercial Services,Sport & Leisure,Supplies & Services,Provisions,BIKOLD,13/12/2017, 154.29 
Commercial Services,Sport & Leisure,Supplies & Services,Provisions,BIKOLD,13/12/2017, 400.04 
Commercial Services,Sport & Leisure,Supplies & Services,Provisions,BIKOLD,13/12/2017, 187.40 
Commercial Services,Sport & Leisure,Supplies & Services,Provisions,BIKOLD,13/12/2017, 238.35 
Commercial Services,Sport & Leisure,Supplies & Services,Provisions,BIKOLD,13/12/2017, 276.73 
Commercial Services,Sport & Leisure,Supplies & Services,Provisions,BIKOLD,13/12/2017, 227.37 
Commercial Services,Sport & Leisure,Supplies & Services,Provisions,BIKOLD,13/12/2017, 255.27 
Commercial Services,Sport & Leisure,Supplies & Services,Provisions,BIKOLD,13/12/2017, 180.90 
Commercial Services,Sport & Leisure,Supplies & Services,Provisions,BIKOLD,13/12/2017, 234.38 
Commercial Services,Sport & Leisure,Supplies & Services,Provisions,BIKOLD,13/12/2017, 145.44 
Commercial Services,Sport & Leisure,Supplies & Services,Provisions,BIKOLD,13/12/2017, 197.76 
Commercial Services,Sport & Leisure,Supplies & Services,Provisions,BIKOLD,13/12/2017, 319.75 
Commercial Services,Sport & Leisure,Supplies & Services,Provisions,BIKOLD,13/12/2017, 235.15 
Commercial Services,Sport & Leisure,Supplies & Services,Provisions,BIKOLD,13/12/2017, 132.36 
Commercial Services,Sport & Leisure,Supplies & Services,Provisions,BIKOLD,13/12/2017, 190.29 
Commercial Services,Sport & Leisure,Supplies & Services,Provisions,BIKOLD,13/12/2017, 101.95 
Commercial Services,Sport & Leisure,Supplies & Services,Provisions,BIKOLD,13/12/2017, 338.92 
Commercial Services,Sport & Leisure,Supplies & Services,Provisions,BIKOLD,13/12/2017, 113.96 
Commercial Services,Sport & Leisure,Supplies & Services,Provisions,BIKOLD,13/12/2017, 331.48 
Commercial Services,Sport & Leisure,Supplies & Services,Provisions,BIKOLD,13/12/2017, 295.22 
Commercial Services,Sport & Leisure,Supplies & Services,Provisions,BIKOLD,13/12/2017, 192.99 
Commercial Services,Sport & Leisure,Supplies & Services,Provisions,BIKOLD,13/12/2017, 154.70 
Commercial Services,Sport & Leisure,Supplies & Services,Provisions,BIKOLD,13/12/2017, 141.82 
Commercial Services,Sport & Leisure,Supplies & Services,Provisions,BIKOLD,13/12/2017, 133.46 
Commercial Services,Sport & Leisure,Supplies & Services,Provisions,BIKOLD,13/12/2017, 193.30 
Commercial Services,Sport & Leisure,Supplies & Services,Provisions,BIKOLD,13/12/2017, 109.68 
Commercial Services,Sport & Leisure,Supplies & Services,Provisions,BIKOLD,13/12/2017, 205.70 
Commercial Services,Sport & Leisure,Supplies & Services,Provisions,BIKOLD,13/12/2017, 174.44 
Commercial Services,Sport & Leisure,Supplies & Services,Provisions,BIKOLD,13/12/2017, 230.64 
Commercial Services,Sport & Leisure,Supplies & Services,Provisions,BIKOLD,13/12/2017, 196.16 
Commercial Services,Sport & Leisure,Supplies & Services,Provisions,BIKOLD,13/12/2017, 113.97 
Commercial Services,Sport & Leisure,Supplies & Services,Provisions,BIKOLD,13/12/2017, 147.69 
Commercial Services,Sport & Leisure,Supplies & Services,Provisions,BIKOLD,13/12/2017, 399.98 
Commercial Services,Sport & Leisure,Supplies & Services,Provisions,BIKOLD,13/12/2017, 237.32 
Commercial Services,Sport & Leisure,Supplies & Services,Provisions,BIKOLD,13/12/2017, 130.10 
Commercial Services,Sport & Leisure,Supplies & Services,Provisions,BIKOLD,13/12/2017, 298.83 
Commercial Services,Sport & Leisure,Supplies & Services,Provisions,BIKOLD,13/12/2017, 118.38 
Commercial Services,Sport & Leisure,Supplies & Services,Provisions,BIKOLD,13/12/2017, 199.59 
Commercial Services,Sport & Leisure,Supplies & Services,Provisions,BIKOLD,13/12/2017, 151.96 
Commercial Services,Sport & Leisure,Supplies & Services,Provisions,BIKOLD,13/12/2017, 193.71 
Commercial Services,Sport & Leisure,Supplies & Services,Provisions,BIKOLD,13/12/2017, 481.00 
Commercial Services,Sport & Leisure,Supplies & Services,Provisions,BIKOLD,13/12/2017, 159.79 
Commercial Services,Sport & Leisure,Supplies & Services,Provisions,BIKOLD,13/12/2017, 104.97 
Commercial Services,Sport & Leisure,Supplies & Services,Provisions,BIKOLD,13/12/2017, 193.99 
Commercial Services,Sport & Leisure,Supplies & Services,Provisions,BIKOLD,13/12/2017, 208.36 
Commercial Services,Sport & Leisure,Supplies & Services,Provisions,BIKOLD,13/12/2017, 304.08 
Commercial Services,Sport & Leisure,Supplies & Services,Provisions,BIKOLD,13/12/2017, 496.67 
Commercial Services,Sport & Leisure,Supplies & Services,Provisions,BIKOLD,13/12/2017, 180.25 
Commercial Services,Sport & Leisure,Supplies & Services,Provisions,BIKOLD,13/12/2017, 234.38 
Commercial Services,Sport & Leisure,Supplies & Services,Provisions,BIKOLD,13/12/2017, 118.60 
Commercial Services,Sport & Leisure,Supplies & Services,Provisions,BIKOLD,13/12/2017, 129.89 
Commercial Services,Sport & Leisure,Supplies & Services,Provisions,BIKOLD,13/12/2017, 294.93 
Commercial Services,Sport & Leisure,Supplies & Services,Provisions,BIKOLD,13/12/2017, 110.36 
Commercial Services,Sport & Leisure,Supplies & Services,Provisions,BIKOLD,13/12/2017, 270.50 
Commercial Services,Sport & Leisure,Supplies & Services,Provisions,BIKOLD,13/12/2017, 108.35 
Commercial Services,Sport & Leisure,Supplies & Services,Provisions,BIKOLD,13/12/2017, 266.03 
Commercial Services,Sport & Leisure,Supplies & Services,Provisions,BIKOLD,19/12/2017, 137.72 
Commercial Services,Sport & Leisure,Supplies & Services,Provisions,BIKOLD,13/12/2017, 172.94 
Commercial Services,Sport & Leisure,Supplies & Services,Provisions,BIKOLD,13/12/2017, 137.93 
Commercial Services,Sport & Leisure,Supplies & Services,Provisions,BIKOLD,13/12/2017, 180.65 
Commercial Services,Sport & Leisure,Supplies & Services,Provisions,BIKOLD,13/12/2017, 136.29 
Commercial Services,Sport & Leisure,Supplies & Services,Provisions,BIKOLD,13/12/2017, 164.59 
Commercial Services,Sport & Leisure,Supplies & Services,Provisions,BIKOLD,13/12/2017, 213.28 
Commercial Services,Sport & Leisure,Supplies & Services,Provisions,BIKOLD,05/12/2017, 135.83 
Commercial Services,Sport & Leisure,Supplies & Services,Provisions,BIKOLD,05/12/2017, 159.67 
Commercial Services,Sport & Leisure,Supplies & Services,Provisions,BIKOLD,19/12/2017, 115.98 
Commercial Services,Sport & Leisure,Supplies & Services,Provisions,BIKOLD,19/12/2017, 104.98 
Commercial Services,Sport & Leisure,Supplies & Services,Provisions,BIKOLD,19/12/2017, 173.00 
Commercial Services,Sport & Leisure,Transport-Related Expenditure,Travelling Expenses General,CARADOC COACHES LTD,12/12/2017, 240.00 
Commercial Services,Sport & Leisure,Premises-Related Expenditure,Non Domestic Rates,SHROPSHIRE COUNCIL (55636551),06/12/2017,"-1,231.11 "
Commercial Services,Sport & Leisure,Supplies & Services,Sport Equip - Purchase,Life Fitness UK Ltd,06/12/2017," 11,488.00 "
Commercial Services,Sport & Leisure,Supplies & Services,Equipment - Purchase,Life Fitness UK Ltd,21/12/2017, 267.75 
Commercial Services,Sport & Leisure,Supplies & Services,Equipment - Purchase,Life Fitness UK Ltd,01/12/2017," 25,131.83 "
Commercial Services,Sport & Leisure,Supplies & Services,Protective Clothing,JBS Group,20/12/2017, 380.48 
Commercial Services,Sport & Leisure,Supplies & Services,Equipment - Purchase,JBS Group,20/12/2017, 144.66 
Commercial Services,Sport & Leisure,Supplies & Services,Flex Charges,Verifone Services UK & Ireland Limited,14/12/2017," 4,141.05 "
Commercial Services,Sport & Leisure,Supplies & Services,Flex Charges,Verifone Services UK & Ireland Limited,14/12/2017," 1,034.25 "
Commercial Services,Sport & Leisure,Supplies & Services,Flex Charges,Verifone Services UK & Ireland Limited,14/12/2017," 3,068.00 "
Commercial Services,Sport & Leisure,Supplies & Services,Equipment - Purchase,RMF LANDSCAPING LTD,13/12/2017, 545.00 
Commercial Services,Sport & Leisure,Supplies & Services,Crockery/Hardware/Light Equip,Reacted Personal Information ,11/12/2017, 203.65 
